Ref No,Fund Type,Dept,Cost Centre Description    ,Description    ,Creditor Name    ,GL Code Net Amount,Payment date        
2,Revenue,CAHD,Bed Purchasing - North,Permanent Nursing,.,4891.2, 05-Jun-2018
3,Revenue,CAHD,Bed Purchasing - Southmead Hospital,Permanent Nursing,.,4954.8, 05-Jun-2018
4,Revenue,CAHD,Bed Purchasing - South,Permanent Nursing,.,2564.28, 05-Jun-2018
5,Revenue,CAHD,Bed Purchasing - Elderly S117- North,Permanent Nursing,.,3975.88, 05-Jun-2018
6,Revenue,CAHD,Bed Purchasing - South,Permanent Residential,.,4279.8, 05-Jun-2018
7,Revenue,CAHD,Bed Purchasing - Elderly S117- North,Permanent Nursing,.,4309.64, 05-Jun-2018
8,Revenue,CAHD,Bed Purchasing - North,Permanent Nursing,.,4954.8, 05-Jun-2018
9,Revenue,CAHD,Bed Purchasing - Elderly S117- North,Permanent Nursing,.,5523.2, 05-Jun-2018
10,Revenue,CAHD,Bed Purchasing - South,Permanent Nursing,.,4891.2, 05-Jun-2018
11,Revenue,CAHD,Bed Purchasing - North,Permanent Nursing,.,3356.88, 05-Jun-2018
12,Revenue,CAHD,South Glos Users in South Glos Homes,Permanent Nursing,.,632.64, 05-Jun-2018
13,Revenue,CAHD,Bed Purchasing - North,Permanent Nursing,.,1934.85, 05-Jun-2018
14,Revenue,CAHD,Bed Purchasing - South,Permanent Nursing,.,3413.2, 05-Jun-2018
15,Revenue,CAHD,South Glos Users in South Glos Homes,Permanent Nursing,.,632.64, 05-Jun-2018
16,Revenue,CAHD,Bed Purchasing - North,Permanent Nursing,.,6725.4, 05-Jun-2018
17,Revenue,CAHD,Bed Purchasing - North,Permanent Nursing,.,4483.6, 05-Jun-2018
18,Revenue,CAHD,South Glos Users in South Glos Homes,Permanent Nursing,.,632.64, 05-Jun-2018
19,Revenue,CAHD,Bed Purchasing - North,Fees & Charges Income - General,.,803.01, 05-Jun-2018
20,Revenue,CAHD,South Glos Users in South Glos Homes,Permanent Nursing,.,632.64, 05-Jun-2018
21,Revenue,CAHD,Bed Purchasing - South,Permanent Nursing,.,4483.6, 05-Jun-2018
22,Revenue,CAHD,South Glos Users in South Glos Homes,Permanent Nursing,.,632.64, 05-Jun-2018
23,Revenue,CAHD,Bed Purchasing - South,Permanent Nursing,.,3356.88, 05-Jun-2018
24,Revenue,CAHD,South Glos Users in South Glos Homes,Permanent Nursing,.,632.64, 05-Jun-2018
25,Revenue,CAHD,Bed Purchasing - Southmead Hospital,Permanent Nursing,.,4891.2, 05-Jun-2018
26,Revenue,CAHD,South Glos Users in South Glos Homes,Permanent Nursing,.,632.64, 05-Jun-2018
27,Revenue,CAHD,Bed Purchasing - North,Permanent Residential,.,6503.16, 05-Jun-2018
28,Revenue,CAHD,Bed Purchasing - North,Permanent Residential,.,4335.44, 05-Jun-2018
29,Revenue,CAHD,South Glos Users in South Glos Homes,Permanent Nursing,.,632.64, 05-Jun-2018
30,Revenue,CAHD,Bed Purchasing - North,Fees & Charges Income - General,.,1854.66, 05-Jun-2018
31,Revenue,CAHD,Bed Purchasing - South,Permanent Nursing,.,3690.28, 05-Jun-2018
32,Revenue,CAHD,South Glos Users in South Glos Homes,Permanent Nursing,.,632.64, 05-Jun-2018
33,Revenue,CAHD,Bed Purchasing - Southmead Hospital,Permanent Nursing,.,3896.72, 05-Jun-2018
34,Revenue,CAHD,South Glos Users in South Glos Homes,Permanent Nursing,.,632.64, 05-Jun-2018
35,Revenue,CAHD,South Glos Users in South Glos Homes,Permanent Nursing,.,632.64, 05-Jun-2018
36,Revenue,CAHD,South Glos Users in South Glos Homes,Permanent Nursing,.,632.64, 05-Jun-2018
37,Revenue,CAHD,South Glos Users in South Glos Homes,Permanent Nursing,.,632.64, 05-Jun-2018
38,Revenue,CAHD,South Glos Users in South Glos Homes,Permanent Nursing,.,632.64, 05-Jun-2018
39,Revenue,CAHD,Bed Purchasing - Southmead Hospital,Permanent Nursing,.,4483.6, 05-Jun-2018
40,Revenue,CAHD,South Glos Users in South Glos Homes,Permanent Nursing,.,632.64, 05-Jun-2018
41,Revenue,CAHD,Bed Purchasing - North,Permanent Nursing,.,4308.92, 05-Jun-2018
42,Revenue,CAHD,South Glos Users in South Glos Homes,Permanent Nursing,.,632.64, 05-Jun-2018
43,Revenue,CAHD,South Glos Users in South Glos Homes,Permanent Nursing,.,632.64, 05-Jun-2018
44,Revenue,CAHD,South Glos Users in South Glos Homes,Permanent Nursing,.,632.64, 05-Jun-2018
45,Revenue,CAHD,South Glos Users in South Glos Homes,Permanent Nursing,.,632.64, 05-Jun-2018
46,Revenue,CAHD,South Glos Users in South Glos Homes,Permanent Nursing,.,632.64, 05-Jun-2018
47,Revenue,CAHD,South Glos Users in South Glos Homes,Permanent Nursing,.,632.64, 05-Jun-2018
48,Revenue,CAHD,Bed Purchasing - North,Permanent Nursing,.,4483.6, 05-Jun-2018
49,Revenue,CAHD,South Glos Users in South Glos Homes,Permanent Nursing,.,632.64, 05-Jun-2018
50,Revenue,CAHD,South Glos Users in South Glos Homes,Permanent Nursing,.,632.64, 05-Jun-2018
51,Revenue,CAHD,Bed Purchasing - North,Permanent Nursing,.,4259.2, 05-Jun-2018
52,Revenue,CAHD,South Glos Users in South Glos Homes,Permanent Nursing,.,632.64, 05-Jun-2018
53,Revenue,CAHD,South Glos Users in South Glos Homes,Permanent Nursing,.,632.64, 05-Jun-2018
54,Revenue,CAHD,South Glos Users in South Glos Homes,Permanent Nursing,.,632.64, 05-Jun-2018
55,Revenue,CAHD,South Glos Users in South Glos Homes,Permanent Nursing,.,632.64, 05-Jun-2018
56,Revenue,CAHD,South Glos Users in South Glos Homes,Permanent Nursing,.,632.64, 05-Jun-2018
57,Revenue,CAHD,South Glos Users in South Glos Homes,Permanent Nursing,.,632.64, 05-Jun-2018
58,Revenue,CAHD,South Glos Users in South Glos Homes,Permanent Nursing,.,632.64, 05-Jun-2018
59,Revenue,CAHD,South Glos Users in South Glos Homes,Permanent Nursing,.,632.64, 05-Jun-2018
60,Revenue,CAHD,South Glos Users in South Glos Homes,Permanent Nursing,.,632.64, 05-Jun-2018
61,Revenue,CAHD,South Glos Users in South Glos Homes,Permanent Nursing,.,632.64, 05-Jun-2018
62,Revenue,CAHD,South Glos Users in South Glos Homes,Permanent Nursing,.,632.64, 05-Jun-2018
63,Revenue,CAHD,South Glos Users in South Glos Homes,Permanent Nursing,.,632.64, 05-Jun-2018
64,Revenue,CAHD,South Glos Users in South Glos Homes,Permanent Nursing,.,632.64, 05-Jun-2018
65,Revenue,CAHD,Bed Purchasing - North,Permanent Nursing,.,3174.16, 05-Jun-2018
66,Revenue,CAHD,South Glos Users in South Glos Homes,Permanent Nursing,.,632.64, 05-Jun-2018
67,Revenue,CAHD,Bed Purchasing - South,Permanent Nursing,.,3851.6, 05-Jun-2018
68,Revenue,CAHD,South Glos Users in South Glos Homes,Permanent Nursing,.,632.64, 05-Jun-2018
69,Revenue,CAHD,South Glos Users in South Glos Homes,Permanent Nursing,.,632.64, 05-Jun-2018
70,Revenue,CAHD,Bed Purchasing - North,Permanent Nursing,.,3988.84, 05-Jun-2018
71,Revenue,CAHD,South Glos Users in South Glos Homes,Permanent Nursing,.,632.64, 05-Jun-2018
72,Revenue,CAHD,Bed Purchasing - South,Permanent Nursing,.,11831.63, 05-Jun-2018
73,Revenue,CAHD,Bed Purchasing - North,Permanent Nursing,.,6936.54, 05-Jun-2018
74,Revenue,CAHD,Bed Purchasing - North,Permanent Nursing,.,4624.36, 05-Jun-2018
75,Revenue,CAHD,South Glos Users in South Glos Homes,Permanent Nursing,.,632.64, 05-Jun-2018
76,Revenue,CAHD,Bed Purchasing - Southmead Hospital,Permanent Nursing,.,3896.72, 05-Jun-2018
77,Revenue,CAHD,South Glos Users in South Glos Homes,Permanent Nursing,.,632.64, 05-Jun-2018
78,Revenue,CAHD,Bed Purchasing - North,Permanent Nursing,.,4487.96, 05-Jun-2018
79,Revenue,CAHD,Bed Purchasing - North,Permanent Nursing,.,961.71, 05-Jun-2018
80,Revenue,CAHD,South Glos Users in South Glos Homes,Permanent Nursing,.,632.64, 05-Jun-2018
81,Revenue,CAHD,South Glos Users in South Glos Homes,Permanent Nursing,.,632.64, 05-Jun-2018
82,Revenue,CAHD,South Glos Users in South Glos Homes,Permanent Nursing,.,632.64, 05-Jun-2018
83,Revenue,CAHD,Bed Purchasing - North,Permanent Nursing,.,12635.6, 05-Jun-2018
84,Revenue,CAHD,Bed Purchasing - South,Permanent Residential,.,3096.76, 05-Jun-2018
85,Revenue,CAHD,Bed Purchasing - South,Permanent Nursing,.,2934.72, 05-Jun-2018
86,Revenue,CAHD,Bed Purchasing - North,Permanent Residential,.,2832.84, 05-Jun-2018
87,Revenue,CAHD,Bed Purchasing - North,Permanent Residential,.,3668.4, 05-Jun-2018
88,Revenue,CAHD,Bed Purchasing - North,Permanent Residential,.,3668.4, 05-Jun-2018
89,Revenue,CAHD,Bed Purchasing - North,Permanent Residential,.,3668.4, 05-Jun-2018
90,Revenue,CAHD,Bed Purchasing - North,Permanent Residential,.,16200, 05-Jun-2018
91,Revenue,CAHD,Bed Purchasing - North,Permanent Residential,.,5502.6, 05-Jun-2018
92,Revenue,CAHD,Bed Purchasing - North,Fees & Charges Income - General,.,600, 05-Jun-2018
93,Revenue,CAHD,Bed Purchasing - North,Fees & Charges Income - General,.,600, 05-Jun-2018
94,Revenue,CAHD,Bed Purchasing - North,Permanent Residential,.,3668.4, 05-Jun-2018
95,Revenue,CAHD,Bed Purchasing - North,Fees & Charges Income - General,.,2203.67, 05-Jun-2018
96,Revenue,CAHD,Bed Purchasing - North,Fees & Charges Income - General,.,1797.73, 05-Jun-2018
97,Revenue,CAHD,Bed Purchasing - North,Permanent Residential,.,3668.4, 05-Jun-2018
98,Revenue,CAHD,Bed Purchasing - North,Permanent Residential,.,3600, 05-Jun-2018
99,Revenue,CAHD,Bed Purchasing - North,Fees & Charges Income - General,.,1942.86, 05-Jun-2018
100,Revenue,CAHD,Bed Purchasing - North,Permanent Residential,.,3668.4, 05-Jun-2018
101,Revenue,CAHD,Bed Purchasing - North,Permanent Residential,.,3668.4, 05-Jun-2018
102,Revenue,CAHD,Bed Purchasing - Elderly S117- North,Permanent Residential,.,4400, 05-Jun-2018
103,Revenue,CAHD,Bed Purchasing - Elderly S117- North,Permanent Residential,.,1100, 05-Jun-2018
104,Revenue,CAHD,Bed Purchasing - North,Permanent Residential,.,3600, 05-Jun-2018
105,Revenue,CAHD,Bed Purchasing - North,Permanent Residential,.,1542.86, 05-Jun-2018
106,Revenue,CAHD,Bed Purchasing - North,Permanent Residential,.,4400, 05-Jun-2018
107,Revenue,CAHD,Bed Purchasing - North,Permanent Residential,.,2828.57, 05-Jun-2018
108,Revenue,CAHD,Bed Purchasing - North,Permanent Residential,.,3668.4, 05-Jun-2018
109,Revenue,CAHD,Bed Purchasing - North,Permanent Residential,.,3057, 05-Jun-2018
110,Revenue,CAHD,18-25 Year Olds,Permanent Residential,1 St Georges House,13021, 05-Jun-2018
111,Revenue,CAHD,CSC - Asylum Seekers - Unaccompanied,Client Transport,1625 Independent People,66.25, 20-Jun-2018
112,Revenue,CAHD,CSC - Asylum Seekers - Unaccompanied,Furniture & Fittings Loose,1625 Independent People,643.99, 20-Jun-2018
113,Revenue,CAHD,CSC - Care Leavers Independent Living,Adults - Family Support,1625 Independent People,38448, 19-Jun-2018
114,Revenue,CAHD,CSC - LAC Housing Support Grants,Grants to Voluntary Bodies,1625 Independent People,3204.17, 19-Jun-2018
115,Revenue,CAHD,Supporting People Programme,Grants to Voluntary Bodies,1625 Independent People,18078, 01-Jun-2018
116,Revenue,CAHD,Supporting People Programme,Grants to Voluntary Bodies,1625 Independent People,18078, 29-Jun-2018
117,Revenue,CAHD,Supporting People Programme,Grants to Voluntary Bodies,1625 Independent People,9811.67, 04-Jun-2018
118,Revenue,CAHD,Bed Purchasing - Southmead Hospital,Permanent Residential,1St Floor Lingfield House,2649.4, 05-Jun-2018
119,Revenue,CAHD,Bed Purchasing - North,Permanent Residential,1St Floor Lingfield House,2649.4, 05-Jun-2018
120,Revenue,CAHD,Home Care - Elderly - South,Day Care / Social Activities,3 Trees Community Support Ltd,95.2, 05-Jun-2018
121,Revenue,CAHD,Home Care - Elderly - North,Day Care / Social Activities,3 Trees Community Support Ltd,1166.2, 05-Jun-2018
122,Revenue,CAHD,Home Care - Elderly - North,Other Small Contracts,3 Trees Community Support Ltd,718.76, 05-Jun-2018
123,Revenue,CAHD,Home Care - Elderly - North,Supported Living,3 Trees Community Support Ltd,7581.21, 05-Jun-2018
124,Revenue,CAHD,Home Care - Elderly - South,Day Care / Social Activities,3 Trees Community Support Ltd,95.2, 11-Jun-2018
125,Revenue,CAHD,Home Care - Elderly - North,Day Care / Social Activities,3 Trees Community Support Ltd,1190, 11-Jun-2018
126,Revenue,CAHD,Home Care - Elderly - North,Other Small Contracts,3 Trees Community Support Ltd,723.52, 11-Jun-2018
127,Revenue,CAHD,Home Care - Elderly - North,Supported Living,3 Trees Community Support Ltd,7262.56, 11-Jun-2018
128,Revenue,CAHD,Home Care - Elderly - South,Day Care / Social Activities,3 Trees Community Support Ltd,95.2, 19-Jun-2018
129,Revenue,CAHD,Home Care - Elderly - North,Day Care / Social Activities,3 Trees Community Support Ltd,1047.2, 19-Jun-2018
130,Revenue,CAHD,Home Care - Elderly - North,Other Small Contracts,3 Trees Community Support Ltd,723.52, 19-Jun-2018
131,Revenue,CAHD,Home Care - Elderly - North,Supported Living,3 Trees Community Support Ltd,7612.88, 19-Jun-2018
132,Revenue,CAHD,Home Care - Elderly - South,Day Care / Social Activities,3 Trees Community Support Ltd,95.2, 20-Jun-2018
133,Revenue,CAHD,Home Care - Elderly - North,Day Care / Social Activities,3 Trees Community Support Ltd,1175.72, 20-Jun-2018
134,Revenue,CAHD,Home Care - Elderly - North,Other Small Contracts,3 Trees Community Support Ltd,728.28, 20-Jun-2018
135,Revenue,CAHD,Home Care - Elderly - North,Supported Living,3 Trees Community Support Ltd,7574.51, 20-Jun-2018
136,Revenue,CAHD,Home Care - Elderly - South,Day Care / Social Activities,3 Trees Community Support Ltd,95.2, 28-Jun-2018
137,Revenue,CAHD,Home Care - Elderly - North,Day Care / Social Activities,3 Trees Community Support Ltd,1180.48, 28-Jun-2018
138,Revenue,CAHD,Home Care - Elderly - North,Other Small Contracts,3 Trees Community Support Ltd,737.8, 28-Jun-2018
139,Revenue,CAHD,Home Care - Elderly - North,Supported Living,3 Trees Community Support Ltd,7590.44, 28-Jun-2018
140,Revenue,CAHD,18-25 Year Olds,Permanent Residential,5Th Floor Harlech Court,14897.4, 05-Jun-2018
141,Revenue,CAHD,18-25 Year Olds,Permanent Residential,5Th Floor Harlech Court,15040.44, 05-Jun-2018
142,Revenue,CAHD,18-25 Year Olds,Permanent Residential,5Th Floor Harlech Court,13380.24, 05-Jun-2018
143,Revenue,CAHD,18-25 Year Olds,Permanent Residential,5Th Floor Harlech Court,17792.32, 05-Jun-2018
144,Revenue,CAHD,Bed Purchasing - North,Permanent Residential,5Th Floor Harlech Court,13492.04, 05-Jun-2018
145,Revenue,CAHD,18-25 Year Olds,Permanent Residential,5Th Floor Harlech Court,13505.44, 05-Jun-2018
146,Revenue,CAHD,Bed Purchasing - North,Permanent Residential,5Th Floor Harlech Court,14372.24, 05-Jun-2018
147,Revenue,CAHD,Jointly Funded H&SC Packages,Permanent Residential,5Th Floor Harlech Court,3556.48, 05-Jun-2018
148,Revenue,CAHD,18-25 Year Olds,Permanent Residential,5Th Floor Harlech Court,17021.4, 05-Jun-2018
149,Revenue,CAHD,Bed Purchasing - South,Permanent Residential,5Th Floor Harlech Court,16276.48, 05-Jun-2018
150,Revenue,CAHD,Bed Purchasing - South,Permanent Residential,5Th Floor Harlech Court,10175.32, 05-Jun-2018
151,Revenue,CAHD,Bed purchasing - S28A Under 65 - South,Permanent Residential,5Th Floor Harlech Court,10649.12, 05-Jun-2018
152,Revenue,CAHD,Bed Purchasing - South,Permanent Residential,5Th Floor Harlech Court,11168.36, 05-Jun-2018
153,Revenue,CAHD,Bed Purchasing - South,Permanent Residential,5Th Floor Harlech Court,7425.64, 05-Jun-2018
154,Revenue,CAHD,Jointly Funded H&SC Packages,Permanent Residential,5Th Floor Harlech Court,2743.16, 05-Jun-2018
155,Revenue,CAHD,General EPH budgets,Mechanical & Electrical Maintenance,A E Horder (Contracting) Limited,1443.63, 22-Jun-2018
156,Revenue,CAHD,Rapid Response Service,Mechanical & Electrical Maintenance,A E Horder (Contracting) Limited,1212.57, 22-Jun-2018
157,Revenue,CAHD,Direct Payments - Phys Dis - North,Fees & Charges Income - General,A4E Management Limited,815.79, 29-Jun-2018
158,Revenue,CAHD,Direct Payments - Phys Dis - North,Fees & Charges Income - General,A4E Management Ltd,502.97, 29-Jun-2018
159,Revenue,CAHD,Bed Purchasing - North,Permanent Nursing,ABI Development Limited,4733.15, 05-Jun-2018
160,Revenue,CAHD,Home Care - Elderly - South,Day Care / Social Activities,About Me Care and Support Limited,1359.04, 06-Jun-2018
161,Revenue,CAHD,Home Care - Elderly - North,Day Care / Social Activities,About Me Care and Support Limited,613.76, 06-Jun-2018
162,Revenue,CAHD,Home Care - Elderly - South,Day Care / Social Activities,About Me Care and Support Limited,832.96, 06-Jun-2018
163,Revenue,CAHD,Home Care - Elderly - South,Day Care / Social Activities,About Me Care and Support Limited,844.62, 04-Jun-2018
164,Revenue,CAHD,Section 117 Placements MH Younger,Permanent Residential,Acorn Care Providers,6453.32, 05-Jun-2018
165,Revenue,CAHD,Training - Adult Services,Training Expenses,Acorn Health & Safety Limited,462.5, 07-Jun-2018
166,Revenue,CAHD,Training - Adult Services,Training Expenses,Acorn Health & Safety Limited,465, 14-Jun-2018
167,Revenue,CAHD,Training - Adult Services,Training Expenses,Acorn Health & Safety Limited,465, 14-Jun-2018
168,Revenue,CAHD,Training - Adult Services,Training Expenses,Acorn Health & Safety Limited,465, 20-Jun-2018
169,Revenue,CAHD,Training - Adult Services,Training Expenses,Acorn Health & Safety Limited,453, 20-Jun-2018
170,Revenue,CAHD,Training - Adult Services,Training Expenses,Acorn Health & Safety Limited,467.25, 26-Jun-2018
171,Revenue,CAHD,Homelessness Contingency,Other Supplies & Services,Acorn Property Letting and Management,1488, 19-Jun-2018
172,Revenue,CAHD,Older People's Commissioned Se,Grants to Voluntary Bodies,Action for Blind People,24975, 29-Jun-2018
173,Revenue,CAHD,Minor Adaptations Service,Grants to Voluntary Bodies,Action for Blind People,2500, 29-Jun-2018
174,Revenue,CAHD,CSC - Agency Fostering,Foster Parent Allowances,Action for Children,3244.2, 20-Jun-2018
175,Revenue,CAHD,CSC - Agency Fostering,Foster Parent Allowances,Action for Children,3352.34, 01-Jun-2018
176,Revenue,CAHD,CSC - Agency Fostering,Foster Parent Allowances,Action for Children,3244.2, 29-Jun-2018
177,Revenue,CAHD,CSC - Agency Fostering,Foster Parent Allowances,Action for Children,6750, 29-Jun-2018
178,Revenue,CAHD,Research & Conferences,Membership Fees,ADASS,1800, 25-Jun-2018
179,Revenue,CAHD,Home Care - Elderly - South,Other Small Contracts,Advantedge Commercial Finance Limited,2845.44, 06-Jun-2018
180,Revenue,CAHD,Home Care - Elderly - South,Other Small Contracts,Advantedge Commercial Finance Limited,510.72, 13-Jun-2018
181,Revenue,CAHD,Home Care - Elderly - South,Other Small Contracts,Advantedge Commercial Finance Limited,520.8, 13-Jun-2018
182,Revenue,CAHD,Home Care - Elderly - South,Other Small Contracts,Advantedge Commercial Finance Limited,2343.6, 13-Jun-2018
183,Revenue,CAHD,Mental Health and Emotional Wellbeing,Other Small Contracts,Age UK South Gloucestershire,13725, 29-Jun-2018
184,Revenue,CAHD,Home Care - Elderly - South,Other Small Contracts,Agincare UK Limited,1944.65, 11-Jun-2018
185,Revenue,CAHD,Home Care - Elderly - North,Other Small Contracts,Agincare UK Limited,1290.5, 11-Jun-2018
186,Revenue,CAHD,Home Care - Elderly - South,Other Small Contracts,Agincare UK Limited,2118.2, 11-Jun-2018
187,Revenue,CAHD,Home Care - Elderly - North,Other Small Contracts,Agincare UK Limited,1317.2, 11-Jun-2018
188,Revenue,CAHD,Home Care - Elderly - South,Other Small Contracts,Agincare UK Limited,2020.3, 20-Jun-2018
189,Revenue,CAHD,Home Care - Elderly - North,Other Small Contracts,Agincare UK Limited,1010.15, 20-Jun-2018
190,Revenue,CAHD,Extra Care Housing,Private & Voluntary Home Care,Agincare UK Limited,21920.39, 01-Jun-2018
191,Revenue,CAHD,Extra Care Housing,Private & Voluntary Home Care,Agincare UK Limited,21920.39, 29-Jun-2018
192,Revenue,CAHD,Extra Care Housing,Private & Voluntary Home Care,Agincare UK Limited,10674.56, 01-Jun-2018
193,Revenue,CAHD,Extra Care Housing,Private & Voluntary Home Care,Agincare UK Limited,10674.56, 29-Jun-2018
194,Revenue,CAHD,Extra Care Housing,Private & Voluntary Home Care,Agincare UK Limited,25811, 04-Jun-2018
195,Revenue,CAHD,Extra Care Housing,Private & Voluntary Home Care,Agincare UK Limited,2460.65, 06-Jun-2018
196,Revenue,CAHD,Extra Care Housing,Private & Voluntary Home Care,Agincare UK Limited,1803.05, 06-Jun-2018
197,Revenue,CAHD,Extra Care Housing,Private & Voluntary Home Care,Agincare UK Limited,2024.17, 06-Jun-2018
198,Revenue,CAHD,Prison Assessments & Costs,Other Supplies & Services,Agincare UK Limited,6541.38, 14-Jun-2018
199,Revenue,CAHD,Home Care - Elderly - South,Other Small Contracts,AliMo Care Ltd,882.01, 01-Jun-2018
200,Revenue,CAHD,Home Care - Elderly - South,Other Small Contracts,AliMo Care Ltd,868.3, 21-Jun-2018
201,Revenue,CAHD,Home Care - Elderly - South,Other Small Contracts,AliMo Care Ltd,859.16, 21-Jun-2018
202,Revenue,CAHD,Home Care - Elderly - South,Other Small Contracts,AliMo Care Ltd,836.31, 22-Jun-2018
203,Revenue,CAHD,Home Care - Elderly - South,Other Small Contracts,AliMo Care Ltd,827.17, 28-Jun-2018
204,Revenue,CAHD,Bed Purchasing - Southmead Hospital,Permanent Nursing,Allambie Court,2266.04, 05-Jun-2018
205,Revenue,CAHD,Bed Purchasing - Southmead Hospital,Permanent Nursing,Allambie Court,2266.04, 05-Jun-2018
206,Revenue,CAHD,Mental Health and Emotional Wellbeing,Other Small Contracts,Alzheimers Society,11142.75, 29-Jun-2018
207,Revenue,CAHD,Bed Purchasing - South,Permanent Nursing,Ambleside Nusing Home,2166.56, 05-Jun-2018
208,Revenue,CAHD,Bed Purchasing - Southmead Hospital,Permanent Nursing,Amerind Grove Nursing Home,2642.88, 05-Jun-2018
209,Revenue,CAHD,CSC - Agency Fostering,Foster Parent Allowances,Amicus Foster Care Ltd,5397.83, 06-Jun-2018
210,Revenue,CAHD,CSC - Agency Fostering,Foster Parent Allowances,Amicus Foster Care Ltd,5234.24, 29-Jun-2018
211,Revenue,CAHD,CSC - Agency Fostering,Foster Parent Allowances,Amicus Foster Care Ltd,4721.61, 29-Jun-2018
212,Revenue,CAHD,Alexandra Way,Premises Maintenance by Contractor,Amy Flooring Limited,15804.29, 13-Jun-2018
213,Revenue,CAHD,Supporting People Programme,Grants to Voluntary Bodies,Anchor Housing,827, 01-Jun-2018
214,Revenue,CAHD,Supporting People Programme,Grants to Voluntary Bodies,Anchor Housing,827, 29-Jun-2018
215,Revenue,CAHD,CSC - Section 17 0-25,Preventative Assistance,Angel Care Support Limited,2772, 21-Jun-2018
216,Revenue,CAHD,CSC - Safeguarding Board,Training Expenses,Anthony Domaille,2250, 05-Jun-2018
217,Revenue,CAHD,CSC - Safeguarding Board,Training Expenses,Anthony Domaille,900, 22-Jun-2018
218,Revenue,CAHD,Bed Purchasing - North,Permanent Residential,Ark Care Homes Ltd,11480.92, 05-Jun-2018
219,Revenue,CAHD,Bed Purchasing - South,Permanent Nursing,Ash Grove House,2890.28, 05-Jun-2018
220,Revenue,CAHD,Jointly Funded H&SC Packages,Permanent Residential,Ash View House,1085.36, 05-Jun-2018
221,Revenue,CAHD,Bed Purchasing - South,Permanent Residential,Ash View House,5293.96, 05-Jun-2018
222,Revenue,CAHD,S117 Placements PCT,Permanent Residential,Ash View House,7379.2, 05-Jun-2018
223,Revenue,CAHD,18-25 Year Olds,Permanent Residential,Ash View House,6933.12, 05-Jun-2018
224,Revenue,CAHD,Section 117 Placements MH Younger,Permanent Residential,Ash View House,4808.72, 05-Jun-2018
225,Revenue,CAHD,Jointly Funded H&SC Packages,Permanent Residential,Ash View House,2060.92, 05-Jun-2018
226,Revenue,CAHD,Bed purchasing - Elderly S117 - South,Permanent Residential,Ash View House,6535.92, 05-Jun-2018
227,Revenue,CAHD,18-25 Year Olds,Permanent Residential,Ash View House,6460.48, 05-Jun-2018
228,Revenue,CAHD,Drug and Alcohol Programme,Rent,Ashville Asset Management Limited,1108.69, 04-Jun-2018
229,Revenue,CAHD,Drug and Alcohol Programme,Rent,Ashville Asset Management Limited,1204.38, 22-Jun-2018
230,Revenue,CAHD,Drug and Alcohol Programme,Rent,Ashville Asset Management Limited,4550, 22-Jun-2018
231,Revenue,CAHD,Bed Purchasing - North,Permanent Residential,Aspects 2 Limited,7062.4, 05-Jun-2018
232,Revenue,CAHD,Supporting People Programme,Grants to Voluntary Bodies,Aspects and Milestones Trust,3361, 01-Jun-2018
233,Revenue,CAHD,Supporting People Programme,Grants to Voluntary Bodies,Aspects and Milestones Trust,1685, 01-Jun-2018
234,Revenue,CAHD,Supporting People Programme,Grants to Voluntary Bodies,Aspects and Milestones Trust,3361, 29-Jun-2018
235,Revenue,CAHD,Supporting People Programme,Grants to Voluntary Bodies,Aspects and Milestones Trust,1685, 29-Jun-2018
236,Revenue,CAHD,Shared Lives,Other Supplies & Services,Ategi Limited,61310, 29-Jun-2018
237,Revenue,CAHD,Bed Purchasing - South,Adults - Family Support,Ategi Limited,12387.12, 05-Jun-2018
238,Revenue,CAHD,Independent Special Placements - Pre 16,Other Private Contractors,Aurora Care & Education,12123.47, 21-Jun-2018
239,Revenue,CAHD,Independent Special Placements - Pre 16,Other Private Contractors,Aurora Care & Education,12123.47, 20-Jun-2018
240,Revenue,CAHD,Bed Purchasing - South,Permanent Residential,Autism Specialised Care Homes,6354.36, 05-Jun-2018
241,Revenue,CAHD,Bed Purchasing - South,Permanent Residential,Avery Homes Downend Limited,3800, 05-Jun-2018
242,Revenue,CAHD,Bed Purchasing - South,Permanent Residential,Avery Homes Downend Limited,5700, 05-Jun-2018
243,Revenue,CAHD,Bed Purchasing - South,Fees & Charges Income - General,Avery Homes Downend Limited,2714.29, 05-Jun-2018
244,Revenue,CAHD,Bed Purchasing - South,Permanent Residential,Avery Homes Downend Limited,3800, 05-Jun-2018
245,Revenue,CAHD,Bed Purchasing - South,Permanent Residential,Avery Homes Downend Limited,2850, 05-Jun-2018
246,Revenue,CAHD,Bed Purchasing - North,Respite Planned - Residential,Avery Homes Downend Limited,1350, 05-Jun-2018
247,Revenue,CAHD,Younger Adult Mental Health,Health Services (Third Party Payments),Avon & Wiltshire Mental Health,1693.33, 01-Jun-2018
248,Revenue,CAHD,Younger Adult Mental Health,Health Services (Third Party Payments),Avon & Wiltshire Mental Health,1693.33, 13-Jun-2018
249,Revenue,CAHD,Younger Adult Mental Health,Agency Staff (Operational)/PCT Pay,Avon & Wiltshire Mental Health,5000, 14-Jun-2018
250,Revenue,CAHD,Community Promoting Independence Team,Other Supplies & Services,Back Care Solutions Ltd,560, 08-Jun-2018
251,Revenue,CAHD,Early Years High Needs Support,Other Private Contractors,Baker Street Nursery & Pre-School,880.77, 28-Jun-2018
252,Revenue,CAHD,CSC - Vinney Green Secure Unit,Printing & Stationery,Banner UK,557.2, 28-Jun-2018
253,Revenue,CAHD,Purchase of RAC places,Other L.A.'s - General,Bath & North East Somerset Council,1417.6, 08-Jun-2018
254,Revenue,CAHD,Pathway 3 - (Complex Beds),Permanent Nursing,Beaufort Care Ltd,10809, 05-Jun-2018
255,Revenue,CAHD,Pathway 3 - (Complex Beds),Permanent Nursing,Beaufort Care Ltd,5441, 22-Jun-2018
256,Revenue,CAHD,Bed Purchasing - North,Permanent Residential,Beaufort House,2489.8, 05-Jun-2018
257,Revenue,CAHD,Bed Purchasing - Southmead Hospital,Permanent Residential,Beaufort House,2710.56, 05-Jun-2018
258,Revenue,CAHD,Bed Purchasing - North,Respite Emergency - Residential,Beaufort House,2678.57, 05-Jun-2018
259,Revenue,CAHD,Bed Purchasing - North,Permanent Residential,Beaufort House,2511.12, 05-Jun-2018
260,Revenue,CAHD,Bed Purchasing - South,Permanent Residential,Beaufort House,2477.4, 05-Jun-2018
261,Revenue,CAHD,Bed Purchasing - South,Permanent Residential,Beaufort House,2383.84, 05-Jun-2018
262,Revenue,CAHD,Bed Purchasing - Southmead Hospital,Respite Planned - Residential,Beaufort House,2710.56, 05-Jun-2018
263,Revenue,CAHD,Bed Purchasing - North,Permanent Residential,Beaufort House,2453.56, 05-Jun-2018
264,Revenue,CAHD,Bed Purchasing - Southmead Hospital,Permanent Residential,Beaufort House,2710.56, 05-Jun-2018
265,Revenue,CAHD,Bed Purchasing - North,Permanent Residential,Beaufort House,4845, 05-Jun-2018
266,Revenue,CAHD,Bed Purchasing - North,Permanent Residential,Beaufort House,2660, 05-Jun-2018
267,Revenue,CAHD,Bed Purchasing - North,Fees & Charges Income - General,Beaufort House,818.7, 05-Jun-2018
268,Revenue,CAHD,Bed Purchasing - North,Permanent Residential,Beaufort House,2636.64, 05-Jun-2018
269,Revenue,CAHD,Bed Purchasing - South,Permanent Residential,Beaufort House,2649.4, 05-Jun-2018
270,Revenue,CAHD,Bed Purchasing - North,Respite Emergency - Residential,Beaufort House,1500, 05-Jun-2018
271,Revenue,CAHD,Bed Purchasing - Southmead Hospital,Permanent Residential,Beaufort House,2511.12, 05-Jun-2018
272,Revenue,CAHD,Bed Purchasing - Southmead Hospital,Permanent Residential,Beaufort House,2683.84, 05-Jun-2018
273,Revenue,CAHD,South Glos Users in South Glos Homes,Permanent Nursing,Beech House,632.64, 05-Jun-2018
274,Revenue,CAHD,Bed Purchasing - South,Permanent Residential,Beech House,2890.28, 05-Jun-2018
275,Revenue,CAHD,South Glos Users in South Glos Homes,Permanent Nursing,Beech House,632.64, 05-Jun-2018
276,Revenue,CAHD,Bed Purchasing - Southmead Hospital,Permanent Residential,Beech House,4055.64, 05-Jun-2018
277,Revenue,CAHD,South Glos Users in South Glos Homes,Permanent Nursing,Beech House,632.64, 05-Jun-2018
278,Revenue,CAHD,South Glos Users in South Glos Homes,Permanent Nursing,Beech House,632.64, 05-Jun-2018
279,Revenue,CAHD,Bed Purchasing - North,Fees & Charges Income - General,Beech House,536.71, 05-Jun-2018
280,Revenue,CAHD,South Glos Users in South Glos Homes,Permanent Nursing,Beech House,573.96, 05-Jun-2018
281,Revenue,CAHD,South Glos Users in South Glos Homes,Permanent Nursing,Beech House,632.64, 05-Jun-2018
282,Revenue,CAHD,Bed Purchasing - North,Permanent Nursing,Beech House,2761.24, 05-Jun-2018
283,Revenue,CAHD,South Glos Users in South Glos Homes,Permanent Nursing,Beech House,632.64, 05-Jun-2018
284,Revenue,CAHD,South Glos Users in South Glos Homes,Permanent Nursing,Beech House,632.64, 05-Jun-2018
285,Revenue,CAHD,Bed Purchasing - North,Permanent Nursing,Beech House,3088.64, 05-Jun-2018
286,Revenue,CAHD,South Glos Users in South Glos Homes,Permanent Nursing,Beech House,632.64, 05-Jun-2018
287,Revenue,CAHD,Bed Purchasing - North,Permanent Nursing,Beech House,3464.6, 05-Jun-2018
288,Revenue,CAHD,Bed Purchasing - North,Fees & Charges Income - General,Beech House,838.16, 05-Jun-2018
289,Revenue,CAHD,Bed Purchasing - North,Fees & Charges Income - General,Beech House,1692.07, 05-Jun-2018
290,Revenue,CAHD,South Glos Users in South Glos Homes,Permanent Nursing,Beech House,632.64, 05-Jun-2018
291,Revenue,CAHD,Bed Purchasing - North,Permanent Residential,Beech House,2890.28, 05-Jun-2018
292,Revenue,CAHD,South Glos Users in South Glos Homes,Permanent Nursing,Beech House,632.64, 05-Jun-2018
293,Revenue,CAHD,South Glos Users in South Glos Homes,Permanent Nursing,Beech House,632.64, 05-Jun-2018
294,Revenue,CAHD,South Glos Users in South Glos Homes,Permanent Nursing,Beech House,632.64, 05-Jun-2018
295,Revenue,CAHD,South Glos Users in South Glos Homes,Permanent Nursing,Beech House,632.64, 05-Jun-2018
296,Revenue,CAHD,South Glos Users in South Glos Homes,Permanent Nursing,Beech House,632.64, 05-Jun-2018
297,Revenue,CAHD,South Glos Users in South Glos Homes,Permanent Nursing,Beech House,632.64, 05-Jun-2018
298,Revenue,CAHD,South Glos Users in South Glos Homes,Permanent Nursing,Beech House,632.64, 05-Jun-2018
299,Revenue,CAHD,Bed Purchasing - North,Permanent Residential,Beech House,6546.43, 05-Jun-2018
300,Revenue,CAHD,Bed Purchasing - North,Permanent Residential,Beech House,5961.18, 05-Jun-2018
301,Revenue,CAHD,Bed Purchasing - North,Permanent Residential,Beech House,3974.12, 05-Jun-2018
302,Revenue,CAHD,Bed Purchasing - North,Permanent Residential,Beech House,696.43, 05-Jun-2018
303,Revenue,CAHD,Bed Purchasing - North,Fees & Charges Income - General,Beech House,883.53, 05-Jun-2018
304,Revenue,CAHD,Bed Purchasing - Southmead Hospital,Permanent Residential,Beech House,3749.92, 05-Jun-2018
305,Revenue,CAHD,South Glos Users in South Glos Homes,Permanent Nursing,Beech House,632.64, 05-Jun-2018
306,Revenue,CAHD,Bed Purchasing - North,Permanent Nursing,Beech House,3362.72, 05-Jun-2018
307,Revenue,CAHD,South Glos Users in South Glos Homes,Permanent Nursing,Beech House,632.64, 05-Jun-2018
308,Revenue,CAHD,Bed Purchasing - North,Permanent Nursing,Beech House,3229.92, 05-Jun-2018
309,Revenue,CAHD,South Glos Users in South Glos Homes,Permanent Nursing,Beech House,632.64, 05-Jun-2018
310,Revenue,CAHD,South Glos Users in South Glos Homes,Permanent Nursing,Beech House,632.64, 05-Jun-2018
311,Revenue,CAHD,South Glos Users in South Glos Homes,Permanent Nursing,Beech House,632.64, 05-Jun-2018
312,Revenue,CAHD,South Glos Users in South Glos Homes,Permanent Nursing,Beech House,632.64, 05-Jun-2018
313,Revenue,CAHD,Bed Purchasing - Southmead Hospital,Permanent Residential,Beech House,3423.6, 05-Jun-2018
314,Revenue,CAHD,Bed Purchasing - Southmead Hospital,Fees & Charges Income - General,Beech House,1850.76, 05-Jun-2018
315,Revenue,CAHD,Bed Purchasing - Southmead Hospital,Fees & Charges Income - General,Beech House,1470, 05-Jun-2018
316,Revenue,CAHD,Bed Purchasing - Southmead Hospital,Fees & Charges Income - General,Beech House,808.87, 05-Jun-2018
317,Revenue,CAHD,Statemented Support Payments to OLAs,Other L.A.'s - General,Beechen Cliff School,718.49, 26-Jun-2018
318,Revenue,CAHD,Independent Special Placements - Pre 16,Other Private Contractors,Belgrave School,5295.33, 13-Jun-2018
319,Revenue,CAHD,Independent Special Placements - Pre 16,Other Private Contractors,Belgrave School,4012, 13-Jun-2018
320,Revenue,CAHD,Independent Special Placements - Pre 16,Other Private Contractors,Belgrave School,4678.67, 13-Jun-2018
321,Revenue,CAHD,Independent Special Placements - Pre 16,Other Private Contractors,Belgrave School,4318, 13-Jun-2018
322,Revenue,CAHD,Independent Special Placements - Post 16,Other Private Contractors,Belgrave School,6290, 13-Jun-2018
323,Revenue,CAHD,CSC - Care Leavers Support Costs,"Provisions (Food, etc)",Big Yellow Self Storage Company Limited,1753.01, 05-Jun-2018
324,Revenue,CAHD,Bed Purchasing - Southmead Hospital,Permanent Nursing,Blossom Field,4600, 05-Jun-2018
325,Revenue,CAHD,Bed Purchasing - Southmead Hospital,Permanent Nursing,Blossom Field,657.14, 05-Jun-2018
326,Revenue,CAHD,Bed purchasing - Elderly S117 - South,Permanent Nursing,Blossom Field,4259.2, 05-Jun-2018
327,Revenue,CAHD,South Glos Users in South Glos Homes,Permanent Nursing,Blossom Field,632.64, 05-Jun-2018
328,Revenue,CAHD,Bed Purchasing - North,Permanent Nursing,Blossom Field,3590.88, 05-Jun-2018
329,Revenue,CAHD,South Glos Users in South Glos Homes,Permanent Nursing,Blossom Field,632.64, 05-Jun-2018
330,Revenue,CAHD,Bed Purchasing - Elderly S117- North,Permanent Nursing,Blossom Field,3607, 05-Jun-2018
331,Revenue,CAHD,South Glos Users in South Glos Homes,Permanent Nursing,Blossom Field,632.64, 05-Jun-2018
332,Revenue,CAHD,South Glos Users in South Glos Homes,Permanent Nursing,Blossom Field,632.64, 05-Jun-2018
333,Revenue,CAHD,South Glos Users in South Glos Homes,Permanent Nursing,Blossom Field,632.64, 05-Jun-2018
334,Revenue,CAHD,South Glos Users in South Glos Homes,Permanent Nursing,Blossom Field,632.64, 05-Jun-2018
335,Revenue,CAHD,Bed Purchasing - North,Permanent Nursing,Blossom Field,4620, 05-Jun-2018
336,Revenue,CAHD,Bed Purchasing - North,Permanent Nursing,Blossom Field,3080, 05-Jun-2018
337,Revenue,CAHD,South Glos Users in South Glos Homes,Permanent Nursing,Blossom Field,632.64, 05-Jun-2018
338,Revenue,CAHD,South Glos Users in South Glos Homes,Permanent Nursing,Blossom Field,632.64, 05-Jun-2018
339,Revenue,CAHD,South Glos Users in South Glos Homes,Permanent Nursing,Blossom Field,632.64, 05-Jun-2018
340,Revenue,CAHD,South Glos Users in South Glos Homes,Permanent Nursing,Blossom Field,632.64, 05-Jun-2018
341,Revenue,CAHD,Bed Purchasing - North,Permanent Nursing,Blossom Field,15442.86, 05-Jun-2018
342,Revenue,CAHD,Bed Purchasing - North,Permanent Nursing,Blossom Field,14457.14, 05-Jun-2018
343,Revenue,CAHD,Bed Purchasing - North,Permanent Nursing,Blossom Field,7031.1, 05-Jun-2018
344,Revenue,CAHD,Bed Purchasing - North,Permanent Nursing,Blossom Field,1249.47, 05-Jun-2018
345,Revenue,CAHD,Bed Purchasing - North,Fees & Charges Income - General,Blossom Field,5503.64, 05-Jun-2018
346,Revenue,CAHD,Bed Purchasing - North,Fees & Charges Income - General,Blossom Field,4995.61, 05-Jun-2018
347,Revenue,CAHD,Bed Purchasing - North,Fees & Charges Income - General,Blossom Field,509.6, 05-Jun-2018
348,Revenue,CAHD,Bed Purchasing - North,Fees & Charges Income - General,Blossom Field,2370.8, 05-Jun-2018
349,Revenue,CAHD,Bed Purchasing - North,Fees & Charges Income - General,Blossom Field,3153.6, 05-Jun-2018
350,Revenue,CAHD,Bed Purchasing - North,Fees & Charges Income - General,Blossom Field,3712.8, 05-Jun-2018
351,Revenue,CAHD,South Glos Users in South Glos Homes,Permanent Nursing,Blossom Field,632.64, 05-Jun-2018
352,Revenue,CAHD,South Glos Users in South Glos Homes,Permanent Nursing,Blossom Field,632.64, 05-Jun-2018
353,Revenue,CAHD,Bed Purchasing - Southmead Hospital,Permanent Nursing,Blossom Field,4076, 05-Jun-2018
354,Revenue,CAHD,South Glos Users in South Glos Homes,Permanent Nursing,Blossom Field,632.64, 05-Jun-2018
355,Revenue,CAHD,Bed Purchasing - South,Permanent Nursing,Blossom Field,4309.64, 05-Jun-2018
356,Revenue,CAHD,South Glos Users in South Glos Homes,Permanent Nursing,Blossom Field,632.64, 05-Jun-2018
357,Revenue,CAHD,South Glos Users in South Glos Homes,Permanent Nursing,Blossom Field,632.64, 05-Jun-2018
358,Revenue,CAHD,South Glos Users in South Glos Homes,Permanent Nursing,Blossom Field,632.64, 05-Jun-2018
359,Revenue,CAHD,Bed Purchasing - Southmead Hospital,Permanent Nursing,Blossom Field,2550.45, 05-Jun-2018
360,Revenue,CAHD,Bed Purchasing - Southmead Hospital,Permanent Nursing,Blossom Field,991.84, 05-Jun-2018
361,Revenue,CAHD,Bed Purchasing - North,Permanent Nursing,Blossom Field,4687.4, 05-Jun-2018
362,Revenue,CAHD,Bed Purchasing - North,Fees & Charges Income - General,Blossom Field,603.9, 05-Jun-2018
363,Revenue,CAHD,South Glos Users in South Glos Homes,Permanent Nursing,Blossom Field,632.64, 05-Jun-2018
364,Revenue,CAHD,South Glos Users in South Glos Homes,Permanent Nursing,Blossom Field,632.64, 05-Jun-2018
365,Revenue,CAHD,South Glos Users in South Glos Homes,Permanent Nursing,Blossom Field,632.64, 05-Jun-2018
366,Revenue,CAHD,South Glos Users in South Glos Homes,Permanent Nursing,Blossom Field,632.64, 05-Jun-2018
367,Revenue,CAHD,Bed Purchasing - South,Permanent Nursing,Blossom Field,4587.56, 05-Jun-2018
368,Revenue,CAHD,South Glos Users in South Glos Homes,Permanent Nursing,Blossom Field,632.64, 05-Jun-2018
369,Revenue,CAHD,Bed Purchasing - North,Permanent Nursing,Blossom Field,4259.2, 05-Jun-2018
370,Revenue,CAHD,South Glos Users in South Glos Homes,Permanent Nursing,Blossom Field,632.64, 05-Jun-2018
371,Revenue,CAHD,Bed Purchasing - North,Permanent Nursing,Blossom Field,3896.72, 05-Jun-2018
372,Revenue,CAHD,South Glos Users in South Glos Homes,Permanent Nursing,Blossom Field,632.64, 05-Jun-2018
373,Revenue,CAHD,South Glos Users in South Glos Homes,Permanent Nursing,Blossom Field,632.64, 05-Jun-2018
374,Revenue,CAHD,Bed Purchasing - North,Permanent Nursing,Blossom Field,9240, 05-Jun-2018
375,Revenue,CAHD,Bed Purchasing - North,Permanent Nursing,Blossom Field,3080, 05-Jun-2018
376,Revenue,CAHD,South Glos Users in South Glos Homes,Permanent Nursing,Blossom Field,632.64, 05-Jun-2018
377,Revenue,CAHD,Bed Purchasing - North,Fees & Charges Income - General,Blossom Field,1222.03, 05-Jun-2018
378,Revenue,CAHD,Bed Purchasing - North,Permanent Nursing,Blossom Field,3549.76, 05-Jun-2018
379,Revenue,CAHD,South Glos Users in South Glos Homes,Permanent Nursing,Blossom Field,632.64, 05-Jun-2018
380,Revenue,CAHD,South Glos Users in South Glos Homes,Permanent Nursing,Blossom Field,632.64, 05-Jun-2018
381,Revenue,CAHD,CSC - Parent & Child Assessments,Foster Parent Allowances,Blue Sky Fostering Limited,6020, 15-Jun-2018
382,Revenue,CAHD,Home Care - Elderly - South,Other Small Contracts,Bluebird Care (South Gloucestershire),226.18, 05-Jun-2018
383,Revenue,CAHD,Home Care - Elderly - North,Other Small Contracts,Bluebird Care (South Gloucestershire),1315.84, 05-Jun-2018
384,Revenue,CAHD,Home Care - Elderly - South,Other Small Contracts,Bluebird Care (South Gloucestershire),210.4, 11-Jun-2018
385,Revenue,CAHD,Home Care - Elderly - North,Other Small Contracts,Bluebird Care (South Gloucestershire),1268.5, 11-Jun-2018
386,Revenue,CAHD,Home Care - Elderly - South,Other Small Contracts,Bluebird Care (South Gloucestershire),220.92, 19-Jun-2018
387,Revenue,CAHD,Home Care - Elderly - North,Other Small Contracts,Bluebird Care (South Gloucestershire),1328.42, 19-Jun-2018
388,Revenue,CAHD,Home Care - Elderly - South,Other Small Contracts,Bluebird Care (South Gloucestershire),210.4, 19-Jun-2018
389,Revenue,CAHD,Home Care - Elderly - North,Other Small Contracts,Bluebird Care (South Gloucestershire),1325.6, 19-Jun-2018
390,Revenue,CAHD,Home Care - Elderly - South,Other Small Contracts,Bluebird Care (South Gloucestershire),220.92, 19-Jun-2018
391,Revenue,CAHD,Home Care - Elderly - North,Other Small Contracts,Bluebird Care (South Gloucestershire),1346.26, 19-Jun-2018
392,Revenue,CAHD,Home Care - Elderly - South,Other Small Contracts,Bluebird Care (South Gloucestershire),220.92, 28-Jun-2018
393,Revenue,CAHD,Home Care - Elderly - North,Other Small Contracts,Bluebird Care (South Gloucestershire),1328.42, 28-Jun-2018
394,Revenue,CAHD,Home Care - Elderly - South,Other Small Contracts,Bluebird Care (South Gloucestershire),226.18, 28-Jun-2018
395,Revenue,CAHD,Home Care - Elderly - North,Other Small Contracts,Bluebird Care (South Gloucestershire),1336.12, 28-Jun-2018
396,Revenue,CAHD,Training - Adult Services,Training Expenses,Bob Dawson,1125, 15-Jun-2018
397,Revenue,CAHD,CSC - Vinney Green Secure Unit,"Provisions (Food, etc)",Booker Cash & Carry,449.51, 27-Jun-2018
398,Revenue,CAHD,Bed purchasing - S28A Under 65 - South,Permanent Residential,Bradbury House,4946.4, 05-Jun-2018
399,Revenue,CAHD,18-25 Year Olds,Permanent Residential,Bradbury House,9684.64, 05-Jun-2018
400,Revenue,CAHD,Bed Purchasing - North,Permanent Residential,Bradbury House,2751.32, 05-Jun-2018
401,Revenue,CAHD,Schools Specific Grant Income,Other Public Bodies,Branas ISAF Ltd,630, 29-Jun-2018
402,Revenue,CAHD,CSC - Residential Placements,Permanent Residential,Branas ISAF Ltd,19285.71, 19-Jun-2018
403,Revenue,CAHD,CSC - Residential Placements,Permanent Residential,Branas ISAF Ltd,19285.71, 15-Jun-2018
404,Revenue,CAHD,CSC - Residential Placements,Permanent Residential,Branas ISAF Ltd,19928.57, 25-Jun-2018
405,Revenue,CAHD,CSC - Residential Placements,Permanent Residential,Branas ISAF Ltd,21035.71, 25-Jun-2018
406,Revenue,CAHD,CSC - Residential Placements,Permanent Residential,Branas ISAF Ltd,19928.57, 25-Jun-2018
407,Revenue,CAHD,Drug and Alcohol Programme,Other Supplies & Services,Breaking Free Online Limited,12000, 27-Jun-2018
408,Revenue,CAHD,Social Lettings Agency,Fees - General,Individual,11.41, 01-Jun-2018
409,Revenue,CAHD,Social Lettings Agency,Other Supplies & Services,Individual,746.54, 01-Jun-2018
410,Revenue,CAHD,Bed Purchasing - Southmead Hospital,Permanent Residential,Bridge House Care Home,2469.12, 05-Jun-2018
411,Revenue,CAHD,Bed Purchasing - North,Permanent Residential,Bridge House Care Home,2427.4, 05-Jun-2018
412,Revenue,CAHD,Bed Purchasing - North,Respite Planned - Residential,Bridge House Care Home,650, 05-Jun-2018
413,Revenue,CAHD,Bed Purchasing - North,Fees & Charges Income - General,Bridge House Care Home,1083.96, 05-Jun-2018
414,Revenue,CAHD,Bed Purchasing - North,Permanent Residential,Bridge House Care Home,2233.44, 05-Jun-2018
415,Revenue,CAHD,Bed Purchasing - North,Permanent Residential,Bridgwater Court,10521.12, 05-Jun-2018
416,Revenue,CAHD,Early Years Inclusion Fund,Other Public Bodies,Bright Sparks,1067, 06-Jun-2018
417,Revenue,CAHD,Early Years High Needs Support,Other Private Contractors,Bright Sparks Pre-School,4733.63, 28-Jun-2018
418,Revenue,CAHD,Health Inequalities,Other Small Contracts,Bristol & Avon Chinese Womens Group,500, 29-Jun-2018
419,Revenue,CAHD,Statemented Support Academies,Schools Funding,Bristol & South Gloucestershire UTC,7298.24, 26-Jun-2018
420,Revenue,CAHD,Older People's Commissioned Se,Grants to Voluntary Bodies,Bristol Area Stroke Foundation,19052.75, 29-Jun-2018
421,Revenue,CAHD,Transport OLA Special Schools and RB,Client Transport,Bristol City Council,2588.76, 13-Jun-2018
422,Revenue,CAHD,Sexual Health,Other Small Contracts,Bristol City Council,236277.25, 06-Jun-2018
423,Revenue,CAHD,Placements OLA Special Schools and RB,Other L.A.'s - General,Bristol City Council - Schools,2050.17, 29-Jun-2018
424,Revenue,CAHD,Placements OLA Special Schools and RB,Other L.A.'s - General,Bristol City Council - Schools,2578, 29-Jun-2018
425,Revenue,CAHD,Placements OLA Special Schools and RB,Other L.A.'s - General,Bristol City Council - Schools,1350.17, 29-Jun-2018
426,Revenue,CAHD,Statemented Support Payments to OLAs,Other L.A.'s - General,Bristol City Council - Schools,1378.83, 26-Jun-2018
427,Revenue,CAHD,Schools Specific Grant Income,Other Public Bodies,Bristol City Council - Schools,630, 29-Jun-2018
428,Revenue,CAHD,Statemented Support Payments to OLAs,Other L.A.'s - General,Bristol City Council - Schools,1296.28, 26-Jun-2018
429,Revenue,CAHD,Placements OLA Special Schools and RB,Other L.A.'s - General,Bristol City Council - Schools,914.33, 29-Jun-2018
430,Revenue,CAHD,Placements OLA Special Schools and RB,Other L.A.'s - General,Bristol City Council - Schools,2578, 29-Jun-2018
431,Revenue,CAHD,Placements OLA Special Schools and RB,Other L.A.'s - General,Bristol City Council - Schools,1305.58, 29-Jun-2018
432,Revenue,CAHD,Placements OLA Special Schools and RB,Other L.A.'s - General,Bristol City Council - Schools,1244.17, 29-Jun-2018
433,Revenue,CAHD,Placements OLA Special Schools and RB,Other L.A.'s - General,Bristol City Council - Schools,3356.33, 29-Jun-2018
434,Revenue,CAHD,Statemented Support Payments to OLAs,Other L.A.'s - General,Bristol City Council - Schools,907.16, 26-Jun-2018
435,Revenue,CAHD,Placements OLA Special Schools and RB,Other L.A.'s - General,Bristol City Council - Schools,2578, 29-Jun-2018
436,Revenue,CAHD,Placements OLA Special Schools and RB,Other L.A.'s - General,Bristol City Council - Schools,1381, 29-Jun-2018
437,Revenue,CAHD,Placements OLA Special Schools and RB,Other L.A.'s - General,Bristol City Council - Schools,2050.17, 29-Jun-2018
438,Revenue,CAHD,Placements OLA Special Schools and RB,Other L.A.'s - General,Bristol City Council - Schools,914.33, 29-Jun-2018
439,Revenue,CAHD,Placements OLA Special Schools and RB,Other L.A.'s - General,Bristol City Council - Schools,1381, 29-Jun-2018
440,Revenue,CAHD,Placements OLA Special Schools and RB,Other L.A.'s - General,Bristol City Council - Schools,2050.17, 29-Jun-2018
441,Revenue,CAHD,Placements OLA Special Schools and RB,Other L.A.'s - General,Bristol City Council - Schools,2578, 29-Jun-2018
442,Revenue,CAHD,Placements OLA Special Schools and RB,Other L.A.'s - General,Bristol City Council - Schools,809, 29-Jun-2018
443,Revenue,CAHD,Placements OLA Special Schools and RB,Other L.A.'s - General,Bristol City Council - Schools,883.5, 29-Jun-2018
444,Revenue,CAHD,Placements OLA Special Schools and RB,Other L.A.'s - General,Bristol City Council - Schools,4107.54, 29-Jun-2018
445,Revenue,CAHD,Placements OLA Special Schools and RB,Other L.A.'s - General,Bristol City Council - Schools,1031.2, 29-Jun-2018
446,Revenue,CAHD,Placements OLA Special Schools and RB,Other L.A.'s - General,Bristol City Council - Schools,2578, 29-Jun-2018
447,Revenue,CAHD,Placements OLA Special Schools and RB,Other L.A.'s - General,Bristol City Council - Schools,809, 29-Jun-2018
448,Revenue,CAHD,Placements OLA Special Schools and RB,Other L.A.'s - General,Bristol City Council - Schools,2578, 29-Jun-2018
449,Revenue,CAHD,Placements OLA Special Schools and RB,Other L.A.'s - General,Bristol City Council - Schools,883.5, 29-Jun-2018
450,Revenue,CAHD,Placements OLA Special Schools and RB,Other L.A.'s - General,Bristol City Council - Schools,2062.4, 29-Jun-2018
451,Revenue,CAHD,Placements OLA Special Schools and RB,Other L.A.'s - General,Bristol City Council - Schools,2578, 29-Jun-2018
452,Revenue,CAHD,Placements OLA Special Schools and RB,Other L.A.'s - General,Bristol City Council - Schools,2859.33, 29-Jun-2018
453,Revenue,CAHD,Placements OLA Special Schools and RB,Other L.A.'s - General,Bristol City Council - Schools,883.5, 29-Jun-2018
454,Revenue,CAHD,Home Care - Elderly - North,Day Care / Social Activities,Bristol Community Links North,1015.2, 05-Jun-2018
455,Revenue,CAHD,CSC - Vinney Green Secure Unit,R & M by Departments,Bristol Electrical Wholesale Limited,693, 07-Jun-2018
456,Revenue,CAHD,Home Care - Elderly - South,Day Care / Social Activities,Bristol Houses UK Limited,710.4, 20-Jun-2018
457,Revenue,CAHD,CSC - Asylum Seekers - Unaccompanied,Lecturers (P/T Claims) Pay,Bristol Tuition Limited,1140, 11-Jun-2018
458,Revenue,CAHD,CSC - Asylum Seekers - Unaccompanied,Lecturers (P/T Claims) Pay,Bristol Tuition Limited,2502, 12-Jun-2018
459,Revenue,CAHD,Schools Specific Grant Income,Other Supplies & Services,Bristol Tuition Limited,6004, 29-Jun-2018
460,Revenue,CAHD,Statemented Support Payments to OLAs,Other L.A.'s - General,Broadlands Academy,1331.66, 26-Jun-2018
461,Revenue,CAHD,Health Inequalities,Other Small Contracts,Bruce Whitear,500, 29-Jun-2018
462,Revenue,CAHD,SLA Grants - Support Serv,Grants to Voluntary Bodies,Bruce Whitear,500, 29-Jun-2018
463,Revenue,CAHD,South Glos Users in South Glos Homes,Permanent Nursing,Brunelcare,700.42, 19-Jun-2018
464,Revenue,CAHD,Bed Purchasing - North,Permanent Nursing,Brunelcare,2929.99, 19-Jun-2018
465,Revenue,CAHD,South Glos Users in South Glos Homes,Permanent Nursing,Brunelcare,700.42, 19-Jun-2018
466,Revenue,CAHD,Bed Purchasing - Southmead Hospital,Permanent Nursing,Brunelcare,2415.56, 19-Jun-2018
467,Revenue,CAHD,South Glos Users in South Glos Homes,Permanent Nursing,Brunelcare,700.42, 19-Jun-2018
468,Revenue,CAHD,Bed Purchasing - Elderly S117- North,Permanent Nursing,Brunelcare,3583.11, 19-Jun-2018
469,Revenue,CAHD,Bed Purchasing - South,Permanent Nursing,Brunelcare,2971.53, 19-Jun-2018
470,Revenue,CAHD,South Glos Users in South Glos Homes,Permanent Nursing,Brunelcare,700.42, 19-Jun-2018
471,Revenue,CAHD,Bed Purchasing - Elderly S117- North,Permanent Nursing,Brunelcare,3583.11, 19-Jun-2018
472,Revenue,CAHD,South Glos Users in South Glos Homes,Permanent Nursing,Brunelcare,700.42, 19-Jun-2018
473,Revenue,CAHD,Bed Purchasing - South,Permanent Nursing,Brunelcare,2615.87, 19-Jun-2018
474,Revenue,CAHD,Bed Purchasing - South,Permanent Nursing,Brunelcare,3178.11, 19-Jun-2018
475,Revenue,CAHD,Bed purchasing - Elderly S117 - South,Permanent Nursing,Brunelcare,1105.43, 19-Jun-2018
476,Revenue,CAHD,South Glos Users in South Glos Homes,Permanent Nursing,Brunelcare,700.42, 19-Jun-2018
477,Revenue,CAHD,Bed Purchasing - South,Permanent Nursing,Brunelcare,2769.19, 19-Jun-2018
478,Revenue,CAHD,South Glos Users in South Glos Homes,Permanent Nursing,Brunelcare,700.42, 19-Jun-2018
479,Revenue,CAHD,Bed purchasing - Elderly S117 - South,Permanent Nursing,Brunelcare,3583.11, 19-Jun-2018
480,Revenue,CAHD,South Glos Users in South Glos Homes,Permanent Nursing,Brunelcare,700.42, 19-Jun-2018
481,Revenue,CAHD,Bed Purchasing - North,Permanent Nursing,Brunelcare,2884.46, 19-Jun-2018
482,Revenue,CAHD,Bed Purchasing - South,Permanent Nursing,Brunelcare,3002.53, 19-Jun-2018
483,Revenue,CAHD,Bed purchasing - Elderly S117 - South,Permanent Nursing,Brunelcare,2889.61, 19-Jun-2018
484,Revenue,CAHD,South Glos Users in South Glos Homes,Permanent Nursing,Brunelcare,700.42, 19-Jun-2018
485,Revenue,CAHD,Bed Purchasing - North,Permanent Nursing,Brunelcare,2971.53, 19-Jun-2018
486,Revenue,CAHD,South Glos Users in South Glos Homes,Permanent Nursing,Brunelcare,700.42, 19-Jun-2018
487,Revenue,CAHD,Bed Purchasing - Southmead Hospital,Permanent Nursing,Brunelcare,2971.53, 19-Jun-2018
488,Revenue,CAHD,Bed Purchasing - South,Permanent Nursing,Brunelcare,862.7, 19-Jun-2018
489,Revenue,CAHD,South Glos Users in South Glos Homes,Permanent Nursing,Brunelcare,700.42, 19-Jun-2018
490,Revenue,CAHD,Bed Purchasing - North,Permanent Nursing,Brunelcare,3583.11, 19-Jun-2018
491,Revenue,CAHD,Enhanced Dementia Beds,Respite Planned - Nursing,Brunelcare,3460.71, 19-Jun-2018
492,Revenue,CAHD,Bed Purchasing - South,Respite Planned - Nursing,Brunelcare,829.07, 19-Jun-2018
493,Revenue,CAHD,Bed Purchasing - North,Respite Planned - Nursing,Brunelcare,924.67, 19-Jun-2018
494,Revenue,CAHD,Bed Purchasing - South,Respite Planned - Nursing,Brunelcare,924.67, 19-Jun-2018
495,Revenue,CAHD,Bed Purchasing - South,Respite Planned - Nursing,Brunelcare,552.71, 19-Jun-2018
496,Revenue,CAHD,Bed Purchasing - South,Respite Planned - Nursing,Brunelcare,567.14, 19-Jun-2018
497,Revenue,CAHD,Enhanced Dementia Beds,Respite Planned - Nursing,Brunelcare,830.57, 19-Jun-2018
498,Revenue,CAHD,Bed Purchasing - Southmead Hospital,Permanent Nursing,Brunelcare,3039.93, 19-Jun-2018
499,Revenue,CAHD,Pathway 2 - (Interim Beds),Permanent Nursing,Brunelcare,52734, 15-Jun-2018
500,Revenue,CAHD,Pathway 2 - (Interim Beds),Permanent Nursing,Brunelcare,17511, 15-Jun-2018
501,Revenue,CAHD,Home Care - Elderly - South,Other Small Contracts,Brunelcare,9814.35, 13-Jun-2018
502,Revenue,CAHD,Home Care - Elderly - North,Other Small Contracts,Brunelcare,1374.1, 13-Jun-2018
503,Revenue,CAHD,Home Care - Elderly - South,Day Care / Social Activities,Brunelcare,72.8, 20-Jun-2018
504,Revenue,CAHD,Home Care - Elderly - South,Other Small Contracts,Brunelcare,12098.45, 20-Jun-2018
505,Revenue,CAHD,Home Care - Elderly - North,Other Small Contracts,Brunelcare,2061.15, 20-Jun-2018
506,Revenue,CAHD,Home Care - Elderly - South,Day Care / Social Activities,Brunelcare,150.15, 26-Jun-2018
507,Revenue,CAHD,Home Care - Elderly - South,Other Small Contracts,Brunelcare,13586.3, 26-Jun-2018
508,Revenue,CAHD,Home Care - Elderly - North,Other Small Contracts,Brunelcare,2507.05, 26-Jun-2018
509,Revenue,CAHD,Pathway 1 - Re-Ablement Home Care,Other Small Contracts,Brunelcare,2302.3, 05-Jun-2018
510,Revenue,CAHD,Pathway 1 - Re-Ablement Home Care,Other Small Contracts,Brunelcare,2056.6, 06-Jun-2018
511,Revenue,CAHD,Bed Purchasing - North,Permanent Nursing,Bupa Care Services  Bridge House,1796.12, 05-Jun-2018
512,Revenue,CAHD,Jointly Funded H&SC Packages,Permanent Nursing,Bupa Care Services  Bridge House,4484.08, 05-Jun-2018
513,Revenue,CAHD,South Glos Users in all other LA Homes,Permanent Nursing,Bupa Care Services  Bridge House,870.36, 05-Jun-2018
514,Revenue,CAHD,CSC - Vinney Green Secure Unit,R & M by Departments,BWS Standfast Fire & Security Systems,1609, 29-Jun-2018
515,Revenue,CAHD,Statemented Support Academies,Other Public Bodies,Cabot Learning Federation,7765, 19-Jun-2018
516,Revenue,CAHD,Statemented Support Academies,Other Public Bodies,Cabot Learning Federation,5308.75, 19-Jun-2018
517,Revenue,CAHD,Academy Resource Base Funding,Other Public Bodies,Cabot Learning Federation,1137.95, 22-Jun-2018
518,Revenue,CAHD,Academy Resource Base Funding,Other Public Bodies,Cabot Learning Federation,1491.12, 22-Jun-2018
519,Revenue,CAHD,Academy Resource Base Funding,Other Public Bodies,Cabot Learning Federation,1648.03, 22-Jun-2018
520,Revenue,CAHD,Academy Resource Base Funding,Other Public Bodies,Cabot Learning Federation,1137.95, 22-Jun-2018
521,Revenue,CAHD,Academy Resource Base Funding,Other Public Bodies,Cabot Learning Federation,1491.12, 22-Jun-2018
522,Revenue,CAHD,Academy Resource Base Funding,Other Public Bodies,Cabot Learning Federation,1137.95, 22-Jun-2018
523,Revenue,CAHD,Academy Resource Base Funding,Other Public Bodies,Cabot Learning Federation,1491.12, 22-Jun-2018
524,Revenue,CAHD,Academy Resource Base Funding,Other Public Bodies,Cabot Learning Federation,1137.95, 22-Jun-2018
525,Revenue,CAHD,Academy Resource Base Funding,Other Public Bodies,Cabot Learning Federation,627.78, 22-Jun-2018
526,Revenue,CAHD,Academy Resource Base Funding,Other Public Bodies,Cabot Learning Federation,1648.03, 22-Jun-2018
527,Revenue,CAHD,Academy Resource Base Funding,Other Public Bodies,Cabot Learning Federation,1491.12, 22-Jun-2018
528,Revenue,CAHD,Academy Resource Base Funding,Other Public Bodies,Cabot Learning Federation,863.26, 22-Jun-2018
529,Revenue,CAHD,Statemented Support Academies,Other Public Bodies,Cabot Learning Federation,39691.25, 19-Jun-2018
530,Revenue,CAHD,Schools Specific Grant Income,Other Public Bodies,Cabot Learning Federation,630, 29-Jun-2018
531,Revenue,CAHD,Schools Specific Grant Income - from OLA,Other Public Bodies,Cabot Learning Federation,633.33, 26-Jun-2018
532,Revenue,CAHD,Schools Specific Grant Income,Other Public Bodies,Cabot Learning Federation,630, 29-Jun-2018
533,Revenue,CAHD,Schools Specific Grant Income,Other Public Bodies,Cabot Learning Federation,630, 29-Jun-2018
534,Revenue,CAHD,Schools Specific Grant Income,Other Public Bodies,Cabot Learning Federation,630, 29-Jun-2018
535,Revenue,CAHD,Schools Specific Grant Income - from OLA,Other Public Bodies,Cabot Learning Federation,3799.98, 26-Jun-2018
536,Revenue,CAHD,Schools Specific Grant Income,Other Public Bodies,Cabot Learning Federation,630, 29-Jun-2018
537,Revenue,CAHD,Schools Specific Grant Income,Other Public Bodies,Cabot Learning Federation,630, 29-Jun-2018
538,Revenue,CAHD,Schools Specific Grant Income,Other Public Bodies,Cabot Learning Federation,630, 29-Jun-2018
539,Revenue,CAHD,Schools Specific Grant Income,Other Public Bodies,Cabot Learning Federation,630, 29-Jun-2018
540,Revenue,CAHD,Schools Specific Grant Income,Other Public Bodies,Cabot Learning Federation,630, 29-Jun-2018
541,Revenue,CAHD,Schools Specific Grant Income,Other Public Bodies,Cabot Learning Federation,630, 29-Jun-2018
542,Revenue,CAHD,Schools Specific Grant Income - from OLA,Other Public Bodies,Cabot Learning Federation,1266.66, 26-Jun-2018
543,Revenue,CAHD,Statemented Support Payments to OLAs,Other L.A.'s - General,Cabot Learning Federation,518.03, 26-Jun-2018
544,Revenue,CAHD,Statemented Support Academies,Schools Funding,Cabot Learning Federation,706.7, 26-Jun-2018
545,Revenue,CAHD,Statemented Support Academies,Schools Funding,Cabot Learning Federation,753.87, 26-Jun-2018
546,Revenue,CAHD,Statemented Support Academies,Schools Funding,Cabot Learning Federation,659.53, 26-Jun-2018
547,Revenue,CAHD,Statemented Support Academies,Schools Funding,Cabot Learning Federation,706.7, 26-Jun-2018
548,Revenue,CAHD,Statemented Support Academies,Schools Funding,Cabot Learning Federation,988.9, 26-Jun-2018
549,Revenue,CAHD,Statemented Support Academies,Schools Funding,Cabot Learning Federation,518.03, 26-Jun-2018
550,Revenue,CAHD,Statemented Support Academies,Schools Funding,Cabot Learning Federation,836.41, 26-Jun-2018
551,Revenue,CAHD,Statemented Support Academies,Schools Funding,Cabot Learning Federation,553.41, 26-Jun-2018
552,Revenue,CAHD,Statemented Support Academies,Schools Funding,Cabot Learning Federation,553.41, 26-Jun-2018
553,Revenue,CAHD,Statemented Support Academies,Schools Funding,Cabot Learning Federation,576.99, 26-Jun-2018
554,Revenue,CAHD,Statemented Support Academies,Schools Funding,Cabot Learning Federation,753.87, 26-Jun-2018
555,Revenue,CAHD,Statemented Support Academies,Schools Funding,Cabot Learning Federation,954.33, 26-Jun-2018
556,Revenue,CAHD,Statemented Support Academies,Schools Funding,Cabot Learning Federation,706.7, 26-Jun-2018
557,Revenue,CAHD,Statemented Support Academies,Schools Funding,Cabot Learning Federation,553.41, 26-Jun-2018
558,Revenue,CAHD,Statemented Support Academies,Schools Funding,Cabot Learning Federation,694.91, 26-Jun-2018
559,Revenue,CAHD,Statemented Support Academies,Schools Funding,Cabot Learning Federation,529.83, 26-Jun-2018
560,Revenue,CAHD,Statemented Support Academies,Schools Funding,Cabot Learning Federation,883.58, 26-Jun-2018
561,Revenue,CAHD,Statemented Support Academies,Schools Funding,Cabot Learning Federation,694.91, 26-Jun-2018
562,Revenue,CAHD,Statemented Support Academies,Schools Funding,Cabot Learning Federation,1084.03, 26-Jun-2018
563,Revenue,CAHD,Statemented Support Academies,Schools Funding,Cabot Learning Federation,954.33, 26-Jun-2018
564,Revenue,CAHD,Statemented Support Payments to OLAs,Other L.A.'s - General,Cabot Learning Federation,600.58, 26-Jun-2018
565,Revenue,CAHD,Statemented Support Academies,Schools Funding,Cabot Learning Federation,859.99, 26-Jun-2018
566,Revenue,CAHD,Statemented Support Academies,Schools Funding,Cabot Learning Federation,600.58, 26-Jun-2018
567,Revenue,CAHD,Statemented Support Academies,Schools Funding,Cabot Learning Federation,1048.66, 26-Jun-2018
568,Revenue,CAHD,Statemented Support Academies,Schools Funding,Cabot Learning Federation,506.24, 26-Jun-2018
569,Revenue,CAHD,Statemented Support Academies,Schools Funding,Cabot Learning Federation,1048.66, 26-Jun-2018
570,Revenue,CAHD,Statemented Support Payments to OLAs,Other L.A.'s - General,Cabot Learning Federation,600.58, 26-Jun-2018
571,Revenue,CAHD,Statemented Support Payments to OLAs,Other L.A.'s - General,Cabot Learning Federation,1072.24, 26-Jun-2018
572,Revenue,CAHD,Statemented Support Payments to OLAs,Other L.A.'s - General,Cabot Learning Federation,588.78, 26-Jun-2018
573,Revenue,CAHD,Statemented Support Academies,Schools Funding,Cabot Learning Federation,918.95, 26-Jun-2018
574,Revenue,CAHD,Tobacco Control,Other Small Contracts,Cadbury Heath Healthcare,5308.1, 08-Jun-2018
575,Revenue,CAHD,Post 16 High Needs Placements,Other Private Contractors,Cambian Whinfell School Limited,26930.15, 12-Jun-2018
576,Revenue,CAHD,Post 16 High Needs Placements,Other Private Contractors,Cambian Whinfell School Limited,27747.77, 12-Jun-2018
577,Revenue,CAHD,Post 16 High Needs Placements,Other Private Contractors,Cambian Whinfell School Limited,24334.63, 12-Jun-2018
578,Revenue,CAHD,CSC - Residential Placements,Permanent Residential,Cambian Whinfell School Limited,27263.89, 12-Jun-2018
579,Revenue,CAHD,Post 16 High Needs Placements,Other Private Contractors,Cambian Whinfell School Limited,749.03, 12-Jun-2018
580,Revenue,CAHD,Post 16 High Needs Placements,Other Private Contractors,Cambian Whinfell School Limited,28867.27, 12-Jun-2018
581,Revenue,CAHD,Post 16 High Needs Placements,Other Private Contractors,Cambian Whinfell School Limited,28734.89, 12-Jun-2018
582,Revenue,CAHD,Post 16 High Needs Placements,Other Private Contractors,Cambian Whinfell School Limited,37806.37, 12-Jun-2018
583,Revenue,CAHD,CSC - Residential Placements,Permanent Residential,Cambian Whinfell School Limited,48238.15, 07-Jun-2018
584,Revenue,CAHD,Post 16 High Needs Placements,Other Private Contractors,Cambian Whinfell School Limited,15657.35, 07-Jun-2018
585,Revenue,CAHD,Cambrian Green Day Service,Catering - Client Meals/Pupil Sch. Meals,Cambrian Court Dining,511.5, 26-Jun-2018
586,Revenue,CAHD,Cambrian Green Day Service,Catering - Client Meals/Pupil Sch. Meals,Cambrian Court Dining,528, 25-Jun-2018
587,Revenue,CAHD,Home Care - Elderly - North,Day Care / Social Activities,Camphill Communities Thornbury Limited,826.28, 01-Jun-2018
588,Revenue,CAHD,Home Care - Elderly - North,Other Small Contracts,Camphill Communities Thornbury Limited,163.44, 01-Jun-2018
589,Revenue,CAHD,Home Care - Elderly - North,Supported Living,Camphill Communities Thornbury Limited,885.3, 01-Jun-2018
590,Revenue,CAHD,Home Care - Elderly - North,Day Care / Social Activities,Camphill Communities Thornbury Limited,1116.84, 08-Jun-2018
591,Revenue,CAHD,Home Care - Elderly - North,Other Small Contracts,Camphill Communities Thornbury Limited,163.44, 08-Jun-2018
592,Revenue,CAHD,Home Care - Elderly - North,Supported Living,Camphill Communities Thornbury Limited,835.36, 08-Jun-2018
593,Revenue,CAHD,Home Care - Elderly - North,Day Care / Social Activities,Camphill Communities Thornbury Limited,1053.28, 15-Jun-2018
594,Revenue,CAHD,Home Care - Elderly - North,Other Small Contracts,Camphill Communities Thornbury Limited,163.44, 15-Jun-2018
595,Revenue,CAHD,Home Care - Elderly - North,Supported Living,Camphill Communities Thornbury Limited,939.78, 15-Jun-2018
596,Revenue,CAHD,Home Care - Elderly - North,Day Care / Social Activities,Camphill Communities Thornbury Limited,1094.14, 22-Jun-2018
597,Revenue,CAHD,Home Care - Elderly - North,Other Small Contracts,Camphill Communities Thornbury Limited,163.44, 22-Jun-2018
598,Revenue,CAHD,Home Care - Elderly - North,Supported Living,Camphill Communities Thornbury Limited,998.8, 22-Jun-2018
599,Revenue,CAHD,Home Care - Elderly - North,Day Care / Social Activities,Camphill Communities Thornbury Limited,921.62, 29-Jun-2018
600,Revenue,CAHD,Home Care - Elderly - North,Other Small Contracts,Camphill Communities Thornbury Limited,167.98, 29-Jun-2018
601,Revenue,CAHD,Home Care - Elderly - North,Supported Living,Camphill Communities Thornbury Limited,1007.88, 29-Jun-2018
602,Revenue,CAHD,Bed Purchasing - Elderly S117- North,Permanent Residential,Canjayor,2468.44, 05-Jun-2018
603,Revenue,CAHD,Information Systems - Software,Software Support & Maintenance,Capita Business Services Limited,10049.33, 06-Jun-2018
604,Revenue,CAHD,Information Systems - Software,Software Support & Maintenance,Capita Business Services Limited,10049.33, 06-Jun-2018
605,Revenue,CAHD,Information Systems - Software,Software Support & Maintenance,Capita Business Services Limited,22293.12, 13-Jun-2018
606,Revenue,CAHD,CSC - Agency Fostering,Foster Parent Allowances,Capstone Foster Care (South West) Limited,3517.37, 29-Jun-2018
607,Revenue,CAHD,CSC - Agency Fostering,Foster Parent Allowances,Capstone Foster Care (South West) Limited,3385.8, 29-Jun-2018
608,Revenue,CAHD,CSC - Agency Fostering,Foster Parent Allowances,Capstone Foster Care (South West) Limited,3385.8, 29-Jun-2018
609,Revenue,CAHD,CSC - Agency Fostering,Foster Parent Allowances,Capstone Foster Care (South West) Limited,3517.37, 29-Jun-2018
610,Revenue,CAHD,CSC - OT Equipment - Children,Daily Living Equipment,Care & Independence Ltd,492.5, 08-Jun-2018
611,Revenue,CAHD,Home Care - Elderly - South,Other Small Contracts,Care 1st Homecare,2343.45, 20-Jun-2018
612,Revenue,CAHD,Home Care - Elderly - North,Other Small Contracts,Care 1st Homecare,1640.63, 20-Jun-2018
613,Revenue,CAHD,Younger MH non-res purchasing,Other Small Contracts,Care 1st Homecare,91.4, 20-Jun-2018
614,Revenue,CAHD,Home Care - Elderly - South,Other Small Contracts,Care 1st Homecare,2234.16, 20-Jun-2018
615,Revenue,CAHD,Home Care - Elderly - North,Other Small Contracts,Care 1st Homecare,1229.33, 20-Jun-2018
616,Revenue,CAHD,Younger MH non-res purchasing,Other Small Contracts,Care 1st Homecare,109.68, 20-Jun-2018
617,Revenue,CAHD,Home Care - Elderly - South,Other Small Contracts,Care 1st Homecare,2224.63, 28-Jun-2018
618,Revenue,CAHD,Home Care - Elderly - North,Other Small Contracts,Care 1st Homecare,1192.77, 28-Jun-2018
619,Revenue,CAHD,Younger MH non-res purchasing,Other Small Contracts,Care 1st Homecare,127.96, 28-Jun-2018
620,Revenue,CAHD,Home Care - Elderly - South,Other Small Contracts,Care 1st Homecare,2198.38, 28-Jun-2018
621,Revenue,CAHD,Home Care - Elderly - North,Other Small Contracts,Care 1st Homecare,1229.33, 28-Jun-2018
622,Revenue,CAHD,Younger MH non-res purchasing,Other Small Contracts,Care 1st Homecare,132.53, 28-Jun-2018
623,Revenue,CAHD,Home Care - Elderly - South,Other Small Contracts,Care 1st Homecare,2075.77, 28-Jun-2018
624,Revenue,CAHD,Home Care - Elderly - North,Other Small Contracts,Care 1st Homecare,1165.35, 28-Jun-2018
625,Revenue,CAHD,Younger MH non-res purchasing,Other Small Contracts,Care 1st Homecare,127.96, 28-Jun-2018
626,Revenue,CAHD,Home Care - Elderly - South,Other Small Contracts,Care 1st Homecare,2056.71, 28-Jun-2018
627,Revenue,CAHD,Home Care - Elderly - North,Other Small Contracts,Care 1st Homecare,1188.2, 28-Jun-2018
628,Revenue,CAHD,Younger MH non-res purchasing,Other Small Contracts,Care 1st Homecare,132.53, 28-Jun-2018
629,Revenue,CAHD,Home Care - Elderly - South,Other Small Contracts,Care 1st Homecare,1791.1, 28-Jun-2018
630,Revenue,CAHD,Home Care - Elderly - North,Other Small Contracts,Care 1st Homecare,1137.93, 28-Jun-2018
631,Revenue,CAHD,Younger MH non-res purchasing,Other Small Contracts,Care 1st Homecare,127.96, 28-Jun-2018
632,Revenue,CAHD,18-25 Year Olds,Other Small Contracts,Care Horizons Limited,188.4, 06-Jun-2018
633,Revenue,CAHD,Home Care - Elderly - South,Other Small Contracts,Care Horizons Limited,899.61, 06-Jun-2018
634,Revenue,CAHD,Home Care - Elderly - North,Day Care / Social Activities,Care Horizons Limited,395.64, 06-Jun-2018
635,Revenue,CAHD,Home Care - Elderly - North,Other Small Contracts,Care Horizons Limited,296.73, 06-Jun-2018
636,Revenue,CAHD,Younger MH non-res purchasing,Other Small Contracts,Care Horizons Limited,150.72, 06-Jun-2018
637,Revenue,CAHD,18-25 Year Olds,Other Small Contracts,Care Horizons Limited,188.4, 19-Jun-2018
638,Revenue,CAHD,Home Care - Elderly - South,Other Small Contracts,Care Horizons Limited,569.91, 19-Jun-2018
639,Revenue,CAHD,Home Care - Elderly - North,Day Care / Social Activities,Care Horizons Limited,357.96, 19-Jun-2018
640,Revenue,CAHD,Home Care - Elderly - North,Other Small Contracts,Care Horizons Limited,249.63, 19-Jun-2018
641,Revenue,CAHD,Younger MH non-res purchasing,Other Small Contracts,Care Horizons Limited,235.5, 19-Jun-2018
642,Revenue,CAHD,18-25 Year Olds,Other Small Contracts,Care Horizons Limited,188.4, 19-Jun-2018
643,Revenue,CAHD,Home Care - Elderly - South,Other Small Contracts,Care Horizons Limited,913.74, 19-Jun-2018
644,Revenue,CAHD,Home Care - Elderly - North,Day Care / Social Activities,Care Horizons Limited,386.22, 19-Jun-2018
645,Revenue,CAHD,Home Care - Elderly - North,Other Small Contracts,Care Horizons Limited,320.28, 19-Jun-2018
646,Revenue,CAHD,Younger MH non-res purchasing,Other Small Contracts,Care Horizons Limited,160.14, 19-Jun-2018
647,Revenue,CAHD,18-25 Year Olds,Other Small Contracts,Care Horizons Limited,178.98, 26-Jun-2018
648,Revenue,CAHD,Home Care - Elderly - South,Other Small Contracts,Care Horizons Limited,913.74, 26-Jun-2018
649,Revenue,CAHD,Home Care - Elderly - North,Day Care / Social Activities,Care Horizons Limited,376.8, 26-Jun-2018
650,Revenue,CAHD,Home Care - Elderly - North,Other Small Contracts,Care Horizons Limited,320.28, 26-Jun-2018
651,Revenue,CAHD,Younger MH non-res purchasing,Other Small Contracts,Care Horizons Limited,221.37, 26-Jun-2018
652,Revenue,CAHD,SLA Grants - Support Serv,Grants to Voluntary Bodies,Carers Support Centre,12275, 29-Jun-2018
653,Revenue,CAHD,SLA Grants - Support Serv,Grants to Voluntary Bodies,Carers Support Centre,25275, 29-Jun-2018
654,Revenue,CAHD,Health Inequalities,Other Small Contracts,Carers Support Centre,60477, 29-Jun-2018
655,Revenue,CAHD,Home Care - Elderly - South,Other Small Contracts,Caring Comes 1st Ltd,2064.6, 20-Jun-2018
656,Revenue,CAHD,Home Care - Elderly - South,Other Small Contracts,Caring Comes 1st Ltd,1110, 15-Jun-2018
657,Revenue,CAHD,Home Care - Elderly - South,Other Small Contracts,Caring Comes 1st Ltd,1398.6, 21-Jun-2018
658,Revenue,CAHD,Home Care - Elderly - South,Other Small Contracts,Caring Comes 1st Ltd,532.8, 26-Jun-2018
659,Revenue,CAHD,Home Care - Elderly - South,Other Small Contracts,Caring Comes 1st Ltd,1531.8, 04-Jun-2018
660,Revenue,CAHD,Home Care - Elderly - North,Other Small Contracts,Caring Comes 1st Ltd,1087.8, 20-Jun-2018
661,Revenue,CAHD,Home Care - Elderly - South,Other Small Contracts,Caring Comes 1st Ltd,1381.95, 04-Jun-2018
662,Revenue,CAHD,Home Care - Elderly - South,Other Small Contracts,Caring Comes 1st Ltd,1221, 20-Jun-2018
663,Revenue,CAHD,Home Care - Elderly - South,Other Small Contracts,Caring Comes 1st Ltd,3152.4, 20-Jun-2018
664,Revenue,CAHD,Home Care - Elderly - South,Other Small Contracts,Caring Comes 1st Ltd,932.4, 20-Jun-2018
665,Revenue,CAHD,Home Care - Elderly - South,Other Small Contracts,Caring Comes 1st Ltd,1165.5, 26-Jun-2018
666,Revenue,CAHD,Home Care - Elderly - South,Other Small Contracts,Caring Comes 1st Ltd,932.4, 19-Jun-2018
667,Revenue,CAHD,Home Care - Elderly - South,Other Small Contracts,Caring Comes 1st Ltd,666, 04-Jun-2018
668,Revenue,CAHD,Home Care - Elderly - South,Other Small Contracts,Caring Comes 1st Ltd,1554, 25-Jun-2018
669,Revenue,CAHD,Home Care - Elderly - South,Other Small Contracts,Caring Comes 1st Ltd,1187.7, 19-Jun-2018
670,Revenue,CAHD,Home Care - Elderly - South,Other Small Contracts,Caring Comes 1st Ltd,838.05, 29-Jun-2018
671,Revenue,CAHD,CSC - Adoption Support Fund,Post Adoption,Carly Kingswood,697.5, 08-Jun-2018
672,Revenue,CAHD,Statemented Support Academies,Schools Funding,Castle School Education Trust,659.53, 26-Jun-2018
673,Revenue,CAHD,Statemented Support Academies,Schools Funding,Castle School Education Trust,635.95, 26-Jun-2018
674,Revenue,CAHD,Statemented Support Academies,Schools Funding,Castle School Education Trust,918.95, 26-Jun-2018
675,Revenue,CAHD,Statemented Support Academies,Schools Funding,Castle School Education Trust,1072.24, 26-Jun-2018
676,Revenue,CAHD,Statemented Support Academies,Schools Funding,Castle School Education Trust,683.12, 26-Jun-2018
677,Revenue,CAHD,Statemented Support Academies,Schools Funding,Castle School Education Trust,1602.87, 26-Jun-2018
678,Revenue,CAHD,Statemented Support Academies,Schools Funding,Castle School Education Trust,1142.99, 26-Jun-2018
679,Revenue,CAHD,Statemented Support Academies,Schools Funding,Castle School Education Trust,1260.91, 26-Jun-2018
680,Revenue,CAHD,Statemented Support Academies,Schools Funding,Castle School Education Trust,647.74, 26-Jun-2018
681,Revenue,CAHD,Statemented Support Academies,Schools Funding,Castle School Education Trust,730.28, 26-Jun-2018
682,Revenue,CAHD,Statemented Support Academies,Schools Funding,Castle School Education Trust,1095.83, 26-Jun-2018
683,Revenue,CAHD,Statemented Support Academies,Schools Funding,Castle School Education Trust,718.49, 26-Jun-2018
684,Revenue,CAHD,Statemented Support Academies,Schools Funding,Castle School Education Trust,812.83, 26-Jun-2018
685,Revenue,CAHD,Statemented Support Academies,Schools Funding,Castle School Education Trust,553.41, 26-Jun-2018
686,Revenue,CAHD,Statemented Support Academies,Schools Funding,Castle School Education Trust,765.66, 26-Jun-2018
687,Revenue,CAHD,Statemented Support Academies,Schools Funding,Castle School Education Trust,966.12, 26-Jun-2018
688,Revenue,CAHD,Statemented Support Academies,Schools Funding,Castle School Education Trust,989.7, 26-Jun-2018
689,Revenue,CAHD,Statemented Support Academies,Schools Funding,Castle School Education Trust,576.99, 26-Jun-2018
690,Revenue,CAHD,Statemented Support Academies,Schools Funding,Castle School Education Trust,1378.83, 26-Jun-2018
691,Revenue,CAHD,Statemented Support Academies,Schools Funding,Castle School Education Trust,1201.95, 26-Jun-2018
692,Revenue,CAHD,Statemented Support Academies,Schools Funding,Castle School Education Trust,659.53, 26-Jun-2018
693,Revenue,CAHD,Statemented Support Academies,Schools Funding,Castle School Education Trust,718.49, 26-Jun-2018
694,Revenue,CAHD,Academy Resource Base Funding,Other Public Bodies,Castle School Education Trust,1648.03, 22-Jun-2018
695,Revenue,CAHD,Academy Resource Base Funding,Other Public Bodies,Castle School Education Trust,2118.9, 22-Jun-2018
696,Revenue,CAHD,Academy Resource Base Funding,Other Public Bodies,Castle School Education Trust,1648.03, 22-Jun-2018
697,Revenue,CAHD,Academy Resource Base Funding,Other Public Bodies,Castle School Education Trust,1648.03, 22-Jun-2018
698,Revenue,CAHD,Statemented Support Academies,Schools Funding,Castle School Education Trust,612.37, 26-Jun-2018
699,Revenue,CAHD,Statemented Support Academies,Schools Funding,Castle School Education Trust,1626.45, 26-Jun-2018
700,Revenue,CAHD,Schools Specific Grant Income - from OLA,Other Public Bodies,Castle School Education Trust,633.33, 26-Jun-2018
701,Revenue,CAHD,Statemented Support Academies,Other Public Bodies,Castle School Education Trust,25716.25, 19-Jun-2018
702,Revenue,CAHD,Statemented Support Academies,Other Public Bodies,Castle School Education Trust,2477.5, 19-Jun-2018
703,Revenue,CAHD,Schools Specific Grant Income,Other Public Bodies,Castle School Education Trust,630, 29-Jun-2018
704,Revenue,CAHD,Schools Specific Grant Income,Other Public Bodies,Castle School Education Trust,630, 29-Jun-2018
705,Revenue,CAHD,Schools Specific Grant Income,Other Public Bodies,Castle School Education Trust,630, 29-Jun-2018
706,Revenue,CAHD,Schools Specific Grant Income,Other Public Bodies,Castle School Education Trust,630, 29-Jun-2018
707,Revenue,CAHD,Schools Specific Grant Income,Other Public Bodies,Castle School Education Trust,630, 29-Jun-2018
708,Revenue,CAHD,Schools Specific Grant Income,Other Public Bodies,Castle School Education Trust,630, 29-Jun-2018
709,Revenue,CAHD,Schools Specific Grant Income,Other Public Bodies,Castle School Education Trust,630, 29-Jun-2018
710,Revenue,CAHD,Schools Block Growth Contingency,Other Public Bodies,Castle School Education Trust,30942.38, 19-Jun-2018
711,Revenue,CAHD,Statemented Support Academies,Schools Funding,Castle School Education Trust,812.83, 26-Jun-2018
712,Revenue,CAHD,Statemented Support Academies,Schools Funding,Castle School Education Trust,706.7, 26-Jun-2018
713,Revenue,CAHD,Statemented Support Academies,Schools Funding,Castle School Education Trust,1766.35, 26-Jun-2018
714,Revenue,CAHD,Statemented Support Academies,Schools Funding,Castle School Education Trust,989.7, 26-Jun-2018
715,Revenue,CAHD,Statemented Support Academies,Schools Funding,Castle School Education Trust,1048.66, 26-Jun-2018
716,Revenue,CAHD,Statemented Support Academies,Schools Funding,Castle School Education Trust,1331.66, 26-Jun-2018
717,Revenue,CAHD,Statemented Support Academies,Schools Funding,Castle School Education Trust,1697.2, 26-Jun-2018
718,Revenue,CAHD,Statemented Support Academies,Schools Funding,Castle School Education Trust,1166.58, 26-Jun-2018
719,Revenue,CAHD,Statemented Support Academies,Schools Funding,Castle School Education Trust,918.95, 26-Jun-2018
720,Revenue,CAHD,Social Lettings Agency,Fees - General,Individual,10.53, 01-Jun-2018
721,Revenue,CAHD,Social Lettings Agency,Fees & Charges Income - General,Individual,595.11, 01-Jun-2018
722,Revenue,CAHD,Social Lettings Agency,Fees - General,Individual,10.53, 29-Jun-2018
723,Revenue,CAHD,Social Lettings Agency,Fees & Charges Income - General,Individual,595.11, 29-Jun-2018
724,Revenue,CAHD,Home Care - Elderly - North,Day Care / Social Activities,Causeway House,1202.8, 05-Jun-2018
725,Revenue,CAHD,Home Care - Elderly - South,Day Care / Social Activities,Causeway House,5130.52, 05-Jun-2018
726,Revenue,CAHD,Home Care - Elderly - North,Day Care / Social Activities,Causeway House,4393.52, 05-Jun-2018
727,Revenue,CAHD,Home Care - Elderly - North,Day Care / Social Activities,Causeway House,3800.76, 05-Jun-2018
728,Revenue,CAHD,Home Care - Elderly - North,Day Care / Social Activities,Causeway House,2029.16, 05-Jun-2018
729,Revenue,CAHD,Home Care - Elderly - North,Day Care / Social Activities,Causeway House,3150.88, 05-Jun-2018
730,Revenue,CAHD,Home Care - Elderly - North,Day Care / Social Activities,Causeway House,4694.24, 05-Jun-2018
731,Revenue,CAHD,Home Care - Elderly - North,Day Care / Social Activities,Causeway House,3566.88, 05-Jun-2018
732,Revenue,CAHD,Home Care - Elderly - North,Day Care / Social Activities,Causeway House,3075.56, 05-Jun-2018
733,Revenue,CAHD,Home Care - Elderly - North,Day Care / Social Activities,Causeway House,555.12, 05-Jun-2018
734,Revenue,CAHD,Bed Purchasing - Elderly S117- North,Permanent Nursing,Cedar Care Homes Limited,4434.68, 05-Jun-2018
735,Revenue,CAHD,Bed Purchasing - Southmead Hospital,Permanent Residential,Challenge House,2683.84, 05-Jun-2018
736,Revenue,CAHD,Bed Purchasing - Elderly S117- North,Permanent Residential,Challenge House,2511.12, 05-Jun-2018
737,Revenue,CAHD,Bed Purchasing - Southmead Hospital,Respite Emergency - Residential,Challenge House,2315.16, 05-Jun-2018
738,Revenue,CAHD,Bed Purchasing - Southmead Hospital,Respite Planned - Residential,Challenge House,1821.96, 05-Jun-2018
739,Revenue,CAHD,Bed Purchasing - North,Permanent Residential,Challenge House,2180.68, 05-Jun-2018
740,Revenue,CAHD,Bed Purchasing - North,Permanent Residential,Challenge House,2315.16, 05-Jun-2018
741,Revenue,CAHD,Bed Purchasing - North,Permanent Residential,Challenge House,2262.2, 05-Jun-2018
742,Revenue,CAHD,Bed Purchasing - North,Respite Planned - Residential,Challenge House,568, 05-Jun-2018
743,Revenue,CAHD,Bed Purchasing - North,Permanent Residential,Challenge House,2039.72, 05-Jun-2018
744,Revenue,CAHD,Training - Adult Services,Training Expenses,Chartered Institute of Environmental Health,757.5, 01-Jun-2018
745,Revenue,CAHD,CSC - Vinney Green Secure Unit,R & M by Departments,Cheltenham Mowers Limited,845.59, 18-Jun-2018
746,Revenue,CAHD,Home Care - Elderly - North,Other Small Contracts,Cherish Able Care Limited,641.48, 15-Jun-2018
747,Revenue,CAHD,Home Care - Elderly - South,Other Small Contracts,Cherish Able Care Limited,7562.14, 01-Jun-2018
748,Revenue,CAHD,Home Care - Elderly - North,Other Small Contracts,Cherish Able Care Limited,3327.2, 01-Jun-2018
749,Revenue,CAHD,Home Care - Elderly - South,Other Small Contracts,Cherish Able Care Limited,7808.93, 07-Jun-2018
750,Revenue,CAHD,Home Care - Elderly - North,Other Small Contracts,Cherish Able Care Limited,3278.38, 07-Jun-2018
751,Revenue,CAHD,Home Care - Elderly - South,Other Small Contracts,Cherish Able Care Limited,7790.64, 14-Jun-2018
752,Revenue,CAHD,Home Care - Elderly - North,Other Small Contracts,Cherish Able Care Limited,3331.77, 14-Jun-2018
753,Revenue,CAHD,Home Care - Elderly - South,Other Small Contracts,Cherish Able Care Limited,7534.73, 21-Jun-2018
754,Revenue,CAHD,Home Care - Elderly - North,Other Small Contracts,Cherish Able Care Limited,2690.43, 21-Jun-2018
755,Revenue,CAHD,Home Care - Elderly - South,Other Small Contracts,Cherish Able Care Limited,7744.94, 29-Jun-2018
756,Revenue,CAHD,Home Care - Elderly - North,Other Small Contracts,Cherish Able Care Limited,2681.29, 29-Jun-2018
757,Revenue,CAHD,Home Care - Elderly - South,Supported Living,Cherry Orchards,1918.44, 21-Jun-2018
758,Revenue,CAHD,Home Care - Elderly - South,Other Small Contracts,Cherry Orchards,5610.78, 28-Jun-2018
759,Revenue,CAHD,Home Care - Elderly - South,Other Small Contracts,Cherry Orchards,5886.72, 28-Jun-2018
760,Revenue,CAHD,Early Years High Needs Support,Other Private Contractors,Cherry Tree Day Nursery,880.77, 28-Jun-2018
761,Revenue,CAHD,Bed purchasing -S28A  Under 65 - North,Permanent Residential,Chescombe Lodge,9535.6, 05-Jun-2018
762,Revenue,CAHD,EARLY YEARS DISABILITY  ACCES FUND,Preventative Assistance,Christchurch Pre School,615, 05-Jun-2018
763,Revenue,CAHD,18-25 Year Olds,Other Small Contracts,Cintre,57.12, 26-Jun-2018
764,Revenue,CAHD,Home Care - Elderly - South,Other Small Contracts,Cintre,276.08, 26-Jun-2018
765,Revenue,CAHD,Home Care - Elderly - North,Other Small Contracts,Cintre,723.52, 26-Jun-2018
766,Revenue,CAHD,Post 16 High Needs Placements,Other Private Contractors,City of Bath College,78090.95, 20-Jun-2018
767,Revenue,CAHD,Information Systems - Software,Software Support & Maintenance,Civica UK Limited,3500, 01-Jun-2018
768,Revenue,CAHD,Service,Service,Individual,939.6, 25-Jun-2018
769,Revenue,CAHD,Service,Service,Individual,997.92, 05-Jun-2018
770,Revenue,CAHD,CSC - Vinney Green Secure Unit,R & M by Departments,Clarke Instruments Limited,721.35, 26-Jun-2018
771,Revenue,CAHD,MH Purchasing - Younger,Permanent Residential,Claro Homes,2249.4, 12-Jun-2018
772,Revenue,CAHD,Section 117 Placements MH Younger,Permanent Residential,Claro Homes,3471.28, 12-Jun-2018
773,Revenue,CAHD,Bed Purchasing - Southmead Hospital,Respite Planned - Nursing,Claro Homes,3240.44, 12-Jun-2018
774,Revenue,CAHD,Bed Purchasing - South,Respite Emergency - Residential,Cleeve Lodge,1600, 05-Jun-2018
775,Revenue,CAHD,Bed Purchasing - South,Permanent Residential,Cleeve Lodge,1277.76, 05-Jun-2018
776,Revenue,CAHD,Bed Purchasing - South,Fees & Charges Income - General,Cleeve Lodge,935.33, 05-Jun-2018
777,Revenue,CAHD,Bed Purchasing - Southmead Hospital,Permanent Residential,Cleeve Lodge,2853.2, 05-Jun-2018
778,Revenue,CAHD,Bed Purchasing - South,Permanent Residential,Cleeve Lodge,3014.16, 05-Jun-2018
779,Revenue,CAHD,Bed Purchasing - South,Permanent Residential,Cleeve Lodge,3220.04, 05-Jun-2018
780,Revenue,CAHD,Bed Purchasing - South,Permanent Residential,Cleeve Lodge,2787.08, 05-Jun-2018
781,Revenue,CAHD,Bed Purchasing - South,Permanent Residential,Cleeve Lodge,2573.84, 05-Jun-2018
782,Revenue,CAHD,Bed Purchasing - South,Permanent Residential,Cleeve Lodge,8282.65, 05-Jun-2018
783,Revenue,CAHD,Bed Purchasing - South,Permanent Residential,Cleeve Lodge,2955.12, 05-Jun-2018
784,Revenue,CAHD,Bed Purchasing - South,Permanent Residential,Cleeve Lodge,2534, 05-Jun-2018
785,Revenue,CAHD,Bed Purchasing - South,Permanent Residential,Clerkenleap Barn,6195.32, 05-Jun-2018
786,Revenue,CAHD,Home Care - Elderly - North,Other Small Contracts,Clover Health and Home Care Ltd,1398.6, 21-Jun-2018
787,Revenue,CAHD,Bed Purchasing - South,Permanent Residential,Collingwood Residential Home,3283.14, 05-Jun-2018
788,Revenue,CAHD,Bed Purchasing - South,Permanent Residential,Collingwood Residential Home,2188.76, 05-Jun-2018
789,Revenue,CAHD,Bed Purchasing - South,Fees & Charges Income - General,Collingwood Residential Home,1002.39, 05-Jun-2018
790,Revenue,CAHD,Bed Purchasing - Southmead Hospital,Permanent Residential,Collingwood Residential Home,2477.4, 05-Jun-2018
791,Revenue,CAHD,Bed Purchasing - South,Permanent Residential,Collingwood Residential Home,2374.2, 05-Jun-2018
792,Revenue,CAHD,Bed Purchasing - South,Permanent Residential,Collingwood Residential Home,2364.08, 05-Jun-2018
793,Revenue,CAHD,Bed Purchasing - South,Permanent Residential,Collingwood Residential Home,2445.6, 05-Jun-2018
794,Revenue,CAHD,Bed Purchasing - South,Permanent Residential,Collingwood Residential Home,2547.52, 05-Jun-2018
795,Revenue,CAHD,Bed Purchasing - Southmead Hospital,Respite Planned - Residential,Collingwood Residential Home,2445.6, 05-Jun-2018
796,Revenue,CAHD,Schools Specific Grant Income,Other Public Bodies,Colston`s Girls School Trust,630, 29-Jun-2018
797,Revenue,CAHD,Home Care - Elderly - North,Other Small Contracts,Complimenting Care and Training Services (CCTS) Lt,10437.04, 08-Jun-2018
798,Revenue,CAHD,Home Care - Elderly - North,Other Small Contracts,Complimenting Care and Training Services (CCTS) Lt,12244.16, 15-Jun-2018
799,Revenue,CAHD,Home Care - Elderly - North,Other Small Contracts,Complimenting Care and Training Services (CCTS) Lt,11898.41, 15-Jun-2018
800,Revenue,CAHD,Home Care - Elderly - North,Other Small Contracts,Complimenting Care and Training Services (CCTS) Lt,11566.49, 15-Jun-2018
801,Revenue,CAHD,Home Care - Elderly - North,Other Small Contracts,Complimenting Care and Training Services (CCTS) Lt,11027.12, 29-Jun-2018
802,Revenue,CAHD,Home Care - Elderly - North,Other Small Contracts,Complimenting Care and Training Services (CCTS) Lt,11193.08, 29-Jun-2018
803,Revenue,CAHD,Bed and Breakfast,Bed & Breakfast,Connolly & Callaghan Limited,448, 05-Jun-2018
804,Revenue,CAHD,Bed and Breakfast,Bed & Breakfast,Connolly & Callaghan Limited,448, 01-Jun-2018
805,Revenue,CAHD,Bed and Breakfast,Bed & Breakfast,Connolly & Callaghan Limited,490, 01-Jun-2018
806,Revenue,CAHD,Bed and Breakfast,Bed & Breakfast,Connolly & Callaghan Limited,539, 01-Jun-2018
807,Revenue,CAHD,Bed and Breakfast,Bed & Breakfast,Connolly & Callaghan Limited,420, 05-Jun-2018
808,Revenue,CAHD,Bed and Breakfast,Bed & Breakfast,Connolly & Callaghan Limited,623, 01-Jun-2018
809,Revenue,CAHD,Bed and Breakfast,Bed & Breakfast,Connolly & Callaghan Limited,448, 04-Jun-2018
810,Revenue,CAHD,Bed and Breakfast,Bed & Breakfast,Connolly & Callaghan Limited,448, 05-Jun-2018
811,Revenue,CAHD,Bed and Breakfast,Bed & Breakfast,Connolly & Callaghan Limited,490, 04-Jun-2018
812,Revenue,CAHD,Bed and Breakfast,Bed & Breakfast,Connolly & Callaghan Limited,539, 04-Jun-2018
813,Revenue,CAHD,Bed and Breakfast,Bed & Breakfast,Connolly & Callaghan Limited,679, 04-Jun-2018
814,Revenue,CAHD,Bed and Breakfast,Bed & Breakfast,Connolly & Callaghan Limited,539, 04-Jun-2018
815,Revenue,CAHD,Bed and Breakfast,Bed & Breakfast,Connolly & Callaghan Limited,581, 04-Jun-2018
816,Revenue,CAHD,Bed and Breakfast,Bed & Breakfast,Connolly & Callaghan Limited,420, 05-Jun-2018
817,Revenue,CAHD,Bed and Breakfast,Bed & Breakfast,Connolly & Callaghan Limited,623, 04-Jun-2018
818,Revenue,CAHD,Bed and Breakfast,Bed & Breakfast,Connolly & Callaghan Limited,441, 04-Jun-2018
819,Revenue,CAHD,Bed and Breakfast,Bed & Breakfast,Connolly & Callaghan Limited,497, 04-Jun-2018
820,Revenue,CAHD,Bed and Breakfast,Bed & Breakfast,Connolly & Callaghan Limited,448, 06-Jun-2018
821,Revenue,CAHD,Bed and Breakfast,Bed & Breakfast,Connolly & Callaghan Limited,448, 06-Jun-2018
822,Revenue,CAHD,Bed and Breakfast,Bed & Breakfast,Connolly & Callaghan Limited,490, 07-Jun-2018
823,Revenue,CAHD,Bed and Breakfast,Bed & Breakfast,Connolly & Callaghan Limited,539, 06-Jun-2018
824,Revenue,CAHD,Bed and Breakfast,Bed & Breakfast,Connolly & Callaghan Limited,679, 06-Jun-2018
825,Revenue,CAHD,Bed and Breakfast,Bed & Breakfast,Connolly & Callaghan Limited,539, 06-Jun-2018
826,Revenue,CAHD,Bed and Breakfast,Bed & Breakfast,Connolly & Callaghan Limited,581, 06-Jun-2018
827,Revenue,CAHD,Bed and Breakfast,Bed & Breakfast,Connolly & Callaghan Limited,420, 07-Jun-2018
828,Revenue,CAHD,Bed and Breakfast,Bed & Breakfast,Connolly & Callaghan Limited,441, 06-Jun-2018
829,Revenue,CAHD,Bed and Breakfast,Bed & Breakfast,Connolly & Callaghan Limited,497, 06-Jun-2018
830,Revenue,CAHD,Bed and Breakfast,Bed & Breakfast,Connolly & Callaghan Limited,448, 19-Jun-2018
831,Revenue,CAHD,Bed and Breakfast,Bed & Breakfast,Connolly & Callaghan Limited,448, 19-Jun-2018
832,Revenue,CAHD,Bed and Breakfast,Bed & Breakfast,Connolly & Callaghan Limited,490, 19-Jun-2018
833,Revenue,CAHD,Bed and Breakfast,Bed & Breakfast,Connolly & Callaghan Limited,539, 19-Jun-2018
834,Revenue,CAHD,Bed and Breakfast,Bed & Breakfast,Connolly & Callaghan Limited,679, 19-Jun-2018
835,Revenue,CAHD,Bed and Breakfast,Bed & Breakfast,Connolly & Callaghan Limited,539, 19-Jun-2018
836,Revenue,CAHD,Bed and Breakfast,Bed & Breakfast,Connolly & Callaghan Limited,498, 22-Jun-2018
837,Revenue,CAHD,Bed and Breakfast,Bed & Breakfast,Connolly & Callaghan Limited,539, 19-Jun-2018
838,Revenue,CAHD,Bed and Breakfast,Bed & Breakfast,Connolly & Callaghan Limited,420, 19-Jun-2018
839,Revenue,CAHD,Bed and Breakfast,Bed & Breakfast,Connolly & Callaghan Limited,441, 19-Jun-2018
840,Revenue,CAHD,Bed and Breakfast,Bed & Breakfast,Connolly & Callaghan Limited,497, 19-Jun-2018
841,Revenue,CAHD,Bed and Breakfast,Bed & Breakfast,Connolly & Callaghan Limited,448, 22-Jun-2018
842,Revenue,CAHD,Bed and Breakfast,Bed & Breakfast,Connolly & Callaghan Limited,490, 28-Jun-2018
843,Revenue,CAHD,Bed and Breakfast,Bed & Breakfast,Connolly & Callaghan Limited,539, 22-Jun-2018
844,Revenue,CAHD,Bed and Breakfast,Bed & Breakfast,Connolly & Callaghan Limited,679, 22-Jun-2018
845,Revenue,CAHD,Bed and Breakfast,Bed & Breakfast,Connolly & Callaghan Limited,581, 28-Jun-2018
846,Revenue,CAHD,Bed and Breakfast,Bed & Breakfast,Connolly & Callaghan Limited,462, 22-Jun-2018
847,Revenue,CAHD,Bed and Breakfast,Bed & Breakfast,Connolly & Callaghan Limited,539, 28-Jun-2018
848,Revenue,CAHD,Bed and Breakfast,Bed & Breakfast,Connolly & Callaghan Limited,420, 22-Jun-2018
849,Revenue,CAHD,Bed and Breakfast,Bed & Breakfast,Connolly & Callaghan Limited,441, 22-Jun-2018
850,Revenue,CAHD,Bed and Breakfast,Bed & Breakfast,Connolly & Callaghan Limited,497, 22-Jun-2018
851,Revenue,CAHD,Bed and Breakfast,Bed & Breakfast,Connolly & Callaghan Limited,448, 29-Jun-2018
852,Revenue,CAHD,Bed and Breakfast,Bed & Breakfast,Connolly & Callaghan Limited,539, 29-Jun-2018
853,Revenue,CAHD,Bed and Breakfast,Bed & Breakfast,Connolly & Callaghan Limited,679, 29-Jun-2018
854,Revenue,CAHD,Bed and Breakfast,Bed & Breakfast,Connolly & Callaghan Limited,539, 29-Jun-2018
855,Revenue,CAHD,Bed and Breakfast,Bed & Breakfast,Connolly & Callaghan Limited,420, 29-Jun-2018
856,Revenue,CAHD,Bed and Breakfast,Bed & Breakfast,Connolly & Callaghan Limited,441, 29-Jun-2018
857,Revenue,CAHD,CSC - Vinney Green Secure Unit,R & M by Departments,Cool-Rite Limited,3218, 12-Jun-2018
858,Revenue,CAHD,CSC - Vinney Green Secure Unit,Other Supplies & Services,Coram Voice,1948.5, 08-Jun-2018
859,Revenue,CAHD,CSC - Vinney Green Secure Unit,Other Supplies & Services,Coram Voice,1948.5, 08-Jun-2018
860,Revenue,CAHD,CSC - Fostering Carer Support,Care Mgt/Asesmnt Staff Pay,Core Assets Expert Services Ltd T/A Carter Brown,2500, 11-Jun-2018
861,Revenue,CAHD,Bed Purchasing - Southmead Hospital,Permanent Nursing,Cranhill Nursing Home,3566.52, 05-Jun-2018
862,Revenue,CAHD,Bed Purchasing - North,Permanent Residential,Cream Iii Ltd,8441.4, 05-Jun-2018
863,Revenue,CAHD,18-25 Year Olds,Permanent Residential,Cream Iii Ltd,9843.56, 05-Jun-2018
864,Revenue,CAHD,Bed purchasing -S28A  Under 65 - North,Permanent Residential,Creedy Court,10349.56, 05-Jun-2018
865,Revenue,CAHD,Bed Purchasing - S28A - Over 65- North,Permanent Residential,Creedy Court,8696.2, 05-Jun-2018
866,Revenue,CAHD,Bed Purchasing - North,Permanent Residential,Creedy Court,13724.6, 05-Jun-2018
867,Revenue,CAHD,Brokerage and Information Service,Grants to Voluntary Bodies,Curo Care & Support,32098.75, 29-Jun-2018
868,Revenue,CAHD,Bed Purchasing - South,Permanent Residential,Daneswood,11981.24, 05-Jun-2018
869,Revenue,CAHD,Home Care - Elderly - South,Day Care / Social Activities,Daneswood,1380.32, 05-Jun-2018
870,Revenue,CAHD,Bed Purchasing - North,Permanent Residential,Daneswood,10023.44, 05-Jun-2018
871,Revenue,CAHD,Bed Purchasing - Elderly S117- North,Permanent Nursing,Danshell Healthcare Group,10617.44, 05-Jun-2018
872,Revenue,CAHD,Jointly Funded H&SC Packages,Permanent Nursing,Danshell Healthcare Group,1575.48, 05-Jun-2018
873,Revenue,CAHD,Service,Service,Individual,695.57, 29-Jun-2018
874,Revenue,CAHD,Learning Difficulties PSL,Other Supplies & Services,Individual,2267.91, 22-Jun-2018
875,Revenue,CAHD,Children Centres - North Locality,Printing & Stationery,De Lage Landen Leasing Ltd,1117.22, 11-Jun-2018
876,Revenue,CAHD,Children Centres - South Locality,Printing & Stationery,De Lage Landen Leasing Ltd,1117.23, 11-Jun-2018
877,Revenue,CAHD,Schools Specific Grant Income,Other Public Bodies,Dene Magna School,630, 29-Jun-2018
878,Revenue,CAHD,Home Care - Elderly - South,Supported Living,Design House,2798.44, 05-Jun-2018
879,Revenue,CAHD,Home Care - Elderly - South,Supported Living,Design House,2991.52, 05-Jun-2018
880,Revenue,CAHD,Home Care - Elderly - South,Supported Living,Design House,3059.64, 05-Jun-2018
881,Revenue,CAHD,Home Care - Elderly - South,Supported Living,Design House,2923.4, 05-Jun-2018
882,Revenue,CAHD,Home Care - Elderly - South,Day Care / Social Activities,Design House,501.92, 05-Jun-2018
883,Revenue,CAHD,Home Care - Elderly - South,Day Care / Social Activities,Design House,501.92, 05-Jun-2018
884,Revenue,CAHD,Home Care - Elderly - North,Day Care / Social Activities,Design House,2383.88, 05-Jun-2018
885,Revenue,CAHD,Home Care - Elderly - South,Day Care / Social Activities,Design House,1499.56, 05-Jun-2018
886,Revenue,CAHD,Home Care - Elderly - South,Supported Living,Design House,2577, 05-Jun-2018
887,Revenue,CAHD,Home Care - Elderly - South,Supported Living,Design House,2577, 05-Jun-2018
888,Revenue,CAHD,Home Care - Elderly - South,Supported Living,Design House,2099.16, 05-Jun-2018
889,Revenue,CAHD,Home Care - Elderly - South,Day Care / Social Activities,Design House,501.92, 05-Jun-2018
890,Revenue,CAHD,Home Care - Elderly - South,Supported Living,Design House,1852.24, 05-Jun-2018
891,Revenue,CAHD,Home Care - Elderly - South,Supported Living,Design House,2457.84, 05-Jun-2018
892,Revenue,CAHD,Home Care - Elderly - South,Supported Living,Design House,4206.6, 05-Jun-2018
893,Revenue,CAHD,Home Care - Elderly - South,Supported Living,Design House,2982.96, 05-Jun-2018
894,Revenue,CAHD,Home Care - Elderly - South,Day Care / Social Activities,Design House,1470.8, 05-Jun-2018
895,Revenue,CAHD,Home Care - Elderly - South,Supported Living,Design House,2832.52, 05-Jun-2018
896,Revenue,CAHD,Home Care - Elderly - South,Supported Living,Design House,2483.44, 05-Jun-2018
897,Revenue,CAHD,Home Care - Elderly - South,Supported Living,Design House,2204.8, 05-Jun-2018
898,Revenue,CAHD,Home Care - Elderly - South,Supported Living,Design House,2204.8, 05-Jun-2018
899,Revenue,CAHD,Home Care - Elderly - South,Other Small Contracts,Dhek Bhal,606.52, 11-Jun-2018
900,Revenue,CAHD,Home Care - Elderly - North,Other Small Contracts,Dhek Bhal,123.36, 11-Jun-2018
901,Revenue,CAHD,Home Care - Elderly - South,Other Small Contracts,Dhek Bhal,508.86, 19-Jun-2018
902,Revenue,CAHD,Home Care - Elderly - North,Other Small Contracts,Dhek Bhal,82.24, 19-Jun-2018
903,Revenue,CAHD,Home Care - Elderly - South,Other Small Contracts,Dhek Bhal,395.78, 20-Jun-2018
904,Revenue,CAHD,Home Care - Elderly - North,Other Small Contracts,Dhek Bhal,164.48, 20-Jun-2018
905,Revenue,CAHD,Home Care - Elderly - South,Other Small Contracts,Dhek Bhal,447.18, 28-Jun-2018
906,Revenue,CAHD,Home Care - Elderly - North,Other Small Contracts,Dhek Bhal,123.36, 28-Jun-2018
907,Revenue,CAHD,Home Care - Elderly - North,Supported Living,Dimensions  Suite 2,18617.88, 05-Jun-2018
908,Revenue,CAHD,Home Care - Elderly - South,Supported Living,Dimensions  Suite 2,1857.88, 05-Jun-2018
909,Revenue,CAHD,Home Care - Elderly - South,Supported Living,Dimensions  Suite 2,1857.88, 05-Jun-2018
910,Revenue,CAHD,Home Care - Elderly - South,Supported Living,Dimensions  Suite 2,1857.88, 05-Jun-2018
911,Revenue,CAHD,Home Care - Elderly - North,Supported Living,Dimensions  Suite 2,1857.88, 05-Jun-2018
912,Revenue,CAHD,Bed Purchasing - South,Permanent Residential,Dimensions  Suite 2,5498.8, 05-Jun-2018
913,Revenue,CAHD,Bed Purchasing - South,Permanent Residential,Dimensions  Suite 2,2740.36, 05-Jun-2018
914,Revenue,CAHD,Training - Adult Services,Training Expenses,Do The Write Thing,850, 11-Jun-2018
915,Revenue,CAHD,Training - Adult Services,Training Expenses,Do The Write Thing,850, 29-Jun-2018
916,Revenue,CAHD,Home Care - Elderly - South,Day Care / Social Activities,DoCare Limited,73.78, 11-Jun-2018
917,Revenue,CAHD,Home Care - Elderly - South,Other Small Contracts,DoCare Limited,681.84, 11-Jun-2018
918,Revenue,CAHD,Home Care - Elderly - North,Other Small Contracts,DoCare Limited,5663.39, 11-Jun-2018
919,Revenue,CAHD,Home Care - Elderly - South,Day Care / Social Activities,DoCare Limited,73.78, 21-Jun-2018
920,Revenue,CAHD,Home Care - Elderly - South,Other Small Contracts,DoCare Limited,751.32, 21-Jun-2018
921,Revenue,CAHD,Home Care - Elderly - North,Other Small Contracts,DoCare Limited,5596.16, 21-Jun-2018
922,Revenue,CAHD,Home Care - Elderly - South,Day Care / Social Activities,DoCare Limited,63.24, 20-Jun-2018
923,Revenue,CAHD,Home Care - Elderly - South,Other Small Contracts,DoCare Limited,824.51, 20-Jun-2018
924,Revenue,CAHD,Home Care - Elderly - North,Other Small Contracts,DoCare Limited,5165.64, 20-Jun-2018
925,Revenue,CAHD,Home Care - Elderly - South,Day Care / Social Activities,DoCare Limited,73.78, 22-Jun-2018
926,Revenue,CAHD,Home Care - Elderly - South,Other Small Contracts,DoCare Limited,813.97, 22-Jun-2018
927,Revenue,CAHD,Home Care - Elderly - North,Other Small Contracts,DoCare Limited,5342.91, 22-Jun-2018
928,Revenue,CAHD,Home Care - Elderly - South,Day Care / Social Activities,DoCare Limited,73.78, 26-Jun-2018
929,Revenue,CAHD,Home Care - Elderly - South,Other Small Contracts,DoCare Limited,938.63, 26-Jun-2018
930,Revenue,CAHD,Home Care - Elderly - North,Other Small Contracts,DoCare Limited,5592.04, 26-Jun-2018
931,Revenue,CAHD,Statemented Support Academies,Schools Funding,Downend School,553.41, 26-Jun-2018
932,Revenue,CAHD,Statemented Support Academies,Schools Funding,Downend School,1119.41, 26-Jun-2018
933,Revenue,CAHD,Statemented Support Academies,Schools Funding,Downend School,541.62, 26-Jun-2018
934,Revenue,CAHD,Statemented Support Academies,Schools Funding,Downend School,565.2, 26-Jun-2018
935,Revenue,CAHD,Statemented Support Academies,Schools Funding,Downend School,1154.78, 26-Jun-2018
936,Revenue,CAHD,Statemented Support Academies,Schools Funding,Downend School,671.33, 26-Jun-2018
937,Revenue,CAHD,Statemented Support Academies,Schools Funding,Downend School,612.37, 26-Jun-2018
938,Revenue,CAHD,Statemented Support Academies,Schools Funding,Downend School,553.41, 26-Jun-2018
939,Revenue,CAHD,Statemented Support Academies,Schools Funding,Downend School,553.41, 26-Jun-2018
940,Revenue,CAHD,Schools Specific Grant Income - from OLA,Other Public Bodies,Downend School,633.33, 26-Jun-2018
941,Revenue,CAHD,Social Lettings Agency,Other Supplies & Services,Individual,605.64, 22-Jun-2018
942,Revenue,CAHD,Bed Purchasing - North,Permanent Nursing,Drakes Court,2332.4, 05-Jun-2018
943,Revenue,CAHD,South Glos Users in South Glos Homes,Permanent Nursing,Drakes Court,632.64, 05-Jun-2018
944,Revenue,CAHD,Bed Purchasing - Southmead Hospital,Permanent Nursing,Drakes Court,2832.84, 05-Jun-2018
945,Revenue,CAHD,Bed Purchasing - North,Permanent Nursing,Drakes Court,2751.32, 05-Jun-2018
946,Revenue,CAHD,South Glos Users in South Glos Homes,Permanent Nursing,Drakes Court,632.64, 05-Jun-2018
947,Revenue,CAHD,Bed Purchasing - Southmead Hospital,Permanent Nursing,Drakes Court,2017.24, 05-Jun-2018
948,Revenue,CAHD,South Glos Users in South Glos Homes,Permanent Nursing,Drakes Court,632.64, 05-Jun-2018
949,Revenue,CAHD,Bed Purchasing - South,Permanent Nursing,Drakes Court,2832.84, 05-Jun-2018
950,Revenue,CAHD,South Glos Users in South Glos Homes,Permanent Nursing,Drakes Court,632.64, 05-Jun-2018
951,Revenue,CAHD,South Glos Users in South Glos Homes,Permanent Nursing,Drakes Court,632.64, 05-Jun-2018
952,Revenue,CAHD,Bed Purchasing - Southmead Hospital,Permanent Nursing,Drakes Court,2832.84, 05-Jun-2018
953,Revenue,CAHD,South Glos Users in South Glos Homes,Permanent Nursing,Drakes Court,632.64, 05-Jun-2018
954,Revenue,CAHD,South Glos Users in South Glos Homes,Permanent Nursing,Drakes Court,632.64, 05-Jun-2018
955,Revenue,CAHD,Bed Purchasing - North,Permanent Nursing,Drakes Court,2017.24, 05-Jun-2018
956,Revenue,CAHD,Bed Purchasing - Southmead Hospital,Permanent Nursing,Drakes Court,2017.24, 05-Jun-2018
957,Revenue,CAHD,South Glos Users in South Glos Homes,Permanent Nursing,Drakes Court,632.64, 05-Jun-2018
958,Revenue,CAHD,South Glos Users in South Glos Homes,Permanent Nursing,Drakes Court,632.64, 05-Jun-2018
959,Revenue,CAHD,South Glos Users in South Glos Homes,Permanent Nursing,Drakes Court,632.64, 05-Jun-2018
960,Revenue,CAHD,South Glos Users in South Glos Homes,Permanent Nursing,Drakes Court,632.64, 05-Jun-2018
961,Revenue,CAHD,Bed Purchasing - North,Permanent Residential,Drakes Court,2934.06, 05-Jun-2018
962,Revenue,CAHD,Bed Purchasing - North,Permanent Residential,Drakes Court,1956.04, 05-Jun-2018
963,Revenue,CAHD,Bed Purchasing - North,Fees & Charges Income - General,Drakes Court,820.59, 05-Jun-2018
964,Revenue,CAHD,Bed Purchasing - North,Permanent Nursing,Drakes Court,4025.76, 05-Jun-2018
965,Revenue,CAHD,Bed Purchasing - North,Permanent Nursing,Drakes Court,2683.84, 05-Jun-2018
966,Revenue,CAHD,South Glos Users in South Glos Homes,Permanent Nursing,Drakes Court,632.64, 05-Jun-2018
967,Revenue,CAHD,Bed Purchasing - North,Fees & Charges Income - General,Drakes Court,908.44, 05-Jun-2018
968,Revenue,CAHD,South Glos Users in South Glos Homes,Permanent Nursing,Drakes Court,632.64, 05-Jun-2018
969,Revenue,CAHD,South Glos Users in South Glos Homes,Permanent Nursing,Drakes Court,632.64, 05-Jun-2018
970,Revenue,CAHD,South Glos Users in South Glos Homes,Permanent Nursing,Drakes Court,632.64, 05-Jun-2018
971,Revenue,CAHD,MH Purchasing - Younger,Permanent Residential,Dunraven House,2316.16, 05-Jun-2018
972,Revenue,CAHD,Bed and Breakfast,Bed & Breakfast,Individual,602, 01-Jun-2018
973,Revenue,CAHD,Bed and Breakfast,Bed & Breakfast,Individual,462, 06-Jun-2018
974,Revenue,CAHD,Bed and Breakfast,Bed & Breakfast,Individual,602, 06-Jun-2018
975,Revenue,CAHD,Bed and Breakfast,Bed & Breakfast,Individual,602, 06-Jun-2018
976,Revenue,CAHD,Bed and Breakfast,Bed & Breakfast,Individual,744, 06-Jun-2018
977,Revenue,CAHD,Bed and Breakfast,Bed & Breakfast,Individual,602, 13-Jun-2018
978,Revenue,CAHD,Bed and Breakfast,Bed & Breakfast,Individual,602, 06-Jun-2018
979,Revenue,CAHD,Bed and Breakfast,Bed & Breakfast,Individual,651, 06-Jun-2018
980,Revenue,CAHD,Bed and Breakfast,Bed & Breakfast,Individual,680, 06-Jun-2018
981,Revenue,CAHD,Bed and Breakfast,Bed & Breakfast,Individual,476, 25-Jun-2018
982,Revenue,CAHD,Bed and Breakfast,Bed & Breakfast,Individual,651, 25-Jun-2018
983,Revenue,CAHD,Bed and Breakfast,Bed & Breakfast,Individual,602, 25-Jun-2018
984,Revenue,CAHD,Bed and Breakfast,Bed & Breakfast,Individual,602, 25-Jun-2018
985,Revenue,CAHD,Bed and Breakfast,Bed & Breakfast,Individual,464, 25-Jun-2018
986,Revenue,CAHD,Bed and Breakfast,Bed & Breakfast,Individual,476, 27-Jun-2018
987,Revenue,CAHD,Bed and Breakfast,Bed & Breakfast,Individual,602, 28-Jun-2018
988,Revenue,CAHD,Bed and Breakfast,Bed & Breakfast,Individual,602, 25-Jun-2018
989,Revenue,CAHD,Bed and Breakfast,Bed & Breakfast,Individual,651, 25-Jun-2018
990,Revenue,CAHD,Bed Purchasing - North,Permanent Residential,East Court,2698.8, 05-Jun-2018
991,Revenue,CAHD,Bed Purchasing - Southmead Hospital,Permanent Residential,Edgecumbe Lodge,2148.68, 05-Jun-2018
992,Revenue,CAHD,Bed Purchasing - North,Respite Planned - Residential,Edgecumbe Lodge,3097.76, 05-Jun-2018
993,Revenue,CAHD,Bed Purchasing - South,Permanent Residential,Edgecumbe Lodge,2220, 05-Jun-2018
994,Revenue,CAHD,Bed Purchasing - North,Permanent Residential,Edgecumbe Lodge,2364.56, 05-Jun-2018
995,Revenue,CAHD,Bed Purchasing - South,Permanent Residential,Edgecumbe Lodge,2220, 05-Jun-2018
996,Revenue,CAHD,Bed Purchasing - South,Permanent Residential,Edgecumbe Lodge,2445.6, 05-Jun-2018
997,Revenue,CAHD,Bed Purchasing - Southmead Hospital,Permanent Residential,Edgecumbe Lodge,2477.4, 05-Jun-2018
998,Revenue,CAHD,Bed Purchasing - North,Permanent Residential,Edgecumbe Lodge,2197.2, 05-Jun-2018
999,Revenue,CAHD,Bed Purchasing - Southmead Hospital,Permanent Residential,Edgemont House Ltd,1948.72, 05-Jun-2018
1000,Revenue,CAHD,Bed Purchasing - South,Permanent Residential,Edgemont House Ltd,2229.64, 05-Jun-2018
1001,Revenue,CAHD,Bed Purchasing - South,Permanent Residential,Edgemont House Ltd,2649.4, 05-Jun-2018
1002,Revenue,CAHD,South Glos Users in South Glos Homes,Permanent Nursing,Edgemont View Nursing Home,632.64, 05-Jun-2018
1003,Revenue,CAHD,Bed Purchasing - South,Permanent Nursing,Edgemont View Nursing Home,3464.6, 05-Jun-2018
1004,Revenue,CAHD,South Glos Users in South Glos Homes,Permanent Nursing,Edgemont View Nursing Home,632.64, 05-Jun-2018
1005,Revenue,CAHD,South Glos Users in South Glos Homes,Permanent Nursing,Edgemont View Nursing Home,632.64, 05-Jun-2018
1006,Revenue,CAHD,South Glos Users in South Glos Homes,Permanent Nursing,Edgemont View Nursing Home,632.64, 05-Jun-2018
1007,Revenue,CAHD,South Glos Users in South Glos Homes,Permanent Nursing,Edgemont View Nursing Home,632.64, 05-Jun-2018
1008,Revenue,CAHD,South Glos Users in South Glos Homes,Permanent Nursing,Edgemont View Nursing Home,632.64, 05-Jun-2018
1009,Revenue,CAHD,Bed Purchasing - South,Permanent Nursing,Edgemont View Nursing Home,2972.88, 05-Jun-2018
1010,Revenue,CAHD,South Glos Users in South Glos Homes,Permanent Nursing,Edgemont View Nursing Home,632.64, 05-Jun-2018
1011,Revenue,CAHD,South Glos Users in South Glos Homes,Permanent Nursing,Edgemont View Nursing Home,632.64, 05-Jun-2018
1012,Revenue,CAHD,South Glos Users in South Glos Homes,Permanent Nursing,Edgemont View Nursing Home,632.64, 05-Jun-2018
1013,Revenue,CAHD,Bed Purchasing - South,Permanent Nursing,Edgemont View Nursing Home,2934.72, 05-Jun-2018
1014,Revenue,CAHD,South Glos Users in South Glos Homes,Permanent Nursing,Edgemont View Nursing Home,632.64, 05-Jun-2018
1015,Revenue,CAHD,South Glos Users in South Glos Homes,Permanent Nursing,Edgemont View Nursing Home,632.64, 05-Jun-2018
1016,Revenue,CAHD,South Glos Users in South Glos Homes,Permanent Nursing,Edgemont View Nursing Home,3256.05, 05-Jun-2018
1017,Revenue,CAHD,South Glos Users in South Glos Homes,Permanent Nursing,Edgemont View Nursing Home,1129.71, 05-Jun-2018
1018,Revenue,CAHD,South Glos Users in South Glos Homes,Permanent Nursing,Edgemont View Nursing Home,632.64, 05-Jun-2018
1019,Revenue,CAHD,South Glos Users in South Glos Homes,Permanent Nursing,Edgemont View Nursing Home,632.64, 05-Jun-2018
1020,Revenue,CAHD,South Glos Users in South Glos Homes,Permanent Nursing,Edgemont View Nursing Home,632.64, 05-Jun-2018
1021,Revenue,CAHD,South Glos Users in South Glos Homes,Permanent Nursing,Edgemont View Nursing Home,632.64, 05-Jun-2018
1022,Revenue,CAHD,Bed Purchasing - South,Permanent Nursing,Edgemont View Nursing Home,2934.72, 05-Jun-2018
1023,Revenue,CAHD,South Glos Users in South Glos Homes,Permanent Nursing,Edgemont View Nursing Home,632.64, 05-Jun-2018
1024,Revenue,CAHD,Bed Purchasing - South,Permanent Nursing,Edgemont View Nursing Home,2310.44, 05-Jun-2018
1025,Revenue,CAHD,South Glos Users in South Glos Homes,Permanent Nursing,Edgemont View Nursing Home,632.64, 05-Jun-2018
1026,Revenue,CAHD,South Glos Users in South Glos Homes,Permanent Nursing,Edgemont View Nursing Home,632.64, 05-Jun-2018
1027,Revenue,CAHD,South Glos Users in South Glos Homes,Permanent Nursing,Edgemont View Nursing Home,632.64, 05-Jun-2018
1028,Revenue,CAHD,Planning and Partnerships Procurement,Other Supplies & Services,Eldercare,2239.76, 29-Jun-2018
1029,Revenue,CAHD,Supporting People Programme,Grants to Voluntary Bodies,Elim Housing Association Limited,5236, 01-Jun-2018
1030,Revenue,CAHD,Supporting People Programme,Grants to Voluntary Bodies,Elim Housing Association Limited,5236, 29-Jun-2018
1031,Revenue,CAHD,Home Care - Elderly - South,Other Small Contracts,Elite Home Care Ltd,7983.34, 11-Jun-2018
1032,Revenue,CAHD,Home Care - Elderly - South,Supported Living,Elite Home Care Ltd,55.56, 11-Jun-2018
1033,Revenue,CAHD,Home Care - Elderly - North,Other Small Contracts,Elite Home Care Ltd,1319.55, 11-Jun-2018
1034,Revenue,CAHD,Home Care - Elderly - South,Other Small Contracts,Elite Home Care Ltd,7609.85, 19-Jun-2018
1035,Revenue,CAHD,Home Care - Elderly - South,Supported Living,Elite Home Care Ltd,55.56, 19-Jun-2018
1036,Revenue,CAHD,Home Care - Elderly - North,Other Small Contracts,Elite Home Care Ltd,1338.07, 19-Jun-2018
1037,Revenue,CAHD,Home Care - Elderly - South,Other Small Contracts,Elite Home Care Ltd,7073.51, 19-Jun-2018
1038,Revenue,CAHD,Home Care - Elderly - South,Supported Living,Elite Home Care Ltd,55.56, 19-Jun-2018
1039,Revenue,CAHD,Home Care - Elderly - North,Other Small Contracts,Elite Home Care Ltd,1287.14, 19-Jun-2018
1040,Revenue,CAHD,Home Care - Elderly - South,Other Small Contracts,Elite Home Care Ltd,6692.31, 26-Jun-2018
1041,Revenue,CAHD,Home Care - Elderly - South,Supported Living,Elite Home Care Ltd,55.56, 26-Jun-2018
1042,Revenue,CAHD,Home Care - Elderly - North,Other Small Contracts,Elite Home Care Ltd,1328.81, 26-Jun-2018
1043,Revenue,CAHD,Service,Service,Individual,1458, 29-Jun-2018
1044,Revenue,CAHD,CSC - Agency Fostering,Foster Parent Allowances,Enhanced Foster Care Ltd,4500, 29-Jun-2018
1045,Revenue,CAHD,CSC - LAC Placements,Other Transport Costs,Exclusive Secure Care Services,891.8, 21-Jun-2018
1046,Revenue,CAHD,CSC - LAC Placements,Other Transport Costs,Exclusive Secure Care Services,943.2, 22-Jun-2018
1047,Revenue,CAHD,Homeless - Private Sector Leasing,Prop.Serv. General Repairs,Express Property Services Limited,1831.01, 29-Jun-2018
1048,Revenue,CAHD,Homeless - Private Sector Leasing,Prop.Serv. General Repairs,Express Property Services Limited,1576, 05-Jun-2018
1049,Revenue,CAHD,Homeless - Private Sector Leasing,Prop.Serv. General Repairs,Express Property Services Limited,6556.6, 07-Jun-2018
1050,Revenue,CAHD,Homeless - Private Sector Leasing,Prop.Serv. General Repairs,Express Property Services Limited,3789.76, 13-Jun-2018
1051,Revenue,CAHD,Homeless - Private Sector Leasing,Prop.Serv. General Repairs,Express Property Services Limited,1532.39, 29-Jun-2018
1052,Revenue,CAHD,South Glos Users in South Glos Homes,Permanent Nursing,Fairview Court,632.64, 05-Jun-2018
1053,Revenue,CAHD,South Glos Users in South Glos Homes,Permanent Nursing,Fairview Court,632.64, 05-Jun-2018
1054,Revenue,CAHD,South Glos Users in South Glos Homes,Permanent Nursing,Fairview Court,632.64, 05-Jun-2018
1055,Revenue,CAHD,South Glos Users in South Glos Homes,Permanent Nursing,Fairview Court,632.64, 05-Jun-2018
1056,Revenue,CAHD,Bed Purchasing - Southmead Hospital,Permanent Nursing,Fairview Court,1732.3, 05-Jun-2018
1057,Revenue,CAHD,Bed Purchasing - Southmead Hospital,Permanent Nursing,Fairview Court,1732.3, 05-Jun-2018
1058,Revenue,CAHD,Bed Purchasing - Southmead Hospital,Permanent Nursing,Fairview Court,3464.6, 05-Jun-2018
1059,Revenue,CAHD,South Glos Users in South Glos Homes,Permanent Nursing,Fairview Court,632.64, 05-Jun-2018
1060,Revenue,CAHD,Bed Purchasing - Southmead Hospital,Permanent Nursing,Fairview Court,3423.84, 05-Jun-2018
1061,Revenue,CAHD,South Glos Users in South Glos Homes,Permanent Nursing,Fairview Court,632.64, 05-Jun-2018
1062,Revenue,CAHD,South Glos Users in South Glos Homes,Permanent Nursing,Fairview Court,632.64, 05-Jun-2018
1063,Revenue,CAHD,Bed Purchasing - Southmead Hospital,Respite Emergency - Residential,Fairview Court,850, 05-Jun-2018
1064,Revenue,CAHD,Bed purchasing - Elderly S117 - South,Permanent Nursing,Fairview Court,4076, 05-Jun-2018
1065,Revenue,CAHD,South Glos Users in South Glos Homes,Permanent Nursing,Fairview Court,632.64, 05-Jun-2018
1066,Revenue,CAHD,Bed Purchasing - South,Permanent Nursing,Fairview Court,3303.2, 05-Jun-2018
1067,Revenue,CAHD,South Glos Users in South Glos Homes,Permanent Nursing,Fairview Court,632.64, 05-Jun-2018
1068,Revenue,CAHD,Bed Purchasing - Southmead Hospital,Permanent Nursing,Fairview Court,3400, 05-Jun-2018
1069,Revenue,CAHD,South Glos Users in South Glos Homes,Permanent Nursing,Fairview Court,632.64, 05-Jun-2018
1070,Revenue,CAHD,Bed Purchasing - Southmead Hospital,Permanent Nursing,Fairview Court,3464.6, 05-Jun-2018
1071,Revenue,CAHD,South Glos Users in South Glos Homes,Permanent Nursing,Fairview Court,632.64, 05-Jun-2018
1072,Revenue,CAHD,South Glos Users in South Glos Homes,Permanent Nursing,Fairview Court,632.64, 05-Jun-2018
1073,Revenue,CAHD,South Glos Users in South Glos Homes,Permanent Nursing,Fairview Court,632.64, 05-Jun-2018
1074,Revenue,CAHD,South Glos Users in South Glos Homes,Permanent Nursing,Fairview Court,632.64, 05-Jun-2018
1075,Revenue,CAHD,South Glos Users in South Glos Homes,Permanent Nursing,Fairview Court,632.64, 05-Jun-2018
1076,Revenue,CAHD,Bed Purchasing - Southmead Hospital,Permanent Nursing,Fairview Court,3464.6, 05-Jun-2018
1077,Revenue,CAHD,South Glos Users in South Glos Homes,Permanent Nursing,Fairview Court,632.64, 05-Jun-2018
1078,Revenue,CAHD,South Glos Users in South Glos Homes,Permanent Nursing,Fairview Court,632.64, 05-Jun-2018
1079,Revenue,CAHD,Bed Purchasing - Southmead Hospital,Permanent Nursing,Fairview Court,3400, 05-Jun-2018
1080,Revenue,CAHD,South Glos Users in South Glos Homes,Permanent Nursing,Fairview Court,632.64, 05-Jun-2018
1081,Revenue,CAHD,South Glos Users in South Glos Homes,Permanent Nursing,Fairview Court,632.64, 05-Jun-2018
1082,Revenue,CAHD,Bed Purchasing - North,Permanent Nursing,Fairview Court,3464.6, 05-Jun-2018
1083,Revenue,CAHD,South Glos Users in South Glos Homes,Permanent Nursing,Fairview Court,632.64, 05-Jun-2018
1084,Revenue,CAHD,South Glos Users in South Glos Homes,Permanent Nursing,Fairview Court,632.64, 05-Jun-2018
1085,Revenue,CAHD,South Glos Users in South Glos Homes,Permanent Nursing,Fairview Court,632.64, 05-Jun-2018
1086,Revenue,CAHD,Bed Purchasing - Southmead Hospital,Permanent Nursing,Fairview Court,3400, 05-Jun-2018
1087,Revenue,CAHD,Bed Purchasing - Southmead Hospital,Permanent Nursing,Fairview Court,2064.29, 05-Jun-2018
1088,Revenue,CAHD,South Glos Users in South Glos Homes,Permanent Nursing,Fairview Court,632.64, 05-Jun-2018
1089,Revenue,CAHD,South Glos Users in South Glos Homes,Permanent Nursing,Fairview Court,632.64, 05-Jun-2018
1090,Revenue,CAHD,Bed Purchasing - Southmead Hospital,Permanent Nursing,Fairview Court,3464.6, 05-Jun-2018
1091,Revenue,CAHD,Bed Purchasing - South,Permanent Nursing,Fairview Court,3057, 05-Jun-2018
1092,Revenue,CAHD,South Glos Users in South Glos Homes,Permanent Nursing,Fairview Court,632.64, 05-Jun-2018
1093,Revenue,CAHD,South Glos Users in South Glos Homes,Permanent Nursing,Fairview Court,632.64, 05-Jun-2018
1094,Revenue,CAHD,Bed Purchasing - South,Permanent Nursing,Fairview Court,3464.6, 05-Jun-2018
1095,Revenue,CAHD,South Glos Users in South Glos Homes,Permanent Nursing,Fairview Court,632.64, 05-Jun-2018
1096,Revenue,CAHD,Bed Purchasing - Southmead Hospital,Permanent Nursing,Fairview Court,3464.6, 05-Jun-2018
1097,Revenue,CAHD,South Glos Users in South Glos Homes,Permanent Nursing,Fairview Court,632.64, 05-Jun-2018
1098,Revenue,CAHD,South Glos Users in South Glos Homes,Permanent Nursing,Fairview Court,632.64, 05-Jun-2018
1099,Revenue,CAHD,South Glos Users in South Glos Homes,Permanent Nursing,Fairview Court,632.64, 05-Jun-2018
1100,Revenue,CAHD,Bed purchasing - Elderly S117 - South,Permanent Residential,Fairview House,2219.2, 05-Jun-2018
1101,Revenue,CAHD,Bed Purchasing - South,Permanent Residential,Fairview House,2149.6, 05-Jun-2018
1102,Revenue,CAHD,Bed Purchasing - South,Permanent Residential,Fairview House,2219.2, 05-Jun-2018
1103,Revenue,CAHD,Bed Purchasing - South,Permanent Residential,Fairview House,2148.68, 05-Jun-2018
1104,Revenue,CAHD,Bed Purchasing - South,Permanent Residential,Fairview House,2219.2, 05-Jun-2018
1105,Revenue,CAHD,Bed Purchasing - South,Permanent Residential,Fairview House,2148.68, 05-Jun-2018
1106,Revenue,CAHD,Bed Purchasing - South,Permanent Residential,Fairview House,2157.48, 05-Jun-2018
1107,Revenue,CAHD,Bed Purchasing - Southmead Hospital,Permanent Residential,Fairview House,2547.52, 05-Jun-2018
1108,Revenue,CAHD,Bed Purchasing - North,Permanent Residential,Faith House,2792.08, 05-Jun-2018
1109,Revenue,CAHD,CSC - Care Leavers Support Costs,Adults - Family Support,Farringtons Sales & Lettings,559, 01-Jun-2018
1110,Revenue,CAHD,Bed Purchasing - Southmead Hospital,Permanent Nursing,Festival House,2983.44, 05-Jun-2018
1111,Revenue,CAHD,Bed Purchasing - North,Permanent Residential,Festival House,3042.44, 05-Jun-2018
1112,Revenue,CAHD,Bed Purchasing - North,Permanent Residential,Festival House,829.76, 05-Jun-2018
1113,Revenue,CAHD,Bed Purchasing - North,Permanent Nursing,Field House Care Home,2164.36, 05-Jun-2018
1114,Revenue,CAHD,South Glos Users in South Glos Homes,Permanent Nursing,Field House Care Home,632.64, 05-Jun-2018
1115,Revenue,CAHD,Bed Purchasing - Southmead Hospital,Permanent Nursing,Field House Care Home,3323.84, 05-Jun-2018
1116,Revenue,CAHD,Bed Purchasing - North,Permanent Nursing,Field House Care Home,3505.36, 05-Jun-2018
1117,Revenue,CAHD,Bed Purchasing - Southmead Hospital,Permanent Nursing,Field House Care Home,3342.32, 05-Jun-2018
1118,Revenue,CAHD,Bed Purchasing - Southmead Hospital,Respite Planned - Nursing,Field House Care Home,3342.32, 05-Jun-2018
1119,Revenue,CAHD,Bed Purchasing - North,Permanent Nursing,Field House Care Home,3342.32, 05-Jun-2018
1120,Revenue,CAHD,Bed Purchasing - North,Permanent Nursing,Field House Care Home,2164.36, 05-Jun-2018
1121,Revenue,CAHD,Bed Purchasing - North,Permanent Nursing,Field House Care Home,1517.14, 05-Jun-2018
1122,Revenue,CAHD,South Glos Users in South Glos Homes,Permanent Nursing,Field House Care Home,632.64, 05-Jun-2018
1123,Revenue,CAHD,Bed Purchasing - North,Permanent Nursing,Field House Care Home,2164.36, 05-Jun-2018
1124,Revenue,CAHD,Bed Purchasing - North,Permanent Nursing,Field House Care Home,1517.14, 05-Jun-2018
1125,Revenue,CAHD,Bed Purchasing - Southmead Hospital,Permanent Nursing,Field House Care Home,3423.84, 05-Jun-2018
1126,Revenue,CAHD,Bed Purchasing - North,Permanent Nursing,Field House Care Home,3423.84, 05-Jun-2018
1127,Revenue,CAHD,Bed Purchasing - North,Permanent Residential,Fieldview,2890.28, 05-Jun-2018
1128,Revenue,CAHD,Bed Purchasing - North,Permanent Residential,Fieldview,3668.4, 05-Jun-2018
1129,Revenue,CAHD,MH Purchasing - Younger,Permanent Nursing,Fieldview,5367.68, 05-Jun-2018
1130,Revenue,CAHD,Bed Purchasing - South,Permanent Residential,Fig House,2890.28, 05-Jun-2018
1131,Revenue,CAHD,Statemented Support Payments to OLAs,Other L.A.'s - General,Filton Avenue Primary School,1131.2, 26-Jun-2018
1132,Revenue,CAHD,Early Years Inclusion Fund,Other Public Bodies,First Steps Day Nursery,900, 06-Jun-2018
1133,Revenue,CAHD,CSC - Agency Fostering,Foster Parent Allowances,Five Rivers Child Care Limited,3336.6, 22-Jun-2018
1134,Revenue,CAHD,CSC - Agency Fostering,Foster Parent Allowances,Five Rivers Child Care Limited,3447.82, 01-Jun-2018
1135,Revenue,CAHD,CSC - Agency Fostering,Foster Parent Allowances,Five Rivers Child Care Limited,3336.6, 29-Jun-2018
1136,Revenue,CAHD,CSC - Agency Fostering,Foster Parent Allowances,Five Rivers Child Care Limited,3938.57, 29-Jun-2018
1137,Revenue,CAHD,CSC - Agency Fostering,Foster Parent Allowances,Five Rivers Child Care Limited,4152.86, 29-Jun-2018
1138,Revenue,CAHD,CSC - Agency Fostering,Foster Parent Allowances,Five Rivers Child Care Limited,3404.7, 29-Jun-2018
1139,Revenue,CAHD,CSC - Agency Fostering,Foster Parent Allowances,Foster Care Associates Limited,3998.4, 15-Jun-2018
1140,Revenue,CAHD,CSC - Asylum Seekers - Unaccompanied,Foster Parent Allowances,Foster Care Associates Limited,3462.6, 15-Jun-2018
1141,Revenue,CAHD,Home Care - Elderly - South,Day Care / Social Activities,Fourways Care Limited,70.08, 01-Jun-2018
1142,Revenue,CAHD,Home Care - Elderly - South,Other Small Contracts,Fourways Care Limited,7183.2, 01-Jun-2018
1143,Revenue,CAHD,Home Care - Elderly - North,Other Small Contracts,Fourways Care Limited,6096.96, 01-Jun-2018
1144,Revenue,CAHD,Younger MH non-res purchasing,Other Small Contracts,Fourways Care Limited,61.32, 01-Jun-2018
1145,Revenue,CAHD,Home care - Elderly MH - North,Other Small Contracts,Fourways Care Limited,508.08, 01-Jun-2018
1146,Revenue,CAHD,Home Care - Elderly - South,Day Care / Social Activities,Fourways Care Limited,35.04, 19-Jun-2018
1147,Revenue,CAHD,Home Care - Elderly - South,Other Small Contracts,Fourways Care Limited,7104.36, 19-Jun-2018
1148,Revenue,CAHD,Home Care - Elderly - North,Other Small Contracts,Fourways Care Limited,5917.38, 19-Jun-2018
1149,Revenue,CAHD,Younger MH non-res purchasing,Other Small Contracts,Fourways Care Limited,48.18, 19-Jun-2018
1150,Revenue,CAHD,Home care - Elderly MH - North,Other Small Contracts,Fourways Care Limited,424.86, 19-Jun-2018
1151,Revenue,CAHD,Home Care - Elderly - South,Day Care / Social Activities,Fourways Care Limited,35.04, 19-Jun-2018
1152,Revenue,CAHD,Home Care - Elderly - South,Other Small Contracts,Fourways Care Limited,6648.84, 19-Jun-2018
1153,Revenue,CAHD,Home Care - Elderly - North,Other Small Contracts,Fourways Care Limited,5939.28, 19-Jun-2018
1154,Revenue,CAHD,Younger MH non-res purchasing,Other Small Contracts,Fourways Care Limited,52.56, 19-Jun-2018
1155,Revenue,CAHD,Home care - Elderly MH - North,Other Small Contracts,Fourways Care Limited,398.58, 19-Jun-2018
1156,Revenue,CAHD,Home Care - Elderly - South,Day Care / Social Activities,Fourways Care Limited,35.04, 20-Jun-2018
1157,Revenue,CAHD,Home Care - Elderly - South,Other Small Contracts,Fourways Care Limited,7148.16, 20-Jun-2018
1158,Revenue,CAHD,Home Care - Elderly - North,Other Small Contracts,Fourways Care Limited,5461.86, 20-Jun-2018
1159,Revenue,CAHD,Younger MH non-res purchasing,Other Small Contracts,Fourways Care Limited,61.32, 20-Jun-2018
1160,Revenue,CAHD,Home care - Elderly MH - North,Other Small Contracts,Fourways Care Limited,424.86, 20-Jun-2018
1161,Revenue,CAHD,Home Care - Elderly - South,Other Small Contracts,Fourways Care Limited,3990.18, 26-Jun-2018
1162,Revenue,CAHD,Home Care - Elderly - North,Other Small Contracts,Fourways Care Limited,5558.22, 26-Jun-2018
1163,Revenue,CAHD,Home care - Elderly MH - North,Other Small Contracts,Fourways Care Limited,490.56, 26-Jun-2018
1164,Revenue,CAHD,Pathway 1 - Re-Ablement Home Care,Other Small Contracts,Fourways Care Limited,556.26, 04-Jun-2018
1165,Revenue,CAHD,Pathway 1 - Re-Ablement Home Care,Other Small Contracts,Fourways Care Limited,670.14, 21-Jun-2018
1166,Revenue,CAHD,Pathway 1 - Re-Ablement Home Care,Other Small Contracts,Fourways Care Limited,538.74, 21-Jun-2018
1167,Revenue,CAHD,Supporting People Programme,Grants to Voluntary Bodies,Freeways Trust Limited,5989.85, 01-Jun-2018
1168,Revenue,CAHD,Supporting People Programme,Grants to Voluntary Bodies,Freeways Trust Limited,5989.85, 29-Jun-2018
1169,Revenue,CAHD,Freeways,Permanent Residential,Freeways Trust Limited,3748.6, 01-Jun-2018
1170,Revenue,CAHD,Freeways,Permanent Residential,Freeways Trust Limited,2410.8, 01-Jun-2018
1171,Revenue,CAHD,Freeways,Permanent Residential,Freeways Trust Limited,2410.8, 01-Jun-2018
1172,Revenue,CAHD,Freeways,Permanent Residential,Freeways Trust Limited,3507.76, 01-Jun-2018
1173,Revenue,CAHD,Freeways,Permanent Residential,Freeways Trust Limited,2410.8, 01-Jun-2018
1174,Revenue,CAHD,Freeways,Permanent Residential,Freeways Trust Limited,3553.44, 01-Jun-2018
1175,Revenue,CAHD,Freeways,Permanent Residential,Freeways Trust Limited,2674.68, 01-Jun-2018
1176,Revenue,CAHD,Freeways,Permanent Residential,Freeways Trust Limited,3719.68, 01-Jun-2018
1177,Revenue,CAHD,Freeways,Permanent Residential,Freeways Trust Limited,2267.4, 01-Jun-2018
1178,Revenue,CAHD,Freeways,Permanent Residential,Freeways Trust Limited,2847.12, 01-Jun-2018
1179,Revenue,CAHD,Freeways,Permanent Residential,Freeways Trust Limited,2819.8, 01-Jun-2018
1180,Revenue,CAHD,Freeways,Permanent Residential,Freeways Trust Limited,3183.32, 01-Jun-2018
1181,Revenue,CAHD,Freeways,Permanent Residential,Freeways Trust Limited,2410.8, 01-Jun-2018
1182,Revenue,CAHD,Freeways,Respite Planned - Residential,Freeways Trust Limited,7512.36, 01-Jun-2018
1183,Revenue,CAHD,Freeways,Respite Planned - Residential,Freeways Trust Limited,541.14, 01-Jun-2018
1184,Revenue,CAHD,Freeways,Permanent Residential,Freeways Trust Limited,3748.6, 22-Jun-2018
1185,Revenue,CAHD,Freeways,Permanent Residential,Freeways Trust Limited,2410.8, 22-Jun-2018
1186,Revenue,CAHD,Freeways,Permanent Residential,Freeways Trust Limited,2410.8, 22-Jun-2018
1187,Revenue,CAHD,Freeways,Permanent Residential,Freeways Trust Limited,3507.76, 22-Jun-2018
1188,Revenue,CAHD,Freeways,Permanent Residential,Freeways Trust Limited,2410.8, 22-Jun-2018
1189,Revenue,CAHD,Freeways,Permanent Residential,Freeways Trust Limited,3553.44, 22-Jun-2018
1190,Revenue,CAHD,Freeways,Permanent Residential,Freeways Trust Limited,2674.68, 22-Jun-2018
1191,Revenue,CAHD,Freeways,Permanent Residential,Freeways Trust Limited,3719.68, 22-Jun-2018
1192,Revenue,CAHD,Freeways,Permanent Residential,Freeways Trust Limited,2267.4, 22-Jun-2018
1193,Revenue,CAHD,Freeways,Permanent Residential,Freeways Trust Limited,2847.12, 22-Jun-2018
1194,Revenue,CAHD,Freeways,Permanent Residential,Freeways Trust Limited,2819.8, 22-Jun-2018
1195,Revenue,CAHD,Freeways,Permanent Residential,Freeways Trust Limited,3183.32, 22-Jun-2018
1196,Revenue,CAHD,Freeways,Permanent Residential,Freeways Trust Limited,2410.8, 22-Jun-2018
1197,Revenue,CAHD,Freeways,Respite Planned - Residential,Freeways Trust Limited,1099.37, 22-Jun-2018
1198,Revenue,CAHD,Freeways,Respite Planned - Residential,Freeways Trust Limited,549.69, 22-Jun-2018
1199,Revenue,CAHD,Freeways,Respite Planned - Residential,Freeways Trust Limited,2290.36, 22-Jun-2018
1200,Revenue,CAHD,Freeways,Respite Planned - Residential,Freeways Trust Limited,1465.83, 22-Jun-2018
1201,Revenue,CAHD,Home Care - Elderly - North,Other Small Contracts,Freeways Trust Limited,827.2, 19-Jun-2018
1202,Revenue,CAHD,Home Care - Elderly - South,Day Care / Social Activities,Freeways Trust Limited,526.4, 19-Jun-2018
1203,Revenue,CAHD,Home Care - Elderly - South,Day Care / Social Activities,Freeways Trust Limited,1128, 19-Jun-2018
1204,Revenue,CAHD,Home Care - Elderly - North,Supported Living,Freeways Trust Ltd,825.8, 05-Jun-2018
1205,Revenue,CAHD,Bed purchasing - S28A Under 65 - South,Permanent Residential,Freeways Trust Ltd,3795.56, 05-Jun-2018
1206,Revenue,CAHD,Bed Purchasing - North,Permanent Residential,Freeways Trust Ltd,3675.2, 05-Jun-2018
1207,Revenue,CAHD,Bed Purchasing - South,Permanent Residential,Freeways Trust Ltd,3897.84, 05-Jun-2018
1208,Revenue,CAHD,Bed Purchasing - North,Permanent Residential,Freeways Trust Ltd,2943.2, 05-Jun-2018
1209,Revenue,CAHD,Bed Purchasing - South,Permanent Residential,Freeways Trust Ltd,3101.48, 05-Jun-2018
1210,Revenue,CAHD,Bed Purchasing - North,Permanent Residential,Freeways Trust Ltd,3250.6, 05-Jun-2018
1211,Revenue,CAHD,Bed Purchasing - North,Permanent Residential,Freeways Trust Ltd,3890.76, 05-Jun-2018
1212,Revenue,CAHD,18-25 Year Olds,Permanent Residential,Freeways Trust Ltd,3594.2, 05-Jun-2018
1213,Revenue,CAHD,Section 117 Placements MH Younger,Permanent Residential,Freeways Trust Ltd,3260.8, 05-Jun-2018
1214,Revenue,CAHD,Home Care - Elderly - South,Day Care / Social Activities,Frenchay Beckspool Building,801.44, 05-Jun-2018
1215,Revenue,CAHD,Home Care - Elderly - North,Day Care / Social Activities,Frenchay Beckspool Building,1202.16, 05-Jun-2018
1216,Revenue,CAHD,Home Care - Elderly - South,Day Care / Social Activities,Frenchay Beckspool Building,880.4, 05-Jun-2018
1217,Revenue,CAHD,Home Care - Elderly - South,Day Care / Social Activities,Frenchay Beckspool Building,536.96, 05-Jun-2018
1218,Revenue,CAHD,Pathway 3 - (Complex Beds),Permanent Nursing,Frenchay House,3264, 08-Jun-2018
1219,Revenue,CAHD,Pathway 3 - (Complex Beds),Permanent Nursing,Frenchay House,3264, 15-Jun-2018
1220,Revenue,CAHD,Bed Purchasing - Southmead Hospital,Permanent Nursing,Frenchay Park Nursing Home,3260.8, 05-Jun-2018
1221,Revenue,CAHD,Early Years High Needs Support,Other Private Contractors,Frenchay Pre School Playgroup,880.77, 28-Jun-2018
1222,Revenue,CAHD,CSC - Residential Placements,Permanent Residential,Friends Therapeutic Community Trust,15000, 29-Jun-2018
1223,Revenue,CAHD,South Glos Users in South Glos Homes,Permanent Nursing,Fshc  1St Floor,632.64, 05-Jun-2018
1224,Revenue,CAHD,Bed Purchasing - South,Permanent Nursing,Fshc  1St Floor,4006.44, 05-Jun-2018
1225,Revenue,CAHD,Bed Purchasing - South,Permanent Nursing,Fshc  1St Floor,2670.96, 05-Jun-2018
1226,Revenue,CAHD,South Glos Users in South Glos Homes,Permanent Nursing,Fshc  1St Floor,632.64, 05-Jun-2018
1227,Revenue,CAHD,Bed Purchasing - South,Fees & Charges Income - General,Fshc  1St Floor,2575.62, 05-Jun-2018
1228,Revenue,CAHD,Bed Purchasing - South,Fees & Charges Income - General,Fshc  1St Floor,507.62, 05-Jun-2018
1229,Revenue,CAHD,Bed Purchasing - Southmead Hospital,Permanent Nursing,Fshc  1St Floor,2324.64, 05-Jun-2018
1230,Revenue,CAHD,Bed Purchasing - South,Permanent Nursing,Fshc  1St Floor,2310.44, 05-Jun-2018
1231,Revenue,CAHD,South Glos Users in South Glos Homes,Permanent Nursing,Fshc  1St Floor,632.64, 05-Jun-2018
1232,Revenue,CAHD,Bed Purchasing - Southmead Hospital,Permanent Nursing,Fshc  1St Floor,2436.12, 05-Jun-2018
1233,Revenue,CAHD,South Glos Users in South Glos Homes,Permanent Nursing,Fshc  1St Floor,632.64, 05-Jun-2018
1234,Revenue,CAHD,Bed Purchasing - Southmead Hospital,Permanent Nursing,Fshc  1St Floor,2310.44, 05-Jun-2018
1235,Revenue,CAHD,South Glos Users in South Glos Homes,Permanent Nursing,Fshc  1St Floor,632.64, 05-Jun-2018
1236,Revenue,CAHD,Bed Purchasing - South,Permanent Residential,Fshc  1St Floor,2404.84, 05-Jun-2018
1237,Revenue,CAHD,Bed Purchasing - Southmead Hospital,Permanent Nursing,Fshc  1St Floor,2560, 05-Jun-2018
1238,Revenue,CAHD,South Glos Users in South Glos Homes,Permanent Nursing,Fshc  1St Floor,632.64, 05-Jun-2018
1239,Revenue,CAHD,South Glos Users in South Glos Homes,Permanent Nursing,Fshc  1St Floor,632.64, 05-Jun-2018
1240,Revenue,CAHD,Bed Purchasing - Southmead Hospital,Permanent Nursing,Fshc  1St Floor,2310.44, 05-Jun-2018
1241,Revenue,CAHD,Bed Purchasing - Southmead Hospital,Permanent Nursing,Fshc  1St Floor,2404.84, 05-Jun-2018
1242,Revenue,CAHD,South Glos Users in South Glos Homes,Permanent Nursing,Fshc  1St Floor,632.64, 05-Jun-2018
1243,Revenue,CAHD,Bed Purchasing - South,Respite Emergency - Residential,Fshc  1St Floor,4834.29, 05-Jun-2018
1244,Revenue,CAHD,Bed Purchasing - South,Respite Emergency - Residential,Fshc  1St Floor,4479.84, 05-Jun-2018
1245,Revenue,CAHD,Bed Purchasing - South,Respite Emergency - Residential,Fshc  1St Floor,2986.56, 05-Jun-2018
1246,Revenue,CAHD,Bed Purchasing - South,Respite Emergency - Residential,Fshc  1St Floor,4402.08, 05-Jun-2018
1247,Revenue,CAHD,Bed Purchasing - South,Permanent Nursing,Fshc  1St Floor,2663.2, 05-Jun-2018
1248,Revenue,CAHD,South Glos Users in South Glos Homes,Permanent Nursing,Fshc  1St Floor,632.64, 05-Jun-2018
1249,Revenue,CAHD,South Glos Users in South Glos Homes,Permanent Nursing,Fshc  1St Floor,632.64, 05-Jun-2018
1250,Revenue,CAHD,South Glos Users in South Glos Homes,Permanent Nursing,Fshc  1St Floor,632.64, 05-Jun-2018
1251,Revenue,CAHD,Bed Purchasing - South,Permanent Nursing,Fshc  1St Floor,2404.84, 05-Jun-2018
1252,Revenue,CAHD,South Glos Users in South Glos Homes,Permanent Nursing,Fshc  1St Floor,632.64, 05-Jun-2018
1253,Revenue,CAHD,South Glos Users in South Glos Homes,Permanent Nursing,Fshc  1St Floor,632.64, 05-Jun-2018
1254,Revenue,CAHD,Bed Purchasing - Southmead Hospital,Permanent Nursing,Fshc  1St Floor,2324.64, 05-Jun-2018
1255,Revenue,CAHD,South Glos Users in South Glos Homes,Permanent Nursing,Fshc  1St Floor,632.64, 05-Jun-2018
1256,Revenue,CAHD,Bed Purchasing - Southmead Hospital,Permanent Nursing,Fshc  1St Floor,2404.84, 05-Jun-2018
1257,Revenue,CAHD,South Glos Users in South Glos Homes,Permanent Nursing,Fshc  1St Floor,632.64, 05-Jun-2018
1258,Revenue,CAHD,Bed Purchasing - South,Permanent Nursing,Fshc  1St Floor,2310.44, 05-Jun-2018
1259,Revenue,CAHD,South Glos Users in South Glos Homes,Permanent Nursing,Fshc  1St Floor,632.64, 05-Jun-2018
1260,Revenue,CAHD,Bed Purchasing - Southmead Hospital,Permanent Nursing,Fshc  1St Floor,2310.44, 05-Jun-2018
1261,Revenue,CAHD,South Glos Users in South Glos Homes,Permanent Nursing,Fshc  1St Floor,632.64, 05-Jun-2018
1262,Revenue,CAHD,Bed Purchasing - South,Permanent Nursing,Fshc  1St Floor,2310.44, 05-Jun-2018
1263,Revenue,CAHD,South Glos Users in South Glos Homes,Permanent Nursing,Fshc  1St Floor,632.64, 05-Jun-2018
1264,Revenue,CAHD,Bed Purchasing - South,Permanent Nursing,Fshc  1St Floor,2324.64, 05-Jun-2018
1265,Revenue,CAHD,South Glos Users in South Glos Homes,Permanent Nursing,Fshc  1St Floor,632.64, 05-Jun-2018
1266,Revenue,CAHD,Bed Purchasing - Southmead Hospital,Permanent Nursing,Fshc  1St Floor,3200, 05-Jun-2018
1267,Revenue,CAHD,Bed Purchasing - Southmead Hospital,Permanent Nursing,Fshc  1St Floor,2285.71, 05-Jun-2018
1268,Revenue,CAHD,Bed Purchasing - South,Permanent Nursing,Fshc  1St Floor,2785.71, 05-Jun-2018
1269,Revenue,CAHD,Bed Purchasing - South,Permanent Nursing,Fshc  1St Floor,2600, 05-Jun-2018
1270,Revenue,CAHD,South Glos Users in South Glos Homes,Permanent Nursing,Fshc  1St Floor,632.64, 05-Jun-2018
1271,Revenue,CAHD,Bed Purchasing - Southmead Hospital,Permanent Nursing,Fshc  1St Floor,2445.6, 05-Jun-2018
1272,Revenue,CAHD,South Glos Users in South Glos Homes,Permanent Nursing,Fshc  1St Floor,632.64, 05-Jun-2018
1273,Revenue,CAHD,Bed Purchasing - South,Permanent Nursing,Fshc  1St Floor,1631.86, 05-Jun-2018
1274,Revenue,CAHD,South Glos Users in South Glos Homes,Permanent Nursing,Fshc  1St Floor,632.64, 05-Jun-2018
1275,Revenue,CAHD,Bed Purchasing - South,Permanent Nursing,Fshc  1St Floor,772.98, 05-Jun-2018
1276,Revenue,CAHD,Bed Purchasing - Southmead Hospital,Permanent Nursing,Fshc  1St Floor,2864.24, 05-Jun-2018
1277,Revenue,CAHD,Bed Purchasing - Southmead Hospital,Permanent Nursing,Fshc  1St Floor,2310.44, 05-Jun-2018
1278,Revenue,CAHD,South Glos Users in South Glos Homes,Permanent Nursing,Fshc  1St Floor,632.64, 05-Jun-2018
1279,Revenue,CAHD,Bed Purchasing - Southmead Hospital,Permanent Nursing,Fshc  1St Floor,2339.64, 05-Jun-2018
1280,Revenue,CAHD,South Glos Users in South Glos Homes,Permanent Nursing,Fshc  1St Floor,632.64, 05-Jun-2018
1281,Revenue,CAHD,Bed Purchasing - North,Permanent Nursing,Fshc  1St Floor,2339.64, 05-Jun-2018
1282,Revenue,CAHD,South Glos Users in South Glos Homes,Permanent Nursing,Fshc  1St Floor,632.64, 05-Jun-2018
1283,Revenue,CAHD,Bed Purchasing - Southmead Hospital,Permanent Nursing,Fshc  1St Floor,2339.64, 05-Jun-2018
1284,Revenue,CAHD,South Glos Users in South Glos Homes,Permanent Nursing,Fshc  1St Floor,632.64, 05-Jun-2018
1285,Revenue,CAHD,South Glos Users in South Glos Homes,Permanent Nursing,Fshc  1St Floor,632.64, 05-Jun-2018
1286,Revenue,CAHD,Bed Purchasing - Southmead Hospital,Permanent Nursing,Fshc  1St Floor,2310.44, 05-Jun-2018
1287,Revenue,CAHD,South Glos Users in South Glos Homes,Permanent Nursing,Fshc  1St Floor,632.64, 05-Jun-2018
1288,Revenue,CAHD,Bed Purchasing - Southmead Hospital,Permanent Residential,Fshc  1St Floor,2148.68, 05-Jun-2018
1289,Revenue,CAHD,South Glos Users in South Glos Homes,Permanent Nursing,Fshc  1St Floor,632.64, 05-Jun-2018
1290,Revenue,CAHD,Bed Purchasing - North,Permanent Residential,Fshc  1St Floor,2832.84, 05-Jun-2018
1291,Revenue,CAHD,Bed Purchasing - South,Permanent Residential,Fshc  1St Floor,2751.32, 05-Jun-2018
1292,Revenue,CAHD,Bed Purchasing - North,Permanent Nursing,Fshc  1St Floor,2339.64, 05-Jun-2018
1293,Revenue,CAHD,South Glos Users in South Glos Homes,Permanent Nursing,Fshc  1St Floor,632.64, 05-Jun-2018
1294,Revenue,CAHD,South Glos Users in South Glos Homes,Permanent Nursing,Fshc  1St Floor,632.64, 05-Jun-2018
1295,Revenue,CAHD,Bed Purchasing - Southmead Hospital,Permanent Nursing,Fshc  1St Floor,2311.2, 05-Jun-2018
1296,Revenue,CAHD,South Glos Users in South Glos Homes,Permanent Nursing,Fshc  1St Floor,632.64, 05-Jun-2018
1297,Revenue,CAHD,Bed Purchasing - Southmead Hospital,Permanent Nursing,Fshc  1St Floor,2310.44, 05-Jun-2018
1298,Revenue,CAHD,South Glos Users in South Glos Homes,Permanent Nursing,Fshc  1St Floor,632.64, 05-Jun-2018
1299,Revenue,CAHD,Bed Purchasing - North,Permanent Nursing,Fshc  1St Floor,2310.44, 05-Jun-2018
1300,Revenue,CAHD,South Glos Users in South Glos Homes,Permanent Nursing,Fshc  1St Floor,632.64, 05-Jun-2018
1301,Revenue,CAHD,Bed Purchasing - North,Permanent Nursing,Fshc  1St Floor,2310.44, 05-Jun-2018
1302,Revenue,CAHD,South Glos Users in South Glos Homes,Permanent Nursing,Fshc  1St Floor,632.64, 05-Jun-2018
1303,Revenue,CAHD,Bed Purchasing - North,Permanent Nursing,Fshc  1St Floor,3509.46, 05-Jun-2018
1304,Revenue,CAHD,Bed Purchasing - North,Permanent Nursing,Fshc  1St Floor,2339.64, 05-Jun-2018
1305,Revenue,CAHD,Bed Purchasing - North,Permanent Nursing,Fshc  1St Floor,1394, 05-Jun-2018
1306,Revenue,CAHD,South Glos Users in South Glos Homes,Permanent Nursing,Fshc  1St Floor,632.64, 05-Jun-2018
1307,Revenue,CAHD,Bed Purchasing - North,Fees & Charges Income - General,Fshc  1St Floor,808.87, 05-Jun-2018
1308,Revenue,CAHD,Bed Purchasing - North,Permanent Nursing,Fshc  1St Floor,2339.64, 05-Jun-2018
1309,Revenue,CAHD,South Glos Users in South Glos Homes,Permanent Nursing,Fshc  1St Floor,632.64, 05-Jun-2018
1310,Revenue,CAHD,Bed Purchasing - North,Permanent Nursing,Fshc  1St Floor,2310.44, 05-Jun-2018
1311,Revenue,CAHD,South Glos Users in South Glos Homes,Permanent Nursing,Fshc  1St Floor,632.64, 05-Jun-2018
1312,Revenue,CAHD,South Glos Users in South Glos Homes,Permanent Nursing,Fshc  1St Floor,632.64, 05-Jun-2018
1313,Revenue,CAHD,Bed Purchasing - North,Permanent Residential,Fshc  1St Floor,2751.32, 05-Jun-2018
1314,Revenue,CAHD,Bed Purchasing - North,Permanent Nursing,Fshc  1St Floor,2310.44, 05-Jun-2018
1315,Revenue,CAHD,South Glos Users in South Glos Homes,Permanent Nursing,Fshc  1St Floor,632.64, 05-Jun-2018
1316,Revenue,CAHD,Bed Purchasing - Southmead Hospital,Permanent Nursing,Fshc  1St Floor,2311.2, 05-Jun-2018
1317,Revenue,CAHD,Bed Purchasing - Southmead Hospital,Permanent Nursing,Fshc  1St Floor,825.43, 05-Jun-2018
1318,Revenue,CAHD,South Glos Users in South Glos Homes,Permanent Nursing,Fshc  1St Floor,632.64, 05-Jun-2018
1319,Revenue,CAHD,South Glos Users in South Glos Homes,Permanent Nursing,Fshc  1St Floor,632.64, 05-Jun-2018
1320,Revenue,CAHD,Bed Purchasing - Southmead Hospital,Permanent Nursing,Fshc  1St Floor,2310.44, 05-Jun-2018
1321,Revenue,CAHD,South Glos Users in South Glos Homes,Permanent Nursing,Fshc  1St Floor,632.64, 05-Jun-2018
1322,Revenue,CAHD,South Glos Users in South Glos Homes,Permanent Nursing,Fshc  1St Floor,632.64, 05-Jun-2018
1323,Revenue,CAHD,South Glos Users in South Glos Homes,Permanent Nursing,Fshc  1St Floor,632.64, 05-Jun-2018
1324,Revenue,CAHD,Bed Purchasing - North,Permanent Nursing,Fshc  1St Floor,3465.66, 05-Jun-2018
1325,Revenue,CAHD,Bed Purchasing - North,Permanent Nursing,Fshc  1St Floor,2310.44, 05-Jun-2018
1326,Revenue,CAHD,Bed Purchasing - North,Permanent Nursing,Fshc  1St Floor,1352.71, 05-Jun-2018
1327,Revenue,CAHD,Bed Purchasing - North,Fees & Charges Income - General,Fshc  1St Floor,1486.98, 05-Jun-2018
1328,Revenue,CAHD,Bed Purchasing - North,Fees & Charges Income - General,Fshc  1St Floor,808.87, 05-Jun-2018
1329,Revenue,CAHD,South Glos Users in South Glos Homes,Permanent Nursing,Fshc  1St Floor,632.64, 05-Jun-2018
1330,Revenue,CAHD,Bed Purchasing - North,Permanent Nursing,Fshc  1St Floor,3465.66, 05-Jun-2018
1331,Revenue,CAHD,Bed Purchasing - North,Permanent Nursing,Fshc  1St Floor,2310.44, 05-Jun-2018
1332,Revenue,CAHD,South Glos Users in South Glos Homes,Permanent Nursing,Fshc  1St Floor,632.64, 05-Jun-2018
1333,Revenue,CAHD,Bed Purchasing - North,Fees & Charges Income - General,Fshc  1St Floor,953.19, 05-Jun-2018
1334,Revenue,CAHD,Bed Purchasing - North,Permanent Nursing,Fshc  1St Floor,2310.44, 05-Jun-2018
1335,Revenue,CAHD,South Glos Users in South Glos Homes,Permanent Nursing,Fshc  1St Floor,632.64, 05-Jun-2018
1336,Revenue,CAHD,Bed Purchasing - North,Permanent Nursing,Fshc  1St Floor,2310.44, 05-Jun-2018
1337,Revenue,CAHD,South Glos Users in South Glos Homes,Permanent Nursing,Fshc  1St Floor,632.64, 05-Jun-2018
1338,Revenue,CAHD,Bed Purchasing - North,Permanent Nursing,Fshc  1St Floor,2310.44, 05-Jun-2018
1339,Revenue,CAHD,South Glos Users in South Glos Homes,Permanent Nursing,Fshc  1St Floor,632.64, 05-Jun-2018
1340,Revenue,CAHD,South Glos Users in South Glos Homes,Permanent Nursing,Fshc  1St Floor,632.64, 05-Jun-2018
1341,Revenue,CAHD,Bed Purchasing - Southmead Hospital,Permanent Nursing,Fshc  1St Floor,2310.44, 05-Jun-2018
1342,Revenue,CAHD,South Glos Users in South Glos Homes,Permanent Nursing,Fshc  1St Floor,632.64, 05-Jun-2018
1343,Revenue,CAHD,Bed Purchasing - North,Permanent Nursing,Fshc  1St Floor,2380.96, 05-Jun-2018
1344,Revenue,CAHD,South Glos Users in South Glos Homes,Permanent Nursing,Fshc  1St Floor,632.64, 05-Jun-2018
1345,Revenue,CAHD,Bed Purchasing - North,Permanent Nursing,Fshc  1St Floor,2270.32, 05-Jun-2018
1346,Revenue,CAHD,South Glos Users in South Glos Homes,Permanent Nursing,Fshc  1St Floor,632.64, 05-Jun-2018
1347,Revenue,CAHD,Bed Purchasing - North,Permanent Nursing,Fshc  1St Floor,2380.96, 05-Jun-2018
1348,Revenue,CAHD,South Glos Users in South Glos Homes,Permanent Nursing,Fshc  1St Floor,632.64, 05-Jun-2018
1349,Revenue,CAHD,Bed Purchasing - Southmead Hospital,Permanent Nursing,Fshc  1St Floor,2427.84, 05-Jun-2018
1350,Revenue,CAHD,South Glos Users in South Glos Homes,Permanent Nursing,Fshc  1St Floor,632.64, 05-Jun-2018
1351,Revenue,CAHD,South Glos Users in South Glos Homes,Permanent Nursing,Fshc  1St Floor,632.64, 05-Jun-2018
1352,Revenue,CAHD,Bed Purchasing - North,Permanent Nursing,Fshc  1St Floor,3465.66, 05-Jun-2018
1353,Revenue,CAHD,Bed Purchasing - North,Permanent Nursing,Fshc  1St Floor,2310.44, 05-Jun-2018
1354,Revenue,CAHD,South Glos Users in South Glos Homes,Permanent Nursing,Fshc  1St Floor,632.64, 05-Jun-2018
1355,Revenue,CAHD,Bed Purchasing - North,Fees & Charges Income - General,Fshc  1St Floor,808.87, 05-Jun-2018
1356,Revenue,CAHD,Bed Purchasing - North,Permanent Nursing,Fshc  1St Floor,2310.44, 05-Jun-2018
1357,Revenue,CAHD,South Glos Users in South Glos Homes,Permanent Nursing,Fshc  1St Floor,632.64, 05-Jun-2018
1358,Revenue,CAHD,Bed Purchasing - Southmead Hospital,Permanent Nursing,Fshc  1St Floor,3158.92, 05-Jun-2018
1359,Revenue,CAHD,South Glos Users in South Glos Homes,Permanent Nursing,Fshc  1St Floor,632.64, 05-Jun-2018
1360,Revenue,CAHD,South Glos Users in South Glos Homes,Permanent Nursing,Fshc  1St Floor,632.64, 05-Jun-2018
1361,Revenue,CAHD,South Glos Users in South Glos Homes,Permanent Nursing,Fshc  1St Floor,632.64, 05-Jun-2018
1362,Revenue,CAHD,Bed Purchasing - North,Permanent Nursing,Fshc  1St Floor,2967.36, 05-Jun-2018
1363,Revenue,CAHD,Bed Purchasing - North,Permanent Nursing,Fshc  1St Floor,1801.61, 05-Jun-2018
1364,Revenue,CAHD,South Glos Users in South Glos Homes,Permanent Nursing,Fshc  1St Floor,632.64, 05-Jun-2018
1365,Revenue,CAHD,Bed Purchasing - North,Permanent Nursing,Fshc  1St Floor,1908.28, 05-Jun-2018
1366,Revenue,CAHD,Bed Purchasing - Elderly S117- North,Respite Planned - Nursing,Fshc  1St Floor,2879.4, 05-Jun-2018
1367,Revenue,CAHD,South Glos Users in South Glos Homes,Permanent Nursing,Fshc  1St Floor,632.64, 05-Jun-2018
1368,Revenue,CAHD,South Glos Users in South Glos Homes,Permanent Nursing,Fshc  1St Floor,632.64, 05-Jun-2018
1369,Revenue,CAHD,South Glos Users in South Glos Homes,Permanent Nursing,Fshc  1St Floor,632.64, 05-Jun-2018
1370,Revenue,CAHD,Bed Purchasing - North,Respite Planned - Nursing,Fshc  1St Floor,2550, 05-Jun-2018
1371,Revenue,CAHD,South Glos Users in South Glos Homes,Permanent Nursing,Fshc  1St Floor,632.64, 05-Jun-2018
1372,Revenue,CAHD,Bed Purchasing - South,Permanent Nursing,Fshc  1St Floor,2554.8, 05-Jun-2018
1373,Revenue,CAHD,South Glos Users in South Glos Homes,Permanent Nursing,Fshc  1St Floor,632.64, 05-Jun-2018
1374,Revenue,CAHD,South Glos Users in South Glos Homes,Permanent Nursing,Fshc  1St Floor,632.64, 05-Jun-2018
1375,Revenue,CAHD,South Glos Users in South Glos Homes,Permanent Nursing,Fshc  1St Floor,632.64, 05-Jun-2018
1376,Revenue,CAHD,South Glos Users in South Glos Homes,Permanent Nursing,Fshc  1St Floor,632.64, 05-Jun-2018
1377,Revenue,CAHD,Bed Purchasing - North,Permanent Nursing,Fshc  1St Floor,2323.12, 05-Jun-2018
1378,Revenue,CAHD,South Glos Users in South Glos Homes,Permanent Nursing,Fshc  1St Floor,632.64, 05-Jun-2018
1379,Revenue,CAHD,South Glos Users in South Glos Homes,Permanent Nursing,Fshc  1St Floor,632.64, 05-Jun-2018
1380,Revenue,CAHD,Bed Purchasing - North,Respite Planned - Nursing,Fshc  1St Floor,2526.92, 05-Jun-2018
1381,Revenue,CAHD,South Glos Users in South Glos Homes,Permanent Nursing,Fshc  1St Floor,632.64, 05-Jun-2018
1382,Revenue,CAHD,Bed Purchasing - Southmead Hospital,Permanent Nursing,Fshc  1St Floor,2451.6, 05-Jun-2018
1383,Revenue,CAHD,South Glos Users in South Glos Homes,Permanent Nursing,Fshc  1St Floor,632.64, 05-Jun-2018
1384,Revenue,CAHD,South Glos Users in South Glos Homes,Permanent Nursing,Fshc  1St Floor,632.64, 05-Jun-2018
1385,Revenue,CAHD,Bed Purchasing - North,Respite Emergency - Residential,Fshc  1St Floor,621.43, 05-Jun-2018
1386,Revenue,CAHD,Bed Purchasing - Southmead Hospital,Permanent Nursing,Fshc  1St Floor,2547.52, 05-Jun-2018
1387,Revenue,CAHD,South Glos Users in South Glos Homes,Permanent Nursing,Fshc  1St Floor,632.64, 05-Jun-2018
1388,Revenue,CAHD,South Glos Users in South Glos Homes,Permanent Nursing,Fshc  1St Floor,632.64, 05-Jun-2018
1389,Revenue,CAHD,South Glos Users in South Glos Homes,Permanent Nursing,Fshc  1St Floor,632.64, 05-Jun-2018
1390,Revenue,CAHD,Bed Purchasing - Southmead Hospital,Permanent Nursing,Fshc  1St Floor,2554.8, 05-Jun-2018
1391,Revenue,CAHD,South Glos Users in South Glos Homes,Permanent Nursing,Fshc  1St Floor,632.64, 05-Jun-2018
1392,Revenue,CAHD,Bed Purchasing - Southmead Hospital,Permanent Nursing,Fshc  1St Floor,2260.44, 05-Jun-2018
1393,Revenue,CAHD,Bed Purchasing - North,Permanent Nursing,Fshc  1St Floor,2380.96, 05-Jun-2018
1394,Revenue,CAHD,South Glos Users in South Glos Homes,Permanent Nursing,Fshc  1St Floor,632.64, 05-Jun-2018
1395,Revenue,CAHD,Bed Purchasing - North,Fees & Charges Income - General,Fshc  1St Floor,939.72, 05-Jun-2018
1396,Revenue,CAHD,South Glos Users in South Glos Homes,Permanent Nursing,Fshc  1St Floor,632.64, 05-Jun-2018
1397,Revenue,CAHD,Bed Purchasing - Southmead Hospital,Permanent Nursing,Fshc  1St Floor,3158.92, 05-Jun-2018
1398,Revenue,CAHD,South Glos Users in South Glos Homes,Permanent Nursing,Fshc  1St Floor,632.64, 05-Jun-2018
1399,Revenue,CAHD,South Glos Users in South Glos Homes,Permanent Nursing,Fshc  1St Floor,632.64, 05-Jun-2018
1400,Revenue,CAHD,Bed Purchasing - North,Permanent Nursing,Fshc  1St Floor,2456.52, 05-Jun-2018
1401,Revenue,CAHD,South Glos Users in South Glos Homes,Permanent Nursing,Fshc  1St Floor,632.64, 05-Jun-2018
1402,Revenue,CAHD,South Glos Users in South Glos Homes,Permanent Nursing,Fshc  1St Floor,632.64, 05-Jun-2018
1403,Revenue,CAHD,Bed Purchasing - North,Permanent Nursing,Fshc  1St Floor,2310.44, 05-Jun-2018
1404,Revenue,CAHD,Bed Purchasing - North,Fees & Charges Income - General,Fshc  1St Floor,713.69, 05-Jun-2018
1405,Revenue,CAHD,Bed Purchasing - South,Permanent Nursing,Fshc  1St Floor,2554.8, 05-Jun-2018
1406,Revenue,CAHD,South Glos Users in South Glos Homes,Permanent Nursing,Fshc  1St Floor,632.64, 05-Jun-2018
1407,Revenue,CAHD,Bed Purchasing - Southmead Hospital,Permanent Nursing,Fshc  1St Floor,2380.96, 05-Jun-2018
1408,Revenue,CAHD,South Glos Users in South Glos Homes,Permanent Nursing,Fshc  1St Floor,632.64, 05-Jun-2018
1409,Revenue,CAHD,Bed Purchasing - South,Permanent Nursing,Fshc  1St Floor,3716.1, 05-Jun-2018
1410,Revenue,CAHD,Bed Purchasing - South,Permanent Nursing,Fshc  1St Floor,2477.4, 05-Jun-2018
1411,Revenue,CAHD,South Glos Users in South Glos Homes,Permanent Nursing,Fshc  1St Floor,632.64, 05-Jun-2018
1412,Revenue,CAHD,Bed Purchasing - South,Fees & Charges Income - General,Fshc  1St Floor,928.24, 05-Jun-2018
1413,Revenue,CAHD,South Glos Users in South Glos Homes,Permanent Nursing,Fshc  1St Floor,632.64, 05-Jun-2018
1414,Revenue,CAHD,Bed Purchasing - South,Permanent Nursing,Fshc  1St Floor,2547.52, 05-Jun-2018
1415,Revenue,CAHD,South Glos Users in South Glos Homes,Permanent Nursing,Fshc  1St Floor,632.64, 05-Jun-2018
1416,Revenue,CAHD,Bed Purchasing - Southmead Hospital,Permanent Nursing,Fshc  1St Floor,2310.44, 05-Jun-2018
1417,Revenue,CAHD,South Glos Users in South Glos Homes,Permanent Nursing,Fshc  1St Floor,632.64, 05-Jun-2018
1418,Revenue,CAHD,South Glos Users in South Glos Homes,Permanent Nursing,Fshc  1St Floor,632.64, 05-Jun-2018
1419,Revenue,CAHD,South Glos Users in South Glos Homes,Permanent Nursing,Fshc  1St Floor,632.64, 05-Jun-2018
1420,Revenue,CAHD,Bed Purchasing - South,Permanent Nursing,Fshc  1St Floor,2343.72, 05-Jun-2018
1421,Revenue,CAHD,Bed Purchasing - Southmead Hospital,Fees & Charges Income - General,Fshc  1St Floor,918.66, 05-Jun-2018
1422,Revenue,CAHD,Bed Purchasing - South,Permanent Nursing,Fshc  1St Floor,2310.44, 05-Jun-2018
1423,Revenue,CAHD,South Glos Users in South Glos Homes,Permanent Nursing,Fshc  1St Floor,632.64, 05-Jun-2018
1424,Revenue,CAHD,South Glos Users in South Glos Homes,Permanent Nursing,Fshc  1St Floor,632.64, 05-Jun-2018
1425,Revenue,CAHD,Bed Purchasing - Southmead Hospital,Permanent Nursing,Fshc  1St Floor,2445.6, 05-Jun-2018
1426,Revenue,CAHD,South Glos Users in South Glos Homes,Permanent Nursing,Fshc  1St Floor,632.64, 05-Jun-2018
1427,Revenue,CAHD,South Glos Users in South Glos Homes,Permanent Nursing,Fshc  1St Floor,632.64, 05-Jun-2018
1428,Revenue,CAHD,Bed Purchasing - Southmead Hospital,Permanent Nursing,Fshc  1St Floor,2311.2, 05-Jun-2018
1429,Revenue,CAHD,South Glos Users in South Glos Homes,Permanent Nursing,Fshc  1St Floor,632.64, 05-Jun-2018
1430,Revenue,CAHD,South Glos Users in South Glos Homes,Permanent Nursing,Fshc  1St Floor,632.64, 05-Jun-2018
1431,Revenue,CAHD,South Glos Users in South Glos Homes,Permanent Nursing,Fshc  1St Floor,632.64, 05-Jun-2018
1432,Revenue,CAHD,Bed Purchasing - Southmead Hospital,Permanent Residential,Fshc  1St Floor,2343.72, 05-Jun-2018
1433,Revenue,CAHD,South Glos Users in South Glos Homes,Permanent Nursing,Fshc  1St Floor,632.64, 05-Jun-2018
1434,Revenue,CAHD,Bed Purchasing - South,Permanent Residential,Fshc  1St Floor,6000, 05-Jun-2018
1435,Revenue,CAHD,Bed Purchasing - South,Permanent Residential,Fshc  1St Floor,4279.8, 05-Jun-2018
1436,Revenue,CAHD,Bed Purchasing - South,Fees & Charges Income - General,Fshc  1St Floor,1185.22, 05-Jun-2018
1437,Revenue,CAHD,Bed Purchasing - South,Permanent Residential,Fshc  1St Floor,2180.68, 05-Jun-2018
1438,Revenue,CAHD,Bed Purchasing - Southmead Hospital,Permanent Nursing,Fshc  1St Floor,2380.96, 05-Jun-2018
1439,Revenue,CAHD,South Glos Users in South Glos Homes,Permanent Nursing,Fshc  1St Floor,632.64, 05-Jun-2018
1440,Revenue,CAHD,Bed Purchasing - Southmead Hospital,Permanent Residential,Fshc  1St Floor,2649.4, 05-Jun-2018
1441,Revenue,CAHD,Bed Purchasing - Southmead Hospital,Permanent Nursing,Fshc  1St Floor,2310.44, 05-Jun-2018
1442,Revenue,CAHD,South Glos Users in South Glos Homes,Permanent Nursing,Fshc  1St Floor,632.64, 05-Jun-2018
1443,Revenue,CAHD,Bed Purchasing - South,Permanent Nursing,Fshc  1St Floor,2683.84, 05-Jun-2018
1444,Revenue,CAHD,South Glos Users in South Glos Homes,Permanent Nursing,Fshc  1St Floor,632.64, 05-Jun-2018
1445,Revenue,CAHD,Bed Purchasing - South,Permanent Nursing,Fshc  1St Floor,2399, 05-Jun-2018
1446,Revenue,CAHD,South Glos Users in South Glos Homes,Permanent Nursing,Fshc  1St Floor,632.64, 05-Jun-2018
1447,Revenue,CAHD,Bed Purchasing - South,Permanent Nursing,Fshc  1St Floor,2310.44, 05-Jun-2018
1448,Revenue,CAHD,South Glos Users in South Glos Homes,Permanent Nursing,Fshc  1St Floor,632.64, 05-Jun-2018
1449,Revenue,CAHD,South Glos Users in South Glos Homes,Permanent Nursing,Fshc  1St Floor,632.64, 05-Jun-2018
1450,Revenue,CAHD,Bed Purchasing - South,Permanent Residential,Fshc  1St Floor,2223.84, 05-Jun-2018
1451,Revenue,CAHD,Bed Purchasing - South,Permanent Nursing,Fshc  1St Floor,2233.76, 05-Jun-2018
1452,Revenue,CAHD,Bed Purchasing - Southmead Hospital,Permanent Nursing,Fshc  1St Floor,2929.6, 05-Jun-2018
1453,Revenue,CAHD,Bed purchasing - Elderly S117 - South,Permanent Nursing,Fshc  1St Floor,2233.76, 05-Jun-2018
1454,Revenue,CAHD,Bed Purchasing - South,Permanent Nursing,Fshc  1St Floor,3509.64, 05-Jun-2018
1455,Revenue,CAHD,Bed Purchasing - Southmead Hospital,Permanent Nursing,Fshc  1St Floor,2233.76, 05-Jun-2018
1456,Revenue,CAHD,Bed Purchasing - Southmead Hospital,Permanent Nursing,Fshc  1St Floor,3668.4, 05-Jun-2018
1457,Revenue,CAHD,Bed Purchasing - Southmead Hospital,Permanent Nursing,Fshc  1St Floor,3158.92, 05-Jun-2018
1458,Revenue,CAHD,Bed Purchasing - Southmead Hospital,Permanent Nursing,Fshc  1St Floor,2233.76, 05-Jun-2018
1459,Revenue,CAHD,Bed Purchasing - South,Permanent Nursing,Fshc  1St Floor,2233.76, 05-Jun-2018
1460,Revenue,CAHD,Bed Purchasing - South,Permanent Residential,Fshc  1St Floor,3656.28, 05-Jun-2018
1461,Revenue,CAHD,Bed Purchasing - Southmead Hospital,Permanent Residential,Fshc  1St Floor,2052.92, 05-Jun-2018
1462,Revenue,CAHD,Bed Purchasing - North,Permanent Nursing,Fshc  1St Floor,2235.88, 05-Jun-2018
1463,Revenue,CAHD,Bed Purchasing - North,Permanent Nursing,Fshc  1St Floor,2105.24, 05-Jun-2018
1464,Revenue,CAHD,South Glos Users in South Glos Homes,Permanent Nursing,Fshc  1St Floor,632.64, 05-Jun-2018
1465,Revenue,CAHD,Bed Purchasing - Southmead Hospital,Permanent Nursing,Fshc  1St Floor,4076, 05-Jun-2018
1466,Revenue,CAHD,Bed Purchasing - North,Permanent Nursing,Fshc  1St Floor,2264.96, 05-Jun-2018
1467,Revenue,CAHD,Bed Purchasing - North,Permanent Nursing,Fshc  1St Floor,2309.04, 05-Jun-2018
1468,Revenue,CAHD,Bed Purchasing - North,Permanent Residential,Fshc  1St Floor,1890.36, 05-Jun-2018
1469,Revenue,CAHD,CSC - Corporate Parenting Manager,Agency Staff (Admin/Support Staff) Pay,Gatenby Sanderson Limited,4640, 28-Jun-2018
1470,Revenue,CAHD,Alexandra Way,Premises Maintenance by Contractor,George Grimes,890, 13-Jun-2018
1471,Revenue,CAHD,Alexandra Way,Furniture & Fittings Loose,George Grimes,2890, 27-Jun-2018
1472,Revenue,CAHD,MH Purchasing - Younger,Permanent Residential,Gladstone House,3799.29, 05-Jun-2018
1473,Revenue,CAHD,Bed Purchasing - South,Permanent Residential,Gladstone House,5859.2, 05-Jun-2018
1474,Revenue,CAHD,Bed Purchasing - North,Permanent Residential,Glan Y Felin,6643.96, 05-Jun-2018
1475,Revenue,CAHD,Bed Purchasing - South,Permanent Residential,Glasallt Fawr,5219.16, 05-Jun-2018
1476,Revenue,CAHD,Bed Purchasing - North,Permanent Nursing,Glebe House Nursing Home,3578.28, 05-Jun-2018
1477,Revenue,CAHD,South Glos Users in South Glos Homes,Permanent Nursing,Glebe House Nursing Home,632.64, 05-Jun-2018
1478,Revenue,CAHD,South Glos Users in South Glos Homes,Permanent Nursing,Glebe House Nursing Home,632.64, 05-Jun-2018
1479,Revenue,CAHD,South Glos Users in South Glos Homes,Permanent Nursing,Glebe House Nursing Home,632.64, 05-Jun-2018
1480,Revenue,CAHD,South Glos Users in South Glos Homes,Permanent Nursing,Glebe House Nursing Home,632.64, 05-Jun-2018
1481,Revenue,CAHD,South Glos Users in South Glos Homes,Permanent Nursing,Glebe House Nursing Home,632.64, 05-Jun-2018
1482,Revenue,CAHD,South Glos Users in South Glos Homes,Permanent Nursing,Glebe House Nursing Home,632.64, 05-Jun-2018
1483,Revenue,CAHD,South Glos Users in South Glos Homes,Permanent Nursing,Glebe House Nursing Home,632.64, 05-Jun-2018
1484,Revenue,CAHD,South Glos Users in South Glos Homes,Permanent Nursing,Glebe House Nursing Home,632.64, 05-Jun-2018
1485,Revenue,CAHD,Bed Purchasing - North,Permanent Residential,Glebe House Nursing Home,3744, 05-Jun-2018
1486,Revenue,CAHD,South Glos Users in South Glos Homes,Permanent Nursing,Glebe House Nursing Home,632.64, 05-Jun-2018
1487,Revenue,CAHD,South Glos Users in South Glos Homes,Permanent Nursing,Glebe House Nursing Home,632.64, 05-Jun-2018
1488,Revenue,CAHD,South Glos Users in South Glos Homes,Permanent Nursing,Glebe House Nursing Home,632.64, 05-Jun-2018
1489,Revenue,CAHD,South Glos Users in South Glos Homes,Permanent Nursing,Glebe House Nursing Home,632.64, 05-Jun-2018
1490,Revenue,CAHD,South Glos Users in South Glos Homes,Permanent Nursing,Glebe House Nursing Home,632.64, 05-Jun-2018
1491,Revenue,CAHD,South Glos Users in South Glos Homes,Permanent Nursing,Glebe House Nursing Home,632.64, 05-Jun-2018
1492,Revenue,CAHD,South Glos Users in South Glos Homes,Permanent Nursing,Glebe House Nursing Home,930.3, 05-Jun-2018
1493,Revenue,CAHD,Bed Purchasing - North,Permanent Nursing,Glebe House Nursing Home,4419.84, 05-Jun-2018
1494,Revenue,CAHD,Bed Purchasing - North,Permanent Nursing,Glebe House Nursing Home,3867.36, 05-Jun-2018
1495,Revenue,CAHD,South Glos Users in South Glos Homes,Permanent Nursing,Glebe House Nursing Home,632.64, 05-Jun-2018
1496,Revenue,CAHD,South Glos Users in South Glos Homes,Permanent Nursing,Glebe House Nursing Home,1218.25, 05-Jun-2018
1497,Revenue,CAHD,Bed Purchasing - Southmead Hospital,Permanent Nursing,Glebe House Nursing Home,3749.92, 05-Jun-2018
1498,Revenue,CAHD,South Glos Users in South Glos Homes,Permanent Nursing,Glebe House Nursing Home,632.64, 05-Jun-2018
1499,Revenue,CAHD,South Glos Users in South Glos Homes,Permanent Nursing,Glebe House Nursing Home,632.64, 05-Jun-2018
1500,Revenue,CAHD,South Glos Users in South Glos Homes,Permanent Nursing,Glebe House Nursing Home,632.64, 05-Jun-2018
1501,Revenue,CAHD,CSC - Fostering Carer Support,Advertising - General,Global Radio Services Ltd,3863.97, 20-Jun-2018
1502,Revenue,CAHD,Bed Purchasing - South,Permanent Residential,Goldcare House,4625.52, 05-Jun-2018
1503,Revenue,CAHD,Bed Purchasing - Southmead Hospital,Permanent Residential,Gordena Care Home,3925.68, 05-Jun-2018
1504,Revenue,CAHD,Bed Purchasing - South,Permanent Residential,Gordena Care Home,2635.96, 05-Jun-2018
1505,Revenue,CAHD,Bed Purchasing - South,Permanent Residential,Gordena Care Home,3752.8, 05-Jun-2018
1506,Revenue,CAHD,Bed Purchasing - South,Permanent Residential,Gordena Care Home,3764.24, 05-Jun-2018
1507,Revenue,CAHD,Bed Purchasing - South,Permanent Residential,Gordena Care Limited,4918.6, 05-Jun-2018
1508,Revenue,CAHD,Bed purchasing - S28A Under 65 - South,Permanent Residential,Gordena Care Limited,4783.6, 05-Jun-2018
1509,Revenue,CAHD,Bed Purchasing - North,Permanent Residential,Gordena Care Limited,4985.6, 05-Jun-2018
1510,Revenue,CAHD,Bed Purchasing - South,Permanent Nursing,Gracefields Nursing Home,2533.76, 05-Jun-2018
1511,Revenue,CAHD,South Glos Users in South Glos Homes,Permanent Nursing,Gracefields Nursing Home,632.64, 05-Jun-2018
1512,Revenue,CAHD,South Glos Users in South Glos Homes,Permanent Nursing,Gracefields Nursing Home,632.64, 05-Jun-2018
1513,Revenue,CAHD,South Glos Users in South Glos Homes,Permanent Nursing,Gracefields Nursing Home,632.64, 05-Jun-2018
1514,Revenue,CAHD,South Glos Users in South Glos Homes,Permanent Nursing,Gracefields Nursing Home,632.64, 05-Jun-2018
1515,Revenue,CAHD,Bed Purchasing - Southmead Hospital,Permanent Nursing,Gracefields Nursing Home,3566.52, 05-Jun-2018
1516,Revenue,CAHD,South Glos Users in South Glos Homes,Permanent Nursing,Gracefields Nursing Home,632.64, 05-Jun-2018
1517,Revenue,CAHD,South Glos Users in South Glos Homes,Permanent Nursing,Gracefields Nursing Home,632.64, 05-Jun-2018
1518,Revenue,CAHD,South Glos Users in South Glos Homes,Permanent Nursing,Gracefields Nursing Home,632.64, 05-Jun-2018
1519,Revenue,CAHD,Bed purchasing - Elderly S117 - South,Permanent Nursing,Gracefields Nursing Home,2492.16, 05-Jun-2018
1520,Revenue,CAHD,South Glos Users in South Glos Homes,Permanent Nursing,Gracefields Nursing Home,632.64, 05-Jun-2018
1521,Revenue,CAHD,Bed Purchasing - South,Permanent Nursing,Gracefields Nursing Home,3668.4, 05-Jun-2018
1522,Revenue,CAHD,South Glos Users in South Glos Homes,Permanent Nursing,Gracefields Nursing Home,632.64, 05-Jun-2018
1523,Revenue,CAHD,Bed Purchasing - South,Permanent Nursing,Gracefields Nursing Home,3153.52, 05-Jun-2018
1524,Revenue,CAHD,South Glos Users in South Glos Homes,Permanent Nursing,Gracefields Nursing Home,632.64, 05-Jun-2018
1525,Revenue,CAHD,South Glos Users in South Glos Homes,Permanent Nursing,Gracefields Nursing Home,632.64, 05-Jun-2018
1526,Revenue,CAHD,South Glos Users in South Glos Homes,Permanent Nursing,Gracefields Nursing Home,632.64, 05-Jun-2018
1527,Revenue,CAHD,Bed Purchasing - South,Permanent Nursing,Gracefields Nursing Home,3464.6, 05-Jun-2018
1528,Revenue,CAHD,South Glos Users in South Glos Homes,Permanent Nursing,Gracefields Nursing Home,632.64, 05-Jun-2018
1529,Revenue,CAHD,Bed Purchasing - South,Fees & Charges Income - General,Gracefields Nursing Home,3812.03, 05-Jun-2018
1530,Revenue,CAHD,Bed Purchasing - South,Permanent Residential,Gracefields Nursing Home,3821.25, 05-Jun-2018
1531,Revenue,CAHD,Bed Purchasing - South,Fees & Charges Income - General,Gracefields Nursing Home,900, 05-Jun-2018
1532,Revenue,CAHD,Bed Purchasing - South,Permanent Residential,Gracefields Nursing Home,1964.29, 05-Jun-2018
1533,Revenue,CAHD,Bed Purchasing - South,Permanent Residential,Gracefields Nursing Home,4911.54, 05-Jun-2018
1534,Revenue,CAHD,Bed Purchasing - South,Fees & Charges Income - General,Gracefields Nursing Home,2206.14, 05-Jun-2018
1535,Revenue,CAHD,Bed Purchasing - South,Fees & Charges Income - General,Gracefields Nursing Home,2065.55, 05-Jun-2018
1536,Revenue,CAHD,South Glos Users in South Glos Homes,Permanent Nursing,Gracefields Nursing Home,632.64, 05-Jun-2018
1537,Revenue,CAHD,Bed Purchasing - South,Permanent Residential,Gracefields Nursing Home,3184.89, 05-Jun-2018
1538,Revenue,CAHD,Bed Purchasing - South,Fees & Charges Income - General,Gracefields Nursing Home,711.66, 05-Jun-2018
1539,Revenue,CAHD,Bed Purchasing - Southmead Hospital,Permanent Nursing,Gracefields Nursing Home,3464.6, 05-Jun-2018
1540,Revenue,CAHD,South Glos Users in South Glos Homes,Permanent Nursing,Gracefields Nursing Home,632.64, 05-Jun-2018
1541,Revenue,CAHD,South Glos Users in South Glos Homes,Permanent Nursing,Gracefields Nursing Home,632.64, 05-Jun-2018
1542,Revenue,CAHD,South Glos Users in South Glos Homes,Permanent Nursing,Gracefields Nursing Home,632.64, 05-Jun-2018
1543,Revenue,CAHD,South Glos Users in South Glos Homes,Permanent Nursing,Gracefields Nursing Home,632.64, 05-Jun-2018
1544,Revenue,CAHD,South Glos Users in South Glos Homes,Permanent Nursing,Gracefields Nursing Home,632.64, 05-Jun-2018
1545,Revenue,CAHD,South Glos Users in South Glos Homes,Permanent Nursing,Gracefields Nursing Home,632.64, 05-Jun-2018
1546,Revenue,CAHD,South Glos Users in South Glos Homes,Permanent Nursing,Gracefields Nursing Home,632.64, 05-Jun-2018
1547,Revenue,CAHD,Bed Purchasing - Southmead Hospital,Permanent Nursing,Gracefields Nursing Home,3566.52, 05-Jun-2018
1548,Revenue,CAHD,South Glos Users in South Glos Homes,Permanent Nursing,Gracefields Nursing Home,632.64, 05-Jun-2018
1549,Revenue,CAHD,South Glos Users in South Glos Homes,Permanent Nursing,Gracefields Nursing Home,632.64, 05-Jun-2018
1550,Revenue,CAHD,Bed Purchasing - South,Permanent Nursing,Gracefields Nursing Home,3129.76, 05-Jun-2018
1551,Revenue,CAHD,South Glos Users in South Glos Homes,Permanent Nursing,Gracefields Nursing Home,632.64, 05-Jun-2018
1552,Revenue,CAHD,South Glos Users in South Glos Homes,Permanent Nursing,Gracefields Nursing Home,632.64, 05-Jun-2018
1553,Revenue,CAHD,Bed Purchasing - Southmead Hospital,Permanent Nursing,Gracefields Nursing Home,3464.6, 05-Jun-2018
1554,Revenue,CAHD,South Glos Users in South Glos Homes,Permanent Nursing,Gracefields Nursing Home,632.64, 05-Jun-2018
1555,Revenue,CAHD,South Glos Users in South Glos Homes,Permanent Nursing,Gracefields Nursing Home,632.64, 05-Jun-2018
1556,Revenue,CAHD,Bed Purchasing - Southmead Hospital,Permanent Nursing,Gracefields Nursing Home,3153.52, 05-Jun-2018
1557,Revenue,CAHD,South Glos Users in South Glos Homes,Permanent Nursing,Gracefields Nursing Home,632.64, 05-Jun-2018
1558,Revenue,CAHD,South Glos Users in South Glos Homes,Permanent Nursing,Gracefields Nursing Home,632.64, 05-Jun-2018
1559,Revenue,CAHD,Bed Purchasing - South,Permanent Nursing,Gracefields Nursing Home,3026.56, 05-Jun-2018
1560,Revenue,CAHD,South Glos Users in South Glos Homes,Permanent Nursing,Gracefields Nursing Home,632.64, 05-Jun-2018
1561,Revenue,CAHD,South Glos Users in South Glos Homes,Permanent Nursing,Gracefields Nursing Home,632.64, 05-Jun-2018
1562,Revenue,CAHD,South Glos Users in South Glos Homes,Permanent Nursing,Gracefields Nursing Home,632.64, 05-Jun-2018
1563,Revenue,CAHD,South Glos Users in South Glos Homes,Permanent Nursing,Gracefields Nursing Home,632.64, 05-Jun-2018
1564,Revenue,CAHD,South Glos Users in South Glos Homes,Permanent Nursing,Gracefields Nursing Home,632.64, 05-Jun-2018
1565,Revenue,CAHD,South Glos Users in South Glos Homes,Permanent Nursing,Gracefields Nursing Home,632.64, 05-Jun-2018
1566,Revenue,CAHD,South Glos Users in South Glos Homes,Permanent Nursing,Gracefields Nursing Home,632.64, 05-Jun-2018
1567,Revenue,CAHD,South Glos Users in South Glos Homes,Permanent Nursing,Gracefields Nursing Home,632.64, 05-Jun-2018
1568,Revenue,CAHD,Bed Purchasing - Southmead Hospital,Permanent Nursing,Gracefields Nursing Home,3400, 05-Jun-2018
1569,Revenue,CAHD,Bed Purchasing - Southmead Hospital,Permanent Nursing,Gracefields Nursing Home,2307.14, 05-Jun-2018
1570,Revenue,CAHD,Bed Purchasing - South,Permanent Nursing,Gracefields Nursing Home,2492.16, 05-Jun-2018
1571,Revenue,CAHD,South Glos Users in South Glos Homes,Permanent Nursing,Gracefields Nursing Home,632.64, 05-Jun-2018
1572,Revenue,CAHD,Bed Purchasing - South,Permanent Nursing,Gracefields Nursing Home,3464.6, 05-Jun-2018
1573,Revenue,CAHD,South Glos Users in South Glos Homes,Permanent Nursing,Gracefields Nursing Home,632.64, 05-Jun-2018
1574,Revenue,CAHD,Bed Purchasing - South,Permanent Nursing,Gracefields Nursing Home,3668.4, 05-Jun-2018
1575,Revenue,CAHD,South Glos Users in South Glos Homes,Permanent Nursing,Gracefields Nursing Home,632.64, 05-Jun-2018
1576,Revenue,CAHD,South Glos Users in South Glos Homes,Permanent Nursing,Gracefields Nursing Home,632.64, 05-Jun-2018
1577,Revenue,CAHD,South Glos Users in South Glos Homes,Permanent Nursing,Gracefields Nursing Home,632.64, 05-Jun-2018
1578,Revenue,CAHD,South Glos Users in South Glos Homes,Permanent Nursing,Gracefields Nursing Home,632.64, 05-Jun-2018
1579,Revenue,CAHD,Bed Purchasing - Southmead Hospital,Permanent Nursing,Gracefields Nursing Home,3336.2, 05-Jun-2018
1580,Revenue,CAHD,South Glos Users in South Glos Homes,Permanent Nursing,Gracefields Nursing Home,632.64, 05-Jun-2018
1581,Revenue,CAHD,CSC - Residential Placements,Permanent Residential,Greenfields Adolecent Development Limited,4280.06, 06-Jun-2018
1582,Revenue,CAHD,Statemented Support Academies,Other Public Bodies,Greenshaw Learning Trust T/A Yate Academy,1745, 19-Jun-2018
1583,Revenue,CAHD,Academy Resource Base Funding,Other Public Bodies,Greenshaw Learning Trust T/A Yate Academy,981.04, 22-Jun-2018
1584,Revenue,CAHD,Academy Resource Base Funding,Other Public Bodies,Greenshaw Learning Trust T/A Yate Academy,1648.03, 22-Jun-2018
1585,Revenue,CAHD,Academy Resource Base Funding,Other Public Bodies,Greenshaw Learning Trust T/A Yate Academy,1491.12, 22-Jun-2018
1586,Revenue,CAHD,Academy Resource Base Funding,Other Public Bodies,Greenshaw Learning Trust T/A Yate Academy,1137.95, 22-Jun-2018
1587,Revenue,CAHD,Academy Resource Base Funding,Other Public Bodies,Greenshaw Learning Trust T/A Yate Academy,1137.95, 22-Jun-2018
1588,Revenue,CAHD,Academy Resource Base Funding,Other Public Bodies,Greenshaw Learning Trust T/A Yate Academy,627.78, 22-Jun-2018
1589,Revenue,CAHD,Academy Resource Base Funding,Other Public Bodies,Greenshaw Learning Trust T/A Yate Academy,1648.03, 22-Jun-2018
1590,Revenue,CAHD,Academy Resource Base Funding,Other Public Bodies,Greenshaw Learning Trust T/A Yate Academy,1491.12, 22-Jun-2018
1591,Revenue,CAHD,Schools Specific Grant Income,Other Public Bodies,Greenshaw Learning Trust T/A Yate Academy,630, 29-Jun-2018
1592,Revenue,CAHD,Schools Specific Grant Income,Other Public Bodies,Greenshaw Learning Trust T/A Yate Academy,630, 29-Jun-2018
1593,Revenue,CAHD,Schools Specific Grant Income,Other Public Bodies,Greenshaw Learning Trust T/A Yate Academy,630, 29-Jun-2018
1594,Revenue,CAHD,Schools Specific Grant Income,Other Public Bodies,Greenshaw Learning Trust T/A Yate Academy,630, 29-Jun-2018
1595,Revenue,CAHD,Statemented Support Academies,Schools Funding,Greenshaw Learning Trust T/A Yate Academy,694.91, 26-Jun-2018
1596,Revenue,CAHD,Statemented Support Academies,Schools Funding,Greenshaw Learning Trust T/A Yate Academy,1685.41, 26-Jun-2018
1597,Revenue,CAHD,Statemented Support Academies,Schools Funding,Greenshaw Learning Trust T/A Yate Academy,1213.74, 26-Jun-2018
1598,Revenue,CAHD,Statemented Support Academies,Schools Funding,Greenshaw Learning Trust T/A Yate Academy,848.2, 26-Jun-2018
1599,Revenue,CAHD,Statemented Support Academies,Schools Funding,Greenshaw Learning Trust T/A Yate Academy,1461.37, 26-Jun-2018
1600,Revenue,CAHD,Statemented Support Academies,Schools Funding,Greenshaw Learning Trust T/A Yate Academy,1213.74, 26-Jun-2018
1601,Revenue,CAHD,Statemented Support Academies,Schools Funding,Greenshaw Learning Trust T/A Yate Academy,1213.74, 26-Jun-2018
1602,Revenue,CAHD,Statemented Support Academies,Schools Funding,Greenshaw Learning Trust T/A Yate Academy,977.91, 26-Jun-2018
1603,Revenue,CAHD,Statemented Support Academies,Schools Funding,Greenshaw Learning Trust T/A Yate Academy,942.53, 26-Jun-2018
1604,Revenue,CAHD,Statemented Support Academies,Schools Funding,Greenshaw Learning Trust T/A Yate Academy,883.58, 26-Jun-2018
1605,Revenue,CAHD,Statemented Support Academies,Schools Funding,Greenshaw Learning Trust T/A Yate Academy,730.28, 26-Jun-2018
1606,Revenue,CAHD,Statemented Support Academies,Schools Funding,Greenshaw Learning Trust T/A Yate Academy,765.66, 26-Jun-2018
1607,Revenue,CAHD,Statemented Support Academies,Schools Funding,Greenshaw Learning Trust T/A Yate Academy,694.91, 26-Jun-2018
1608,Revenue,CAHD,Bed Purchasing - South,Permanent Residential,Gwendoline House,2613.96, 05-Jun-2018
1609,Revenue,CAHD,Bed Purchasing - South,Permanent Residential,Gwendoline House,2425.24, 05-Jun-2018
1610,Revenue,CAHD,Bed Purchasing - South,Permanent Residential,Gwendoline House,2415.44, 05-Jun-2018
1611,Revenue,CAHD,Bed Purchasing - South,Permanent Residential,Gwendoline House,3637.86, 05-Jun-2018
1612,Revenue,CAHD,Bed Purchasing - South,Permanent Residential,Gwendoline House,2165.39, 05-Jun-2018
1613,Revenue,CAHD,Bed Purchasing - South,Permanent Residential,Gwendoline House,1445, 05-Jun-2018
1614,Revenue,CAHD,Bed Purchasing - South,Fees & Charges Income - General,Gwendoline House,1293.26, 05-Jun-2018
1615,Revenue,CAHD,Bed Purchasing - Southmead Hospital,Permanent Residential,Gwendoline House,2144.76, 05-Jun-2018
1616,Revenue,CAHD,Home Care - Elderly - South,Other Small Contracts,H F T,892.64, 11-Jun-2018
1617,Revenue,CAHD,Supporting People Programme,Grants to Voluntary Bodies,Habinteg Housing Association,678, 01-Jun-2018
1618,Revenue,CAHD,Supporting People Programme,Grants to Voluntary Bodies,Habinteg Housing Association,678, 29-Jun-2018
1619,Revenue,CAHD,Social Lettings Agency,Fees - General,Individual,13.13, 27-Jun-2018
1620,Revenue,CAHD,Social Lettings Agency,Other Supplies & Services,Individual,577.72, 27-Jun-2018
1621,Revenue,CAHD,Supporting People Programme,Grants to Voluntary Bodies,Hanover Housing Association,1015, 01-Jun-2018
1622,Revenue,CAHD,Supporting People Programme,Grants to Voluntary Bodies,Hanover Housing Association,1015, 29-Jun-2018
1623,Revenue,CAHD,Section 117 Placements MH Younger,Permanent Residential,Harefield Hall,1982.52, 05-Jun-2018
1624,Revenue,CAHD,Bed Purchasing - South,Permanent Residential,Harefield Hall,998.48, 05-Jun-2018
1625,Revenue,CAHD,Bed Purchasing - South,Fees & Charges Income - General,Harefield Hall,643.08, 05-Jun-2018
1626,Revenue,CAHD,Home Care Monitoring (CM2000),Other Supplies & Services,HAS Technology Limited T/A CM2000,9954.49, 15-Jun-2018
1627,Revenue,CAHD,Bed Purchasing - Southmead Hospital,Permanent Nursing,Hazelwood Gardens Nursing Home,2853.2, 05-Jun-2018
1628,Revenue,CAHD,Bed Purchasing - Southmead Hospital,Permanent Nursing,Hazelwood Gardens Nursing Home,2658.04, 05-Jun-2018
1629,Revenue,CAHD,Bed Purchasing - Southmead Hospital,Permanent Nursing,Hazelwood Gardens Nursing Home,2288.56, 05-Jun-2018
1630,Revenue,CAHD,Bed Purchasing - Southmead Hospital,Permanent Residential,Hc-One Ltd,2181, 05-Jun-2018
1631,Revenue,CAHD,Bed Purchasing - Southmead Hospital,Permanent Nursing,Hc-One Ltd,4224.42, 05-Jun-2018
1632,Revenue,CAHD,Bed Purchasing - Southmead Hospital,Permanent Nursing,Hc-One Ltd,2816.28, 05-Jun-2018
1633,Revenue,CAHD,Bed Purchasing - Southmead Hospital,Fees & Charges Income - General,Hc-One Ltd,861.59, 05-Jun-2018
1634,Revenue,CAHD,Bed Purchasing - North,Permanent Nursing,Hc-One Ltd,2171.12, 05-Jun-2018
1635,Revenue,CAHD,Bed Purchasing - North,Permanent Nursing,Hc-One Ltd,2156.56, 05-Jun-2018
1636,Revenue,CAHD,South Glos Users in South Glos Homes,Permanent Nursing,Hc-One Ltd,632.64, 05-Jun-2018
1637,Revenue,CAHD,Bed Purchasing - North,Permanent Nursing,Hc-One Ltd,2171.08, 05-Jun-2018
1638,Revenue,CAHD,Bed Purchasing - Southmead Hospital,Permanent Nursing,Hc-One Ltd,2857.76, 05-Jun-2018
1639,Revenue,CAHD,Bed Purchasing - Southmead Hospital,Permanent Nursing,Hc-One Ltd,2609.44, 05-Jun-2018
1640,Revenue,CAHD,Bed Purchasing - North,Respite Planned - Residential,Head Office,2344.72, 05-Jun-2018
1641,Revenue,CAHD,Bed Purchasing - North,Respite Planned - Residential,Head Office,586.18, 05-Jun-2018
1642,Revenue,CAHD,Bed Purchasing - Southmead Hospital,Permanent Nursing,Head Office,2600, 05-Jun-2018
1643,Revenue,CAHD,Bed Purchasing - Southmead Hospital,Permanent Nursing,Head Office,2321.43, 05-Jun-2018
1644,Revenue,CAHD,Bed Purchasing - Southmead Hospital,Permanent Nursing,Head Office,2412.88, 05-Jun-2018
1645,Revenue,CAHD,Home Care - Elderly - North,Day Care / Social Activities,Head Office,845.28, 05-Jun-2018
1646,Revenue,CAHD,CSC - Residential Placements,Permanent Residential,Headway Adolescent Resources Limited,13600, 07-Jun-2018
1647,Revenue,CAHD,Home Care - Elderly - South,Day Care / Social Activities,Headway Bristol,396.72, 05-Jun-2018
1648,Revenue,CAHD,Home Care - Elderly - South,Other Small Contracts,Headway Bristol,132.24, 05-Jun-2018
1649,Revenue,CAHD,Home Care - Elderly - North,Day Care / Social Activities,Headway Bristol,815.48, 05-Jun-2018
1650,Revenue,CAHD,Home Care - Elderly - North,Other Small Contracts,Headway Bristol,528.96, 05-Jun-2018
1651,Revenue,CAHD,Younger MH non-res purchasing,Day Care / Social Activities,Headway Bristol,93.67, 05-Jun-2018
1652,Revenue,CAHD,Home Care - Elderly - South,Day Care / Social Activities,Headway Bristol,330.6, 18-Jun-2018
1653,Revenue,CAHD,Home Care - Elderly - South,Other Small Contracts,Headway Bristol,132.24, 18-Jun-2018
1654,Revenue,CAHD,Home Care - Elderly - North,Day Care / Social Activities,Headway Bristol,815.48, 18-Jun-2018
1655,Revenue,CAHD,Home Care - Elderly - North,Other Small Contracts,Headway Bristol,528.96, 18-Jun-2018
1656,Revenue,CAHD,Younger MH non-res purchasing,Day Care / Social Activities,Headway Bristol,88.16, 18-Jun-2018
1657,Revenue,CAHD,Home Care - Elderly - South,Day Care / Social Activities,Headway Bristol,396.72, 27-Jun-2018
1658,Revenue,CAHD,Home Care - Elderly - South,Other Small Contracts,Headway Bristol,176.32, 27-Jun-2018
1659,Revenue,CAHD,Home Care - Elderly - North,Day Care / Social Activities,Headway Bristol,749.36, 27-Jun-2018
1660,Revenue,CAHD,Home Care - Elderly - North,Other Small Contracts,Headway Bristol,446.31, 27-Jun-2018
1661,Revenue,CAHD,Younger MH non-res purchasing,Day Care / Social Activities,Headway Bristol,88.16, 27-Jun-2018
1662,Revenue,CAHD,Home Care - Elderly - South,Other Small Contracts,Helping Hands Homecare,712.92, 21-Jun-2018
1663,Revenue,CAHD,Home Care - Elderly - North,Day Care / Social Activities,Helping Hands Homecare,228.5, 21-Jun-2018
1664,Revenue,CAHD,Home Care - Elderly - North,Other Small Contracts,Helping Hands Homecare,4334.22, 21-Jun-2018
1665,Revenue,CAHD,Home Care - Elderly - South,Other Small Contracts,Helping Hands Homecare,648.94, 21-Jun-2018
1666,Revenue,CAHD,Home Care - Elderly - North,Day Care / Social Activities,Helping Hands Homecare,237.64, 21-Jun-2018
1667,Revenue,CAHD,Home Care - Elderly - North,Other Small Contracts,Helping Hands Homecare,4225.56, 21-Jun-2018
1668,Revenue,CAHD,Placements OLA Special Schools and RB,Other L.A.'s - General,Henbury Court Primary Academy,819.17, 29-Jun-2018
1669,Revenue,CAHD,CSC - Special Guardianship Orders,Legal Fees,Henriques Griffiths Solicitors,492.35, 20-Jun-2018
1670,Revenue,CAHD,S117 Placements PCT,Permanent Residential,Hesley Hall,19258.12, 05-Jun-2018
1671,Revenue,CAHD,Bed Purchasing - North,Permanent Residential,High Border Lodge,2039.72, 05-Jun-2018
1672,Revenue,CAHD,Schools Specific Grant Income,Other Public Bodies,High School For Girls,630, 29-Jun-2018
1673,Revenue,CAHD,Bed Purchasing - Southmead Hospital,Permanent Residential,Highgate Studios,2423.88, 05-Jun-2018
1674,Revenue,CAHD,Home Care - Elderly - North,Supported Living,Hillcairnie House,4857.56, 05-Jun-2018
1675,Revenue,CAHD,Home Care - Elderly - South,Supported Living,Hillcairnie House,2515.04, 05-Jun-2018
1676,Revenue,CAHD,Home Care - Elderly - North,Supported Living,Hillcairnie House,1798.4, 05-Jun-2018
1677,Revenue,CAHD,Home Care - Elderly - South,Supported Living,Hillcairnie House,2515, 05-Jun-2018
1678,Revenue,CAHD,Bed Purchasing - Southmead Hospital,Permanent Nursing,Holly Villa,2102.68, 05-Jun-2018
1679,Revenue,CAHD,Supported Living - South,Adults - Family Support,Holmleigh Care Home Ltd,973, 20-Jun-2018
1680,Revenue,CAHD,Supported Living - South,Adults - Family Support,Holmleigh Care Home Ltd,1891.75, 20-Jun-2018
1681,Revenue,CAHD,Supported Living - South,Adults - Family Support,Holmleigh Care Home Ltd,1732.5, 20-Jun-2018
1682,Revenue,CAHD,Bed Purchasing - North,Permanent Residential,Holmleigh Care Homes Ltd,4666.12, 05-Jun-2018
1683,Revenue,CAHD,Bed Purchasing - South,Permanent Residential,Holmleigh Care Homes Ltd,4457.24, 05-Jun-2018
1684,Revenue,CAHD,Jointly Funded H&SC Packages,Permanent Residential,Holmleigh Care Homes Ltd,1276.96, 05-Jun-2018
1685,Revenue,CAHD,Home Care - Elderly - North,Supported Living,Home Farm Trust Ltd  5-6 Brook Office Pa,2111.48, 05-Jun-2018
1686,Revenue,CAHD,Home Care - Elderly - South,Supported Living,Home Farm Trust Ltd  5-6 Brook Office Pa,4151.6, 05-Jun-2018
1687,Revenue,CAHD,18-25 Year Olds,Permanent Residential,Home From Home Care Ltd,16989.11, 05-Jun-2018
1688,Revenue,CAHD,18-25 Year Olds,Permanent Residential,Home From Home Care Ltd,11602.32, 05-Jun-2018
1689,Revenue,CAHD,18-25 Year Olds,Permanent Residential,Home From Home Care Ltd,3314.95, 05-Jun-2018
1690,Revenue,CAHD,18-25 Year Olds,Fees & Charges Income - General,Home From Home Care Ltd,613.5, 05-Jun-2018
1691,Revenue,CAHD,Bed Purchasing - North,Permanent Residential,Homes Caring For Autism Ltd  Churchill H,8331.28, 05-Jun-2018
1692,Revenue,CAHD,Jointly Funded H&SC Packages,Permanent Residential,Homes Caring For Autism Ltd  Churchill H,2517.28, 05-Jun-2018
1693,Revenue,CAHD,18-25 Year Olds,Permanent Residential,Homes Caring For Autism Ltd  Churchill H,8191.96, 05-Jun-2018
1694,Revenue,CAHD,Jointly Funded H&SC Packages,Permanent Residential,Homes Caring For Autism Ltd  Churchill H,5874.88, 05-Jun-2018
1695,Revenue,CAHD,Bed Purchasing - Southmead Hospital,Respite Planned - Nursing,Horfield Care Limited,1766.34, 25-Jun-2018
1696,Revenue,CAHD,Bed Purchasing - Southmead Hospital,Permanent Nursing,Horfield Care Limited,1870.91, 25-Jun-2018
1697,Revenue,CAHD,Bed Purchasing - Southmead Hospital,Permanent Nursing,Horfield Care Limited,1502.17, 25-Jun-2018
1698,Revenue,CAHD,Bed Purchasing - South,Permanent Nursing,Horfield Care Limited,1355.27, 25-Jun-2018
1699,Revenue,CAHD,Bed Purchasing - South,Permanent Nursing,Horfield Care Limited,1786.54, 25-Jun-2018
1700,Revenue,CAHD,Bed Purchasing - South,Permanent Nursing,Horfield Care Limited,1819.71, 25-Jun-2018
1701,Revenue,CAHD,Supporting People Programme,Grants to Voluntary Bodies,Housing 21,975, 01-Jun-2018
1702,Revenue,CAHD,Supporting People Programme,Grants to Voluntary Bodies,Housing 21,643, 01-Jun-2018
1703,Revenue,CAHD,Supporting People Programme,Grants to Voluntary Bodies,Housing 21,975, 29-Jun-2018
1704,Revenue,CAHD,Supporting People Programme,Grants to Voluntary Bodies,Housing 21,643, 29-Jun-2018
1705,Revenue,CAHD,Extra Care Housing,Private & Voluntary Home Care,Housing 21,37678.33, 15-Jun-2018
1706,Revenue,CAHD,Extra Care Housing,Private & Voluntary Home Care,Housing 21,34872.5, 06-Jun-2018
1707,Revenue,CAHD,SEN High Needs - Not at School Base,Other Private Contractors,Impact Mentoring,1425, 22-Jun-2018
1708,Revenue,CAHD,18-25 Year Olds,Day Care / Social Activities,Impact Mentoring,1525, 27-Jun-2018
1709,Revenue,CAHD,Sexual Health,Other Small Contracts,Imperial College Healthcare NHS Trust,616.24, 29-Jun-2018
1710,Revenue,CAHD,Information Systems - Software,Software Support & Maintenance,InfoSol Limited,3454.95, 15-Jun-2018
1711,Revenue,CAHD,CSC - Safeguarding Board,Training Expenses,In-Trac Training & Consultancy Limited,750, 25-Jun-2018
1712,Revenue,CAHD,Social Lettings Agency,Fees - General,Individual,12.22, 11-Jun-2018
1713,Revenue,CAHD,Social Lettings Agency,Other Supplies & Services,Individual,690.32, 11-Jun-2018
1714,Revenue,CAHD,SEN High Needs - Not at School Base,Interpreting & Translation,J A Meleszkiewicz,536.4, 11-Jun-2018
1715,Revenue,CAHD,Social Lettings Agency,Fees - General,Individual,7.9, 01-Jun-2018
1716,Revenue,CAHD,Social Lettings Agency,Other Supplies & Services,Individual,610.9, 01-Jun-2018
1717,Revenue,CAHD,Social Lettings Agency,Fees - General,Individual,7.9, 29-Jun-2018
1718,Revenue,CAHD,Social Lettings Agency,Other Supplies & Services,Individual,610.9, 29-Jun-2018
1719,Revenue,CAHD,Bed Purchasing - South,Permanent Residential,Jonen House,4226.52, 05-Jun-2018
1720,Revenue,CAHD,Service,Service,Individual,650, 01-Jun-2018
1721,Revenue,CAHD,Service,Service,Individual,650, 29-Jun-2018
1722,Revenue,CAHD,Virtual School for Looked After Children,Consultants Fees,Judith Mee Education,900, 08-Jun-2018
1723,Revenue,CAHD,Virtual School for Looked After Children,Consultants Fees,Judith Mee Education,3200, 13-Jun-2018
1724,Revenue,CAHD,CSC - Legal Fees,Legal Fees,Julia Belyavin,600, 12-Jun-2018
1725,Revenue,CAHD,Post 16 High Needs Placements,Other Private Contractors,Julian & Shani Payne T/A Peopleton Brook Farm,2460, 06-Jun-2018
1726,Revenue,CAHD,Minor Adaptations Service,Operational Equipment,Just Checking Ltd,2090, 29-Jun-2018
1727,Revenue,CAHD,General EPH budgets,Mechanical & Electrical Maintenance,K P Wilton & Son Limited,1180, 15-Jun-2018
1728,Revenue,CAHD,Bed Purchasing - Elderly S117- North,Permanent Residential,Kahala Court,2853.2, 05-Jun-2018
1729,Revenue,CAHD,Service,Service,Individual,816, 08-Jun-2018
1730,Revenue,CAHD,Service,Service,Individual,577.5, 08-Jun-2018
1731,Revenue,CAHD,Service,Service,Individual,1858.5, 22-Jun-2018
1732,Revenue,CAHD,Statemented Support Payments to OLAs,Other L.A.'s - General,Katharine Lady Berkeley School,529.83, 26-Jun-2018
1733,Revenue,CAHD,Statemented Support Payments to OLAs,Other L.A.'s - General,Katharine Lady Berkeley School,647.74, 26-Jun-2018
1734,Revenue,CAHD,Schools Specific Grant Income,Other Public Bodies,Katharine Lady Berkeley School,630, 29-Jun-2018
1735,Revenue,CAHD,Statemented Support Payments to OLAs,Other L.A.'s - General,Katharine Lady Berkeley School,624.16, 26-Jun-2018
1736,Revenue,CAHD,Service,Service,Individual,466, 08-Jun-2018
1737,Revenue,CAHD,Service,Service,Individual,466, 08-Jun-2018
1738,Revenue,CAHD,Service,Service,Individual,410, 15-Jun-2018
1739,Revenue,CAHD,Service,Service,Individual,410, 15-Jun-2018
1740,Revenue,CAHD,Bed Purchasing - South,Permanent Residential,Kenver House Residential Home,2853.2, 05-Jun-2018
1741,Revenue,CAHD,Bed Purchasing - Southmead Hospital,Permanent Residential,Kenver House Residential Home,2291.68, 05-Jun-2018
1742,Revenue,CAHD,Bed Purchasing - South,Permanent Residential,Kenver House Residential Home,2294.84, 05-Jun-2018
1743,Revenue,CAHD,Bed Purchasing - South,Permanent Residential,Kenver House Residential Home,2509.88, 05-Jun-2018
1744,Revenue,CAHD,Bed purchasing - Elderly S117 - South,Permanent Residential,Kenver House Residential Home,2509.88, 05-Jun-2018
1745,Revenue,CAHD,Bed Purchasing - South,Permanent Residential,Kenver House Residential Home,2663.2, 05-Jun-2018
1746,Revenue,CAHD,Bed Purchasing - South,Permanent Residential,Kenver House Residential Home,2509.88, 05-Jun-2018
1747,Revenue,CAHD,Bed Purchasing - North,Permanent Residential,Kenver House Residential Home,2934.72, 05-Jun-2018
1748,Revenue,CAHD,Bed Purchasing - South,Permanent Residential,Kenver House Residential Home,2509.88, 05-Jun-2018
1749,Revenue,CAHD,Bed Purchasing - Southmead Hospital,Permanent Residential,Kenver House Residential Home,2629.04, 05-Jun-2018
1750,Revenue,CAHD,Bed Purchasing - Southmead Hospital,Permanent Residential,Kenver House Residential Home,2853.2, 05-Jun-2018
1751,Revenue,CAHD,Bed Purchasing - Southmead Hospital,Permanent Residential,Kenver House Residential Home,2629.04, 05-Jun-2018
1752,Revenue,CAHD,Bed Purchasing - South,Permanent Residential,Kenver House Residential Home,2291.68, 05-Jun-2018
1753,Revenue,CAHD,Mental Capacity Act / DOLS,Legal Fees,Individual,500, 05-Jun-2018
1754,Revenue,CAHD,CSC - Care Leavers Independent Living,Adults - Family Support,Key2 Futures Limited,2871.3, 20-Jun-2018
1755,Revenue,CAHD,CSC - Care Leavers Independent Living,Adults - Family Support,Key2 Futures Limited,2430.4, 29-Jun-2018
1756,Revenue,CAHD,CSC - Care Leavers Independent Living,Adults - Family Support,Key2 Futures Limited,2414.28, 29-Jun-2018
1757,Revenue,CAHD,CSC - Care Leavers Independent Living,Adults - Family Support,Key2 Futures Limited,2414.28, 29-Jun-2018
1758,Revenue,CAHD,Supporting People Programme,Grants to Voluntary Bodies,Keyring Living Support Networks,3045, 01-Jun-2018
1759,Revenue,CAHD,Supporting People Programme,Grants to Voluntary Bodies,Keyring Living Support Networks,3045, 29-Jun-2018
1760,Revenue,CAHD,CSC - Kids Contract,Grants to Voluntary Bodies,Kids,45187.5, 29-Jun-2018
1761,Revenue,CAHD,CSC - Short Breaks,Grants to Voluntary Bodies,Kids,1388, 29-Jun-2018
1762,Revenue,CAHD,Bed Purchasing - North,Permanent Residential,Kilkhampton Lodge,18064.36, 05-Jun-2018
1763,Revenue,CAHD,CSC - OT Equipment - Children,Daily Living Equipment,Kinderkey Healthcare Limited,3625, 07-Jun-2018
1764,Revenue,CAHD,Bed Purchasing - South,Permanent Nursing,Kingfisher Lodge Care Centre,4666.8, 05-Jun-2018
1765,Revenue,CAHD,Sexual Health,Other Small Contracts,Kingswood Health Centre,1610, 26-Jun-2018
1766,Revenue,CAHD,Supporting People Programme,Grants to Voluntary Bodies,Kingswood Young Homeless Project,973.47, 01-Jun-2018
1767,Revenue,CAHD,Supporting People Programme,Grants to Voluntary Bodies,Kingswood Young Homeless Project,3791.86, 29-Jun-2018
1768,Revenue,CAHD,CSC - LAC Housing Support Grants,Grants to Voluntary Bodies,Kingswood Young Homeless Project,9746, 29-Jun-2018
1769,Revenue,CAHD,Service,Service,Individual,504, 15-Jun-2018
1770,Revenue,CAHD,Service,Service,Individual,982.15, 29-Jun-2018
1771,Revenue,CAHD,Service,Service,Individual,974.09, 29-Jun-2018
1772,Revenue,CAHD,Bed Purchasing - North,Permanent Residential,Kisimul Group,12469, 05-Jun-2018
1773,Revenue,CAHD,Placements OLA Special Schools and RB,Other L.A.'s - General,Knowle DGE,2053.42, 29-Jun-2018
1774,Revenue,CAHD,Placements OLA Special Schools and RB,Other L.A.'s - General,Knowle DGE,1353.42, 29-Jun-2018
1775,Revenue,CAHD,Placements OLA Special Schools and RB,Other L.A.'s - General,Knowle DGE,886.75, 29-Jun-2018
1776,Revenue,CAHD,Placements OLA Special Schools and RB,Other L.A.'s - General,Knowle DGE,886.75, 29-Jun-2018
1777,Revenue,CAHD,Placements OLA Special Schools and RB,Other L.A.'s - General,Knowle DGE,1308.42, 29-Jun-2018
1778,Revenue,CAHD,Placements OLA Special Schools and RB,Other L.A.'s - General,Knowle DGE,2053.42, 29-Jun-2018
1779,Revenue,CAHD,Schools Specific Grant Income,Other Public Bodies,Knowle DGE,630, 29-Jun-2018
1780,Revenue,CAHD,Schools Specific Grant Income,Other Public Bodies,Knowle DGE,630, 29-Jun-2018
1781,Revenue,CAHD,Placements OLA Special Schools and RB,Other L.A.'s - General,Knowle DGE,886.75, 29-Jun-2018
1782,Revenue,CAHD,Home Care - Elderly - South,Other Small Contracts,Kumari Care Limited,685.52, 05-Jun-2018
1783,Revenue,CAHD,Home Care - Elderly - North,Other Small Contracts,Kumari Care Limited,1022.15, 05-Jun-2018
1784,Revenue,CAHD,Home Care - Elderly - South,Other Small Contracts,Kumari Care Limited,685.52, 06-Jun-2018
1785,Revenue,CAHD,Home Care - Elderly - North,Other Small Contracts,Kumari Care Limited,1022.15, 06-Jun-2018
1786,Revenue,CAHD,Home Care - Elderly - South,Other Small Contracts,Kumari Care Limited,658.46, 19-Jun-2018
1787,Revenue,CAHD,Home Care - Elderly - North,Other Small Contracts,Kumari Care Limited,1022.2, 19-Jun-2018
1788,Revenue,CAHD,Home Care - Elderly - South,Other Small Contracts,Kumari Care Limited,721.6, 19-Jun-2018
1789,Revenue,CAHD,Home Care - Elderly - North,Other Small Contracts,Kumari Care Limited,1022.15, 19-Jun-2018
1790,Revenue,CAHD,Home Care - Elderly - South,Other Small Contracts,Kumari Care Limited,753.17, 28-Jun-2018
1791,Revenue,CAHD,Home Care - Elderly - North,Other Small Contracts,Kumari Care Limited,1022.15, 28-Jun-2018
1792,Revenue,CAHD,Early Years High Needs Support,Other Private Contractors,L A Childcare,798.56, 28-Jun-2018
1793,Revenue,CAHD,Home Care - Elderly - North,SU Employment Support,L D Awareness,540.68, 05-Jun-2018
1794,Revenue,CAHD,Home Care - Elderly - North,Other Small Contracts,L D Awareness,1133.6, 05-Jun-2018
1795,Revenue,CAHD,Home Care - Elderly - North,Day Care / Social Activities,L D Awareness,2212.08, 22-Jun-2018
1796,Revenue,CAHD,Home Care - Elderly - North,SU Employment Support,L D Awareness,496.04, 21-Jun-2018
1797,Revenue,CAHD,Home Care - Elderly - North,Other Small Contracts,L D Awareness,1138.88, 22-Jun-2018
1798,Revenue,CAHD,Home Care - Elderly - North,Day Care / Social Activities,L D Awareness,2571.36, 21-Jun-2018
1799,Revenue,CAHD,Home Care - Elderly - North,Day Care / Social Activities,L D Awareness,2337.6, 08-Jun-2018
1800,Revenue,CAHD,Training - Adult Services,Training Expenses,L D Awareness,430, 06-Jun-2018
1801,Revenue,CAHD,CSC - Vinney Green Secure Unit,R & M by Departments,Lancer Scott Limited,1590, 12-Jun-2018
1802,Revenue,CAHD,A & CL - Pre-Employability 17/18,Computer Equipment - Purchase,Laptop Outlet,1560, 18-Jun-2018
1803,Revenue,CAHD,Bed Purchasing - North,Permanent Nursing,Larchfield Care Home,3126.64, 05-Jun-2018
1804,Revenue,CAHD,Bed Purchasing - North,Permanent Residential,Leonard Cheshire  National Account Centr,4694.79, 05-Jun-2018
1805,Revenue,CAHD,Bed Purchasing - North,Permanent Residential,Leonard Cheshire  National Account Centr,4131.41, 05-Jun-2018
1806,Revenue,CAHD,Bed Purchasing - North,Permanent Residential,Leonard Cheshire  National Account Centr,1126.75, 05-Jun-2018
1807,Revenue,CAHD,Bed Purchasing - North,Permanent Residential,Leonard Cheshire  National Account Centr,3584, 05-Jun-2018
1808,Revenue,CAHD,Bed Purchasing - South,Permanent Residential,Leonard Cheshire  National Account Centr,3963.56, 05-Jun-2018
1809,Revenue,CAHD,Bed Purchasing - North,Permanent Nursing,Leonard Cheshire  National Account Centr,4160.28, 05-Jun-2018
1810,Revenue,CAHD,Bed Purchasing - North,Permanent Nursing,Leonard Cheshire  National Account Centr,3425.48, 05-Jun-2018
1811,Revenue,CAHD,18-25 Year Olds,Permanent Residential,Leonard Cheshire  National Account Centr,3893.44, 05-Jun-2018
1812,Revenue,CAHD,Bed Purchasing - North,Permanent Nursing,Leonard Cheshire  National Account Centr,5340.08, 05-Jun-2018
1813,Revenue,CAHD,Bed Purchasing - North,Permanent Nursing,Leonard Cheshire  National Account Centr,5228.72, 05-Jun-2018
1814,Revenue,CAHD,Bed Purchasing - North,Permanent Nursing,Leonard Cheshire  National Account Centr,3365.64, 05-Jun-2018
1815,Revenue,CAHD,Bed Purchasing - North,Permanent Nursing,Leonard Cheshire  National Account Centr,5978.44, 05-Jun-2018
1816,Revenue,CAHD,Bed Purchasing - South,Permanent Nursing,Leonard Cheshire  National Account Centr,6286.84, 05-Jun-2018
1817,Revenue,CAHD,Bed Purchasing - Southmead Hospital,Permanent Nursing,Leonard Cheshire  National Account Centr,3640.16, 05-Jun-2018
1818,Revenue,CAHD,Home Care - Elderly - North,Other Small Contracts,Lifeways Community Care (Gloucester) Limited,12420.42, 29-Jun-2018
1819,Revenue,CAHD,Home Care - Elderly - North,Other Small Contracts,Lifeways Community Care (Gloucester) Limited,12280.68, 29-Jun-2018
1820,Revenue,CAHD,18-25 Year Olds,Permanent Residential,Linden House,9830.48, 05-Jun-2018
1821,Revenue,CAHD,Bed Purchasing - North,Permanent Residential,Linden House,8367.68, 05-Jun-2018
1822,Revenue,CAHD,Bed Purchasing - South,Permanent Residential,Linden House,8595.96, 05-Jun-2018
1823,Revenue,CAHD,Bed purchasing -S28A  Under 65 - North,Permanent Residential,Linden House,12375.92, 05-Jun-2018
1824,Revenue,CAHD,Alexandra Way,Mechanical & Electrical Maintenance,Lionel Saunders & Co (Bristol) Limited,953.78, 15-Jun-2018
1825,Revenue,CAHD,Early Years Inclusion Fund,Other Public Bodies,Little Acorns Sundridge,500, 19-Jun-2018
1826,Revenue,CAHD,Bed Purchasing - South,Permanent Residential,Little Croft,2092.56, 05-Jun-2018
1827,Revenue,CAHD,Bed Purchasing - Southmead Hospital,Permanent Residential,Little Croft,3260.8, 05-Jun-2018
1828,Revenue,CAHD,Bed Purchasing - North,Permanent Residential,Little Croft,3147.63, 05-Jun-2018
1829,Revenue,CAHD,Bed Purchasing - North,Permanent Residential,Little Croft,2149.6, 05-Jun-2018
1830,Revenue,CAHD,Bed Purchasing - North,Fees & Charges Income - General,Little Croft,899.16, 05-Jun-2018
1831,Revenue,CAHD,Bed Purchasing - Southmead Hospital,Permanent Residential,Little Croft,3452.76, 05-Jun-2018
1832,Revenue,CAHD,Bed Purchasing - Southmead Hospital,Permanent Residential,Little Croft,2301.84, 05-Jun-2018
1833,Revenue,CAHD,Bed Purchasing - Southmead Hospital,Fees & Charges Income - General,Little Croft,1028.16, 05-Jun-2018
1834,Revenue,CAHD,Bed Purchasing - South,Permanent Residential,Little Croft,3057, 05-Jun-2018
1835,Revenue,CAHD,Bed Purchasing - South,Permanent Residential,Little Croft,2374.2, 05-Jun-2018
1836,Revenue,CAHD,Bed Purchasing - Southmead Hospital,Permanent Residential,Little Croft,3057, 05-Jun-2018
1837,Revenue,CAHD,Bed Purchasing - Southmead Hospital,Permanent Residential,Little Croft,2787.08, 05-Jun-2018
1838,Revenue,CAHD,Bed Purchasing - South,Permanent Residential,Little Croft,3250.71, 05-Jun-2018
1839,Revenue,CAHD,Bed Purchasing - South,Permanent Residential,Little Croft,2220, 05-Jun-2018
1840,Revenue,CAHD,Bed Purchasing - South,Fees & Charges Income - General,Little Croft,828.6, 05-Jun-2018
1841,Revenue,CAHD,Bed Purchasing - Southmead Hospital,Permanent Residential,Little Croft,2787.08, 05-Jun-2018
1842,Revenue,CAHD,Bed Purchasing - South,Respite Planned - Residential,Little Croft,3085.71, 05-Jun-2018
1843,Revenue,CAHD,Bed Purchasing - South,Respite Planned - Residential,Little Croft,1600, 05-Jun-2018
1844,Revenue,CAHD,Bed Purchasing - Southmead Hospital,Permanent Residential,Little Croft,2418.72, 05-Jun-2018
1845,Revenue,CAHD,Bed Purchasing - Southmead Hospital,Permanent Residential,Little Croft,1937.04, 05-Jun-2018
1846,Revenue,CAHD,Bed Purchasing - Southmead Hospital,Permanent Residential,Little Croft,3147.63, 05-Jun-2018
1847,Revenue,CAHD,Bed Purchasing - Southmead Hospital,Permanent Residential,Little Croft,2149.6, 05-Jun-2018
1848,Revenue,CAHD,Bed Purchasing - Southmead Hospital,Fees & Charges Income - General,Little Croft,774.6, 05-Jun-2018
1849,Revenue,CAHD,Bed Purchasing - Southmead Hospital,Permanent Residential,Little Croft,2787.08, 05-Jun-2018
1850,Revenue,CAHD,Bed Purchasing - Southmead Hospital,Permanent Residential,Little Croft,3147.63, 05-Jun-2018
1851,Revenue,CAHD,Bed Purchasing - Southmead Hospital,Permanent Residential,Little Croft,2149.6, 05-Jun-2018
